Workbook

Sheet Help
B2: Objective | C2: This tool helps estimate SSOTE correlation parameters based on diffuser manufacturer specs or plant measurement campaigns
B4: Tabs | C4: Use
B5: Help | C5: This sheet
B6: Input methods | C6: Specify how to input available data
B7: Data | C7: Enter physical and measured data then import to the tool's database for model fitting
B8: Calculations | C8: View supporting calculations for parameter estimation and displaying measured and calculated data as specified
B9: Plot & estimate | C9: Estimate available parameters and check if the calculated SOTE or SSOTE matches the measured data
B10: Sumo forms | C10: Copy results to Sumo (Process units with aeration, Input Setup tab; Oxygen transfer efficiency correlation parameters)
B12: Color code | C12: Meaning
B13: Blue | C13: Input data
B14: Green | C14: Calculation result, cannot be edited
B15: Black | C15: Intermediate result, cannot be edited
B16: Brown | C16: Estimated parameter, either by solver or manually
B18: Version | C18: Sumo19

Sheet Input methods
E1: 1
B2: 1 | C2: Type of bubble | E2: 1 | F2: Diffuser density | H2: 1 | I2: Unit of active surface area per diffuser
C3: Fine bubble | F3: Nº of diffusers per tank area (diff/m2) | I3: m2
C4: Coarse bubble (no correction for density) | F4: Nº of diffusers per tank area (diff/100ft2) | I4: ft2
F5: Diffuser area per tank area (m2/m2)
B6: 1 | C6: Unit of air flow per diffuser | F6: Diffuser-covered percentage of floor (%)
C7: m3/h at NTP | F7: AT/AD; tank area per diffuser area (m2/m2)
C8: m3/d at NTP | F8: Not available
C9: m3/h at STP | E9: 1 | F9: 1
C10: scfm | E10: 1 | F10: Diffuser depth (submergence)
F11: In meters (m)
B12: 1 | C12: Aeration efficiency | F12: In feet (ft)
C13: SOTE, absolute (%) | F13: Not available
C14: SSOTE, specific per diffuser depth (%/m) | D14: TRUE | F14: Calculate from water depth and diffuser height (submergence directly if unchecked)
C15: SSOTE, specific per diffuser depth (%/ft) | D15: TRUE

Sheet Data
P1: =SUM(IF(FREQUENCY(cells_Qair_data,cells_Qair_data)>0,1)) -> 16
L2: Physical data | M2: Value | N2: Unit | P2: =SUM(IF(FREQUENCY(cells_SOTE_data,cells_SOTE_data)>0,1)) -> 24
L3: Diffuser height from floor | M3: 0.25 | N3: m
B4: Measurements | G4: Indicators for sanity check | L4: Area per diffuser | M4: 0.0807 | N4: m² | P4: =IF(flag_ddiff_option<>6,SUM(IF(FREQUENCY(cells_ddiff_data,cells_ddiff_data)>0,1)),0) -> 2
B5: Air flow per diffuser | C5: SOTE | D5: Diffuser density | E5: Water depth | G5: Diffuser depth | H5: Diffuser density | I5: SSOTE | J5: Air flux (flow per diffuser area) | P5: =IF(flag_hdiff_option<>3,SUM(IF(FREQUENCY(cells_hdiff_data,cells_hdiff_data)>0,1)),0) -> 2
B6: m³/h at NTP | C6: % | D6: diff/m² | E6: m | G6: m | H6: % | I6: %/m | J6: m³/m²/h | L6: REFERENCE SHEET: DIFFUSER UNIT AREAS | P6: =COUNTIF(cells_input_sanity,"ERROR") -> 0
B7: 0.6 | C7: 43.78 | D7: 2.79 | E7: 5 | G7: =IF(flag_hwater_check=TRUE,IF(AND(ISNUMBER(E7),ISNUMBER($M$3)),E7-$M$3,""),IF(ISNUMBER(E7),E7,"")) -> 4.75 | H7: =IF(AND(ISNUMBER(D7),ISNUMBER($M$4)),IF(flag_ddiff_option=1,D7*IF(flag_Adiff_option=2,$M$4*0.3048^2,$M$4)*100,IF(flag_ddiff_option=2,D7/100*IF(flag_Adiff_option=1,$M$4/0.3048^2,$M$4)*100,IF(flag_ddiff_option=3,D7*100,IF(flag_ddiff_option=4,D7,IF(flag_ddiff_option=5,1/D7*100,""))))),"") -> 22.5153 | I7: =IF(AND(ISNUMBER(C7),ISNUMBER(G7)),IF(flag_SOTE_option=1,C7/IF(flag_hdiff_option=2,G7*0.3048,G7),IF(flag_SOTE_option=2, C7*IF(flag_hdiff_option=2,G7*0.3048,G7),IF(flag_SOTE_option=3,C7*IF(flag_hdiff_option=1,G7/0.3048,G7),""))),"") -> 9.216842105 | J7: =IF(AND(ISNUMBER(B7),ISNUMBER($M$4)),IF(flag_Qair_option=1,B7/IF(flag_Adiff_option=2,$M$4*0.3048^2,$M$4),IF(flag_Qair_option=2,B7/24/IF(flag_Adiff_option=2,$M$4*0.3048^2,$M$4),IF(flag_Qair_option=3,B7*293.15/273.15/IF(flag_Adiff_option=2,$M$4*0.3048^2,$M$4),IF(flag_Qair_option=4,B7/3.28084^3*60/IF(flag_Adiff_option=2,$M$4*0.3048^2,$M$4),"")))),"") -> 7.434944238 | P7: =IF(AND(flag_ddiff_option=6,flag_hdiff_option=3),IF(OR(AND(ISBLANK(B7),ISBLANK(C7)),AND(ISNUMBER(B7),ISNUMBER(C7))),"OK","ERROR"),IF(AND(flag_ddiff_option<>6,flag_hdiff_option=3),IF(OR(AND(ISBLANK(B7),ISBLANK(C7),ISBLANK(D7)),AND(ISNUMBER(B7),ISNUMBER(C7),ISNUMBER(D7))),"OK","ERROR"),IF(AND(flag_ddiff_option=6,flag_hdiff_option<>3),IF(OR(AND(ISBLANK(B7),ISBLANK(C7),ISBLANK(E7),G7=""),AND(ISNUMBER(B7),ISNUMBER(C7),ISNUMBER(E7),ISNUMBER(G7))),"OK","ERROR"),IF(OR(AND(ISBLANK(B7),ISBLANK(C7),ISBLANK(D7),ISBLANK(E7),G7=""),AND(ISNUMBER(B7),ISNUMBER(C7),ISNUMBER(D7),ISNUMBER(E7),ISNUMBER(G7))),"OK","ERROR")))) -> OK
B8: 0.89 | C8: 44.12 | D8: 2.79 | E8: 5 | G8: 4.75 | H8: =IF(AND(ISNUMBER(D8),ISNUMBER($M$4)),IF(flag_ddiff_option=1,D8*IF(flag_Adiff_option=2,$M$4*0.3048^2,$M$4)*100,IF(flag_ddiff_option=2,D8/100*IF(flag_Adiff_option=1,$M$4/0.3048^2,$M$4)*100,IF(flag_ddiff_option=3,D8*100,IF(flag_ddiff_option=4,D8,IF(flag_ddiff_option=5,1/D8*100,""))))),"") -> 22.5153 | I8: =IF(AND(ISNUMBER(C8),ISNUMBER(G8)),IF(flag_SOTE_option=1,C8/IF(flag_hdiff_option=2,G8*0.3048,G8),IF(flag_SOTE_option=2, C8*IF(flag_hdiff_option=2,G8*0.3048,G8),IF(flag_SOTE_option=3,C8*IF(flag_hdiff_option=1,G8/0.3048,G8),""))),"") -> 9.288421053 | J8: 11.02850062 | L8: Diffuser type | M8: Area (m²) | P8: OK
B9: 1.19 | C9: 41.83 | D9: 2.79 | E9: 5 | G9: 4.75 | H9: 22.5153 | I9: 8.806315789 | J9: 14.74597274 | L9: 14" ceramic disc | M9: 0.0856 | P9: OK
B10: 1.19 | C10: 41.78 | D10: 2.79 | E10: 5 | G10: 4.75 | H10: 22.5153 | I10: 8.795789474 | J10: 14.74597274 | L10: 9" ceramic disc | M10: 0.0373 | P10: OK
B11: 1.19 | C11: 41.85 | D11: 2.79 | E11: 5 | G11: 4.75 | H11: 22.5153 | I11: 8.810526316 | J11: 14.74597274 | L11: 14" membrane disc | M11: 0.0636 | P11: OK
B12: 1.79 | C12: 40.75 | D12: 2.79 | E12: 5 | G12: 4.75 | H12: 22.5153 | I12: 8.578947368 | J12: 22.18091698 | L12: 9" membrane disc | M12: 0.0263 | P12: OK
B13: 2.39 | C13: 39.74 | D13: 2.79 | E13: 5 | G13: 4.75 | H13: 22.5153 | I13: 8.366315789 | J13: 29.61586121 | L13: 7" membrane disc | M13: 0.0159 | P13: OK
B14: 2.99 | C14: 38.94 | D14: 2.79 | E14: 5 | G14: 4.75 | H14: 22.5153 | I14: 8.197894737 | J14: 37.05080545 | L14: 5" coarse bubble cap | M14: 0.012 | P14: OK
B15: 3.58 | C15: 38.03 | D15: 2.79 | E15: 5 | G15: 4.75 | H15: 22.5153 | I15: 8.006315789 | J15: 44.36183395 | L15: 7" ceramic dome | M15: 0.0438 | P15: OK
B16: 5.38 | C16: 37.37 | D16: 2.79 | E16: 5 | G16: 4.75 | H16: 22.5153 | I16: 7.867368421 | J16: 66.66666667 | L16: 12" ceramic plate | M16: 0.0929 | P16: OK
B17: 7.17 | C17: 35.51 | D17: 2.79 | E17: 5 | G17: 4.75 | H17: 22.5153 | I17: 7.475789474 | J17: 88.84758364 | L17: 24" x 2.5" membrane tube (single) | M17: 0.0807 | P17: OK
B18: 10.39 | C18: 34.91 | D18: 2.79 | E18: 5 | G18: 4.75 | H18: 22.5153 | I18: 7.349473684 | J18: 128.7484511 | L18: 11' x 4' membrane panel | M18: 4.0877 | P18: OK
B19: 2.28 | C19: 35.58 | D19: 0.64 | E19: 5 | G19: 4.75 | H19: 5.1648 | I19: 7.490526316 | J19: 28.2527881 | L19: 3' 6" x 11' 7 3/8" membrane panel | M19: 3.7766 | P19: OK
B20: 4.56 | C20: 32.95 | D20: 0.64 | E20: 5 | G20: 4.75 | H20: 5.1648 | I20: 6.936842105 | J20: 56.50557621 | P20: OK
B21: 6.83 | C21: 32 | D21: 0.64 | E21: 5 | G21: 4.75 | H21: 5.1648 | I21: 6.736842105 | J21: 84.63444857 | P21: OK
B22: 9.11 | C22: 30.91 | D22: 0.64 | E22: 5 | G22: 4.75 | H22: 5.1648 | I22: 6.507368421 | J22: 112.8872367 | P22: OK
B23: 13.66 | C23: 29.7 | D23: 0.64 | E23: 5 | G23: 4.75 | H23: 5.1648 | I23: 6.252631579 | J23: 169.2688971 | P23: OK
B24: 18.22 | C24: 28.2 | D24: 0.64 | E24: 5 | G24: 4.75 | H24: 5.1648 | I24: 5.936842105 | J24: 225.7744734 | P24: OK
B25: 2.28 | C25: 45.41 | D25: 0.64 | E25: 7 | G25: 6.75 | H25: 5.1648 | I25: 6.727407407 | J25: 28.2527881 | P25: OK
B26: 4.56 | C26: 42.72 | D26: 0.64 | E26: 7 | G26: 6.75 | H26: 5.1648 | I26: 6.328888889 | J26: 56.50557621 | P26: OK
B27: 6.83 | C27: 40.26 | D27: 0.64 | E27: 7 | G27: 6.75 | H27: 5.1648 | I27: 5.964444444 | J27: 84.63444857 | P27: OK
B28: 9.11 | C28: 39.38 | D28: 0.64 | E28: 7 | G28: 6.75 | H28: 5.1648 | I28: 5.834074074 | J28: 112.8872367 | P28: OK
B29: 13.66 | C29: 37.19 | D29: 0.64 | E29: 7 | G29: 6.75 | H29: 5.1648 | I29: 5.50962963 | J29: 169.2688971 | P29: OK
B30: 18.22 | C30: 37.2 | D30: 0.64 | E30: 7 | G30: 6.75 | H30: 5.1648 | I30: 5.511111111 | J30: 225.7744734 | P30: OK
P31: OK
P32: OK
P33: OK
P34: OK
P35: OK
P36: OK
P37: OK
P38: OK
P39: OK
P40: OK
P41: OK
P42: OK
P43: OK
P44: OK
P45: OK
P46: OK
P47: OK
P48: OK
P49: OK
P50: OK
P51: OK
P52: OK
P53: OK
P54: OK
P55: OK
P56: OK
P57: OK
P58: OK
P59: OK
P60: OK
P61: OK
P62: OK
P63: OK
P64: OK
P65: OK
P66: OK
P67: OK
P68: OK
P69: OK
P70: OK
G71: =IF(flag_hwater_check=TRUE,IF(AND(ISNUMBER(E71),ISNUMBER($M$3)),E71-$M$3,""),IF(ISNUMBER(E71),E71,"")) ->  | J71: =IF(AND(ISNUMBER(B71),ISNUMBER($M$4)),IF(flag_Qair_option=1,B71/IF(flag_Adiff_option=2,$M$4*0.3048^2,$M$4),IF(flag_Qair_option=2,B71/24/IF(flag_Adiff_option=2,$M$4*0.3048^2,$M$4),IF(flag_Qair_option=3,B71*293.15/273.15/IF(flag_Adiff_option=2,$M$4*0.3048^2,$M$4),IF(flag_Qair_option=4,B71/3.28084^3*60/IF(flag_Adiff_option=2,$M$4*0.3048^2,$M$4),"")))),"") ->  | P71: =IF(AND(flag_ddiff_option=6,flag_hdiff_option=3),IF(OR(AND(ISBLANK(B71),ISBLANK(C71)),AND(ISNUMBER(B71),ISNUMBER(C71))),"OK","ERROR"),IF(AND(flag_ddiff_option<>6,flag_hdiff_option=3),IF(OR(AND(ISBLANK(B71),ISBLANK(C71),ISBLANK(D71)),AND(ISNUMBER(B71),ISNUMBER(C71),ISNUMBER(D71))),"OK","ERROR"),IF(AND(flag_ddiff_option=6,flag_hdiff_option<>3),IF(OR(AND(ISBLANK(B71),ISBLANK(C71),ISBLANK(E71),G71=""),AND(ISNUMBER(B71),ISNUMBER(C71),ISNUMBER(E71),ISNUMBER(G71))),"OK","ERROR"),IF(OR(AND(ISBLANK(B71),ISBLANK(C71),ISBLANK(D71),ISBLANK(E71),G71=""),AND(ISNUMBER(B71),ISNUMBER(C71),ISNUMBER(D71),ISNUMBER(E71),ISNUMBER(G71))),"OK","ERROR")))) -> OK
H72: =IF(AND(ISNUMBER(D72),ISNUMBER($M$4)),IF(flag_ddiff_option=1,D72*IF(flag_Adiff_option=2,$M$4*0.3048^2,$M$4)*100,IF(flag_ddiff_option=2,D72/100*IF(flag_Adiff_option=1,$M$4/0.3048^2,$M$4)*100,IF(flag_ddiff_option=3,D72*100,IF(flag_ddiff_option=4,D72,IF(flag_ddiff_option=5,1/D72*100,""))))),"") ->  | I72: =IF(AND(ISNUMBER(C72),ISNUMBER(G72)),IF(flag_SOTE_option=1,C72/IF(flag_hdiff_option=2,G72*0.3048,G72),IF(flag_SOTE_option=2, C72*IF(flag_hdiff_option=2,G72*0.3048,G72),IF(flag_SOTE_option=3,C72*IF(flag_hdiff_option=1,G72/0.3048,G72),""))),"") ->  | P72: OK
P73: OK
P74: OK
P75: OK
P76: OK
P77: OK
P78: OK
P79: OK
P80: OK
P81: OK
P82: OK
P83: OK
P84: OK
P85: OK
P86: OK
P87: OK
P88: OK
P89: OK
P90: OK
P91: OK
P92: OK
P93: OK
P94: OK
P95: OK
P96: OK
P97: OK
P98: OK
P99: OK
P100: OK
P101: OK
P102: OK
P103: OK
P104: OK
P105: OK
P106: OK
P107: OK
P108: OK
P109: OK
P110: OK
P111: OK
P112: OK
P113: OK
P114: OK
P115: OK
P116: OK
P117: OK
P118: OK
P119: OK
P120: OK
P121: OK
P122: OK
P123: OK
P124: OK
P125: OK
P126: OK
P127: OK
P128: OK
P129: OK
P130: OK
P131: OK
P132: OK
P133: OK
P134: OK
G135: =IF(flag_hwater_check=TRUE,IF(AND(ISNUMBER(E135),ISNUMBER($M$3)),E135-$M$3,""),IF(ISNUMBER(E135),E135,"")) ->  | J135: =IF(AND(ISNUMBER(B135),ISNUMBER($M$4)),IF(flag_Qair_option=1,B135/IF(flag_Adiff_option=2,$M$4*0.3048^2,$M$4),IF(flag_Qair_option=2,B135/24/IF(flag_Adiff_option=2,$M$4*0.3048^2,$M$4),IF(flag_Qair_option=3,B135*293.15/273.15/IF(flag_Adiff_option=2,$M$4*0.3048^2,$M$4),IF(flag_Qair_option=4,B135/3.28084^3*60/IF(flag_Adiff_option=2,$M$4*0.3048^2,$M$4),"")))),"") ->  | P135: =IF(AND(flag_ddiff_option=6,flag_hdiff_option=3),IF(OR(AND(ISBLANK(B135),ISBLANK(C135)),AND(ISNUMBER(B135),ISNUMBER(C135))),"OK","ERROR"),IF(AND(flag_ddiff_option<>6,flag_hdiff_option=3),IF(OR(AND(ISBLANK(B135),ISBLANK(C135),ISBLANK(D135)),AND(ISNUMBER(B135),ISNUMBER(C135),ISNUMBER(D135))),"OK","ERROR"),IF(AND(flag_ddiff_option=6,flag_hdiff_option<>3),IF(OR(AND(ISBLANK(B135),ISBLANK(C135),ISBLANK(E135),G135=""),AND(ISNUMBER(B135),ISNUMBER(C135),ISNUMBER(E135),ISNUMBER(G135))),"OK","ERROR"),IF(OR(AND(ISBLANK(B135),ISBLANK(C135),ISBLANK(D135),ISBLANK(E135),G135=""),AND(ISNUMBER(B135),ISNUMBER(C135),ISNUMBER(D135),ISNUMBER(E135),ISNUMBER(G135))),"OK","ERROR")))) -> OK
H136: =IF(AND(ISNUMBER(D136),ISNUMBER($M$4)),IF(flag_ddiff_option=1,D136*IF(flag_Adiff_option=2,$M$4*0.3048^2,$M$4)*100,IF(flag_ddiff_option=2,D136/100*IF(flag_Adiff_option=1,$M$4/0.3048^2,$M$4)*100,IF(flag_ddiff_option=3,D136*100,IF(flag_ddiff_option=4,D136,IF(flag_ddiff_option=5,1/D136*100,""))))),"") ->  | I136: =IF(AND(ISNUMBER(C136),ISNUMBER(G136)),IF(flag_SOTE_option=1,C136/IF(flag_hdiff_option=2,G136*0.3048,G136),IF(flag_SOTE_option=2, C136*IF(flag_hdiff_option=2,G136*0.3048,G136),IF(flag_SOTE_option=3,C136*IF(flag_hdiff_option=1,G136/0.3048,G136),""))),"") ->  | P136: OK
P137: OK
P138: OK
P139: OK
P140: OK
P141: OK
P142: OK
P143: OK
P144: OK
P145: OK
P146: OK
P147: OK
P148: OK
P149: OK
P150: OK
P151: OK
P152: OK
P153: OK
P154: OK
P155: OK
P156: OK
P157: OK
P158: OK
P159: OK
P160: OK
P161: OK
P162: OK
P163: OK
P164: OK
P165: OK
P166: OK
P167: OK
P168: OK
P169: OK
P170: OK
P171: OK
P172: OK
P173: OK
P174: OK
P175: OK
P176: OK
P177: OK
P178: OK
P179: OK
P180: OK
P181: OK
P182: OK
P183: OK
P184: OK
P185: OK
P186: OK
P187: OK
P188: OK
P189: OK
P190: OK
P191: OK
P192: OK
P193: OK
P194: OK
P195: OK
P196: OK
P197: OK
P198: OK
G199: =IF(flag_hwater_check=TRUE,IF(AND(ISNUMBER(E199),ISNUMBER($M$3)),E199-$M$3,""),IF(ISNUMBER(E199),E199,"")) ->  | J199: =IF(AND(ISNUMBER(B199),ISNUMBER($M$4)),IF(flag_Qair_option=1,B199/IF(flag_Adiff_option=2,$M$4*0.3048^2,$M$4),IF(flag_Qair_option=2,B199/24/IF(flag_Adiff_option=2,$M$4*0.3048^2,$M$4),IF(flag_Qair_option=3,B199*293.15/273.15/IF(flag_Adiff_option=2,$M$4*0.3048^2,$M$4),IF(flag_Qair_option=4,B199/3.28084^3*60/IF(flag_Adiff_option=2,$M$4*0.3048^2,$M$4),"")))),"") ->  | P199: =IF(AND(flag_ddiff_option=6,flag_hdiff_option=3),IF(OR(AND(ISBLANK(B199),ISBLANK(C199)),AND(ISNUMBER(B199),ISNUMBER(C199))),"OK","ERROR"),IF(AND(flag_ddiff_option<>6,flag_hdiff_option=3),IF(OR(AND(ISBLANK(B199),ISBLANK(C199),ISBLANK(D199)),AND(ISNUMBER(B199),ISNUMBER(C199),ISNUMBER(D199))),"OK","ERROR"),IF(AND(flag_ddiff_option=6,flag_hdiff_option<>3),IF(OR(AND(ISBLANK(B199),ISBLANK(C199),ISBLANK(E199),G199=""),AND(ISNUMBER(B199),ISNUMBER(C199),ISNUMBER(E199),ISNUMBER(G199))),"OK","ERROR"),IF(OR(AND(ISBLANK(B199),ISBLANK(C199),ISBLANK(D199),ISBLANK(E199),G199=""),AND(ISNUMBER(B199),ISNUMBER(C199),ISNUMBER(D199),ISNUMBER(E199),ISNUMBER(G199))),"OK","ERROR")))) -> OK
H200: =IF(AND(ISNUMBER(D200),ISNUMBER($M$4)),IF(flag_ddiff_option=1,D200*IF(flag_Adiff_option=2,$M$4*0.3048^2,$M$4)*100,IF(flag_ddiff_option=2,D200/100*IF(flag_Adiff_option=1,$M$4/0.3048^2,$M$4)*100,IF(flag_ddiff_option=3,D200*100,IF(flag_ddiff_option=4,D200,IF(flag_ddiff_option=5,1/D200*100,""))))),"") ->  | I200: =IF(AND(ISNUMBER(C200),ISNUMBER(G200)),IF(flag_SOTE_option=1,C200/IF(flag_hdiff_option=2,G200*0.3048,G200),IF(flag_SOTE_option=2, C200*IF(flag_hdiff_option=2,G200*0.3048,G200),IF(flag_SOTE_option=3,C200*IF(flag_hdiff_option=1,G200/0.3048,G200),""))),"") ->  | P200: OK
... 806 more rows

Sheet Calculations
C1: COMPLETE DATASET FOR CURVE FITTING | Q1: DISPLAY CHECKS | AD1: DIFFUSER DENSITY-BASED DISPLAY | AO1: DIFFUSER SUBMERGENCE-BASED DISPLAY
C2: Air flow per diffuser | E2: Diffuser density | G2: Diffuser submergence | I2: Measured (S)SOTE | K2: Correlated (S)SOTE | M2: (SSOTEmeas-SSOTEcorr)2 | N2: (SSOTEmeas-SSOTEmean)2 | O2: (SSOTEcorr-SSOTEmean)2 | Q2: Diffuser density displayability at actual depth | R2: Diffuser depth screening for density display | S2: Diffuser density plot label | T2: Air flow min. at actual density | U2: Air flow max. at actual density | V2: Air flow outliers | W2: Diffuser depth displayability at actual density | X2: Diffuser density screening for depth display | Y2: Diffuser depth plot label | Z2: Air flow min. at actual depth | AA2: Air flow max. at actual depth | AB2: Air flow outliers | AD2: Air flow per diffuser | AF2: Diffuser density | AH2: Diffuser submergence | AJ2: Measured (S)SOTE | AL2: Correlated (S)SOTE | AO2: Air flow per diffuser | AQ2: Diffuser submergence | AS2: Diffuser density | AU2: Measured (S)SOTE | AW2: Correlated (S)SOTE
A3: Area per diffuser | C3: m³/h at NTP | D3: m³/d at NTP | E3: diff/m² | F3: m²/m² | G3: m | H3: m | I3: % | J3: %/m | K3: % | L3: %/m | M3: (%/m)2 | N3: (%/m)2 | O3: (%/m)2 | T3: m³/h at NTP | U3: m³/h at NTP | V3: m³/h at NTP | Z3: m³/h at NTP | AA3: m³/h at NTP | AB3: m³/h at NTP | AD3: m³/h at NTP | AE3: m³/d at NTP | AF3: diff/m² | AG3: m²/m² | AH3: m | AI3: m | AJ3: % | AK3: %/m | AL3: % | AM3: %/m | AO3: m³/h at NTP | AP3: m³/d at NTP | AQ3: m | AR3: m | AS3: diff/m² | AT3: m²/m² | AU3: % | AV3: %/m | AW3: % | AX3: %/m
A4: m² | C4: 0.6 | D4: =IF(ISNUMBER(C4),IF(cell_Qairselection_calc="m³/h at NTP",C4*24,IF(cell_Qairselection_calc="m³/d at NTP",C4,IF(cell_Qairselection_calc="m³/h at STP",C4*293.15/273.15*24,IF(cell_Qairselection_calc="scfm",C4/3.28084^3*60*24,"")))),"") -> 14.4 | E4: 2.79 | F4: =IF(cell_ddiffselection_calc="diff/m²",IF(AND(ISNUMBER(E4),ISNUMBER($A$5)),E4*IF(cell_Adiffselection_calc="ft²",$A$5*0.3048^2,$A$5),""),IF(cell_ddiffselection_calc="diff/100ft²",IF(AND(ISNUMBER(E4),ISNUMBER($A$5)),E4/100*IF(cell_Adiffselection_calc="m²",$A$5/0.3048^2,$A$5),""),IF(cell_ddiffselection_calc="m²/m²",IF(ISNUMBER(E4),E4,""),IF(cell_ddiffselection_calc="%",IF(ISNUMBER(E4),E4/100,""),IF(cell_ddiffselection_calc="m²/m² (AT/AD)",IF(ISNUMBER(E4),1/E4,""),""))))) -> 0.225153 | G4: 4.75 | H4: =IF(ISNUMBER(G4),IF(cell_hdiffselection_calc="m",G4,IF(cell_hdiffselection_calc="ft",G4*0.3048,"")),"") -> 4.75 | I4: 43.78 | J4: =IF(cell_SOTEselection_calc="%",IF(AND(ISNUMBER(I4),ISNUMBER(H4)),I4/H4,""),IF(cell_SOTEselection_calc="%/m",IF(ISNUMBER(I4),I4,""),IF(cell_SOTEselection_calc="%/ft",IF(ISNUMBER(I4),I4/0.3048,""),""))) -> 9.216842105 | K4: =IF(cell_SOTEselection_calc="%",IF(AND(ISNUMBER(L4),ISNUMBER(H4)),L4*H4,""),IF(cell_SOTEselection_calc="%/m",IF(ISNUMBER(L4),L4,""),IF(cell_SOTEselection_calc="%/ft",IF(ISNUMBER(L4),L4*0.3048,""),""))) -> 43.34125491 | L4: =IF(AND(cell_ddiffselection_calc<>"NA",cell_hdiffselection_calc<>"NA"),IF(AND(ISNUMBER(D4),ISNUMBER(F4),ISNUMBER(H4)),((cell_SSOTE0_est-cell_SSOTEasym_est)*EXP(-cell_expSSOTE_est*D4)+cell_SSOTEasym_est)*(F4/cell_divddiff_est)^cell_powddiff_est/(cell_coeffleadhdiff_est*H4^cell_powhdiff_est+cell_coefflinhdiff_est*H4+1),""),IF(AND(cell_ddiffselection_calc="NA",cell_hdiffselection_calc<>"NA"),IF(AND(ISNUMBER(D4),ISNUMBER(H4)),((cell_SSOTE0_est-cell_SSOTEasym_est)*EXP(-cell_expSSOTE_est*D4)+cell_SSOTEasym_est)/(cell_coeffleadhdiff_est*H4^cell_powhdiff_est+cell_coefflinhdiff_est*H4+1),""),IF(AND(cell_ddiffselection_calc<>"NA",cell_hdiffselection_calc="NA"),IF(AND(ISNUMBER(D4),ISNUMBER(F4)),((cell_SSOTE0_est-cell_SSOTEasym_est)*EXP(-cell_expSSOTE_est*D4)+cell_SSOTEasym_est)*(F4/cell_divddiff_est)^cell_powddiff_est,""),IF(ISNUMBER(D4),(cell_SSOTE0_est-cell_SSOTEasym_est)*EXP(-cell_expSSOTE_est*D4)+cell_SSOTEasym_est,"")))) -> 9.124474717 | M4: =IF(AND(ISNUMBER(J4),ISNUMBER(L4)),(J4-L4)^2,"") -> 0.008531734347 | N4: =IF(ISNUMBER(J4),(J4-$J$1004)^2,"") -> 3.470086297 | O4: =IF(AND(ISNUMBER(L4),ISNUMBER($J$1004)),(L4-$J$1004)^2,"") -> 3.134490994 | Q4: =IF(AND(ISNUMBER(E4),ISNUMBER(G4)),IF(COUNTIF(cells_hdiff_calc,G4)>COUNTIFS(cells_hdiff_calc,G4,cells_ddiff_calc,E4),"OK",""),"") -> OK | R4: =IF(Q4="OK",_xlfn.CONCAT(G4," ",$G$3),"") -> 4.75 m | S4: =IF(ISNUMBER(E4),IF(flag_hdiff_confirm>0,IF(G4=cell_hdiff_confirm,1,""),1),"") -> 1 | T4: =IF(AND(ISNUMBER(S4),S4=1),_xlfn.MINIFS((cells_Qair_calc),(labels_ddiff_confirm),S4),"") -> 0.6 | U4: =IF(AND(ISNUMBER(S4),S4=1),_xlfn.MAXIFS((cells_Qair_calc),(labels_ddiff_confirm),S4),"") -> 10.39 | V4: =IF(ISNUMBER(S4),IF(OR(C4<MAX(mins_Qair_ddiffplot),C4>MIN(maxs_Qair_ddiffplot)),C4,""),"") -> 0.6 | W4: =IF(AND(ISNUMBER(E4),ISNUMBER(G4)),IF(COUNTIF(cells_ddiff_calc,E4)>COUNTIFS(cells_hdiff_calc,G4,cells_ddiff_calc,E4),"OK",""),"") ->  | X4: =IF(W4="OK",_xlfn.CONCAT(E4," ",$E$3),"") ->  | Y4: =IF(ISNUMBER(G4),IF(flag_ddiff_confirm>0,IF(E4=cell_ddiff_confirm,1,""),1),"") ->  | Z4: =IF(AND(ISNUMBER(Y4),Y4=1),_xlfn.MINIFS((cells_Qair_calc),(labels_hdiff_confirm),Y4),"") ->  | AA4: =IF(AND(ISNUMBER(Y4),Y4=1),_xlfn.MAXIFS((cells_Qair_calc),(labels_hdiff_confirm),Y4),"") ->  | AB4: =IF(ISNUMBER(Y4),IF(OR(C4<MAX(mins_Qair_hdiffplot),C4>MIN(maxs_Qair_hdiffplot)),C4,""),"") ->  | AD4: 0.6 | AE4: =IF(ISNUMBER(AD4),IF(cell_Qairselection_calc="m³/h at NTP",AD4*24,IF(cell_Qairselection_calc="m³/d at NTP",AD4,IF(cell_Qairselection_calc="m³/h at STP",AD4*293.15/273.15*24,IF(cell_Qairselection_calc="scfm",AD4/3.28084^3*60*24,"")))),"") -> 14.4 | AF4: 2.79 | AG4: =IF(cell_ddiffselection_calc="diff/m²",IF(AND(ISNUMBER(AF4),ISNUMBER($A$5)),AF4*IF(cell_Adiffselection_calc="ft²",$A$5*0.3048^2,$A$5),""),IF(cell_ddiffselection_calc="diff/100ft²",IF(AND(ISNUMBER(AF4),ISNUMBER($A$5)),AF4/100*IF(cell_Adiffselection_calc="m²",$A$5/0.3048^2,$A$5),""),IF(cell_ddiffselection_calc="m²/m²",IF(ISNUMBER(AF4),AF4,""),IF(cell_ddiffselection_calc="%",IF(ISNUMBER(AF4),AF4/100,""),IF(cell_ddiffselection_calc="m²/m² (AT/AD)",IF(ISNUMBER(AF4),1/AF4,""),""))))) -> 0.225153 | AH4: 4.75 | AI4: =IF(ISNUMBER(AH4),IF(cell_hdiffselection_calc="m",AH4,IF(cell_hdiffselection_calc="ft",AH4*0.3048,"")),"") -> 4.75 | AJ4: 43.78 | AK4: =IF(cell_SOTEselection_calc="%",IF(AND(ISNUMBER(AJ4),ISNUMBER(AI4)),AJ4/AI4,""),IF(cell_SOTEselection_calc="%/m",IF(ISNUMBER(AJ4),AJ4,""),IF(cell_SOTEselection_calc="%/ft",IF(ISNUMBER(AJ4),AJ4/0.3048,""),""))) -> 9.216842105 | AL4: =IF(cell_SOTEselection_calc="%",IF(AND(ISNUMBER(AM4),ISNUMBER(AI4)),AM4*AI4,""),IF(cell_SOTEselection_calc="%/m",IF(ISNUMBER(AM4),AM4,""),IF(cell_SOTEselection_calc="%/ft",IF(ISNUMBER(AM4),AM4*0.3048,""),""))) -> 43.34125491 | AM4: =IF(AND(cell_ddiffselection_calc<>"NA",cell_hdiffselection_calc<>"NA"),IF(AND(ISNUMBER(AE4),ISNUMBER(AG4),ISNUMBER(AI4)),((cell_SSOTE0_est-cell_SSOTEasym_est)*EXP(-cell_expSSOTE_est*AE4)+cell_SSOTEasym_est)*(AG4/cell_divddiff_est)^cell_powddiff_est/(cell_coeffleadhdiff_est*AI4^cell_powhdiff_est+cell_coefflinhdiff_est*AI4+1),""),IF(AND(cell_ddiffselection_calc="NA",cell_hdiffselection_calc<>"NA"),IF(AND(ISNUMBER(AE4),ISNUMBER(AI4)),((cell_SSOTE0_est-cell_SSOTEasym_est)*EXP(-cell_expSSOTE_est*AE4)+cell_SSOTEasym_est)/(cell_coeffleadhdiff_est*AI4^cell_powhdiff_est+cell_coefflinhdiff_est*AI4+1),""),IF(AND(cell_ddiffselection_calc<>"NA",cell_hdiffselection_calc="NA"),IF(AND(ISNUMBER(AE4),ISNUMBER(AG4)),((cell_SSOTE0_est-cell_SSOTEasym_est)*EXP(-cell_expSSOTE_est*AE4)+cell_SSOTEasym_est)*(AG4/cell_divddiff_est)^cell_powddiff_est,""),IF(ISNUMBER(AE4),(cell_SSOTE0_est-cell_SSOTEasym_est)*EXP(-cell_expSSOTE_est*AE4)+cell_SSOTEasym_est,"")))) -> 9.124474717 | AO4: 2.28 | AP4: =IF(ISNUMBER(AO4),IF(cell_Qairselection_calc="m³/h at NTP",AO4*24,IF(cell_Qairselection_calc="m³/d at NTP",AO4,IF(cell_Qairselection_calc="m³/h at NTP",AO4*293.15/273.15*24,IF(cell_Qairselection_calc="scfm",AO4/3.28084^3*60*24,"")))),"") -> 54.72 | AQ4: 6.75 | AR4: =IF(ISNUMBER(AQ4),IF(cell_hdiffselection_calc="m",AQ4,IF(cell_hdiffselection_calc="ft",AQ4*0.3048,"")),"") -> 6.75 | AS4: 0.64 | AT4: =IF(cell_ddiffselection_calc="diff/m²",IF(AND(ISNUMBER(AS4),ISNUMBER($A$5)),AS4*IF(cell_Adiffselection_calc="ft²",$A$5*0.3048^2,$A$5),""),IF(cell_ddiffselection_calc="diff/100ft²",IF(AND(ISNUMBER(AS4),ISNUMBER($A$5)),AS4/100*IF(cell_Adiffselection_calc="m²",$A$5/0.3048^2,$A$5),""),IF(cell_ddiffselection_calc="m²/m²",IF(ISNUMBER(AS4),AS4,""),IF(cell_ddiffselection_calc="%",IF(ISNUMBER(AS4),AS4/100,""),IF(cell_ddiffselection_calc="m²/m² (AT/AD)",IF(ISNUMBER(AS4),1/AS4,""),""))))) -> 0.051648 | AU4: 45.41 | AV4: =IF(cell_SOTEselection_calc="%",IF(AND(ISNUMBER(AU4),ISNUMBER(AR4)),AU4/AR4,""),IF(cell_SOTEselection_calc="%/m",IF(ISNUMBER(AU4),AU4,""),IF(cell_SOTEselection_calc="%/ft",IF(ISNUMBER(AU4),AU4/0.3048,""),""))) -> 6.727407407 | AW4: =IF(cell_SOTEselection_calc="%",IF(AND(ISNUMBER(AX4),ISNUMBER(AR4)),AX4*AR4,""),IF(cell_SOTEselection_calc="%/m",IF(ISNUMBER(AX4),AX4,""),IF(cell_SOTEselection_calc="%/ft",IF(ISNUMBER(AX4),AX4*0.3048,""),""))) -> 45.495439 | AX4: =IF(AND(cell_ddiffselection_calc<>"NA",cell_hdiffselection_calc<>"NA"),IF(AND(ISNUMBER(AP4),ISNUMBER(AT4),ISNUMBER(AR4)),((cell_SSOTE0_est-cell_SSOTEasym_est)*EXP(-cell_expSSOTE_est*AP4)+cell_SSOTEasym_est)*(AT4/cell_divddiff_est)^cell_powddiff_est/(cell_coeffleadhdiff_est*AR4^cell_powhdiff_est+cell_coefflinhdiff_est*AR4+1),""),IF(AND(cell_ddiffselection_calc="NA",cell_hdiffselection_calc<>"NA"),IF(AND(ISNUMBER(AP4),ISNUMBER(AR4)),((cell_SSOTE0_est-cell_SSOTEasym_est)*EXP(-cell_expSSOTE_est*AP4)+cell_SSOTEasym_est)/(cell_coeffleadhdiff_est*AR4^cell_powhdiff_est+cell_coefflinhdiff_est*AR4+1),""),IF(AND(cell_ddiffselection_calc<>"NA",cell_hdiffselection_calc="NA"),IF(AND(ISNUMBER(AP4),ISNUMBER(AT4)),((cell_SSOTE0_est-cell_SSOTEasym_est)*EXP(-cell_expSSOTE_est*AP4)+cell_SSOTEasym_est)*(AT4/cell_divddiff_est)^cell_powddiff_est,""),IF(ISNUMBER(AP4),(cell_SSOTE0_est-cell_SSOTEasym_est)*EXP(-cell_expSSOTE_est*AP4)+cell_SSOTEasym_est,"")))) -> 6.740065037
A5: 0.0807 | C5: 0.89 | D5: 21.36 | E5: 2.79 | F5: 0.225153 | G5: 4.75 | H5: 4.75 | I5: 44.12 | J5: 9.288421053 | K5: 42.75281419 | L5: 9.000592461 | M5: 0.08284529839 | N5: 3.741886769 | O5: 2.711183279 | Q5: OK | R5: =IF(Q5="OK",IF(COUNTIF($G$4:G4,G5)=0,_xlfn.CONCAT(G5," ",$G$3),""),"") ->  | S5: =IF(ISNUMBER(E5),IF(flag_hdiff_confirm>0,IF(G5=cell_hdiff_confirm,IF(COUNTIF($E$4:E4,E5)=0,MAX($S$4:S4)+1,MAX(MAX($S$4:S4),1)),""),IF(COUNTIF($E$4:E4,E5)=0,MAX($S$4:S4)+1,MAX(MAX($S$4:S4),1))),"") -> 1 | T5: =IF(AND(ISNUMBER(S5),S5<>S4),_xlfn.MINIFS((cells_Qair_calc),(labels_ddiff_confirm),S5),"") ->  | U5: =IF(AND(ISNUMBER(S5),S5<>S4),_xlfn.MAXIFS((cells_Qair_calc),(labels_ddiff_confirm),S5),"") ->  | V5: 0.89 | X5: =IF(W5="OK",IF(COUNTIF($E$4:E4,E5)=0,_xlfn.CONCAT(E5," ",$E$3),""),"") ->  | Y5: =IF(ISNUMBER(G5),IF(flag_ddiff_confirm>0,IF(E5=cell_ddiff_confirm,IF(COUNTIF($G$4:G4,G5)=0,MAX($Y$4:Y4)+1,MAX(MAX($Y$4:Y4),1)),""),IF(COUNTIF($G$4:G4,G5)=0,MAX($Y$4:Y4)+1,MAX(MAX($Y$4:Y4),1))),"") ->  | Z5: =IF(AND(ISNUMBER(Y5),Y5<>Y4),_xlfn.MINIFS((cells_Qair_calc),(labels_hdiff_confirm),Y5),"") ->  | AA5: =IF(AND(ISNUMBER(Y5),Y5<>Y4),_xlfn.MAXIFS((cells_Qair_calc),(labels_hdiff_confirm),Y5),"") ->  | AD5: 0.89 | AE5: 21.36 | AF5: 2.79 | AG5: 0.225153 | AH5: 4.75 | AI5: 4.75 | AJ5: 44.12 | AK5: 9.288421053 | AL5: 42.75281419 | AM5: 9.000592461 | AO5: 4.56 | AP5: 109.44 | AQ5: 6.75 | AR5: 6.75 | AS5: 0.64 | AT5: 0.051648 | AU5: 42.72 | AV5: 6.328888889 | AW5: 42.36926563 | AX5: 6.276928241
C6: 1.19 | D6: 28.56 | E6: 2.79 | F6: 0.225153 | G6: 4.75 | H6: 4.75 | I6: 41.83 | J6: 8.806315789 | K6: 42.17800409 | L6: 8.879579808 | M6: 0.005367616456 | N6: 2.109147546 | O6: 2.327316432 | Q6: OK | R6: =IF(Q6="OK",IF(COUNTIF($G$4:G5,G6)=0,_xlfn.CONCAT(G6," ",$G$3),""),"") ->  | S6: =IF(ISNUMBER(E6),IF(flag_hdiff_confirm>0,IF(G6=cell_hdiff_confirm,IF(COUNTIF($E$4:E5,E6)=0,MAX($S$4:S5)+1,MAX(MAX($S$4:S5),1)),""),IF(COUNTIF($E$4:E5,E6)=0,MAX($S$4:S5)+1,MAX(MAX($S$4:S5),1))),"") -> 1 | V6: 1.19 | X6: =IF(W6="OK",IF(COUNTIF($E$4:E5,E6)=0,_xlfn.CONCAT(E6," ",$E$3),""),"") ->  | Y6: =IF(ISNUMBER(G6),IF(flag_ddiff_confirm>0,IF(E6=cell_ddiff_confirm,IF(COUNTIF($G$4:G5,G6)=0,MAX($Y$4:Y5)+1,MAX(MAX($Y$4:Y5),1)),""),IF(COUNTIF($G$4:G5,G6)=0,MAX($Y$4:Y5)+1,MAX(MAX($Y$4:Y5),1))),"") ->  | AD6: 1.19 | AE6: 28.56 | AF6: 2.79 | AG6: 0.225153 | AH6: 4.75 | AI6: 4.75 | AJ6: 41.83 | AK6: 8.806315789 | AL6: 42.17800409 | AM6: 8.879579808 | AO6: 6.83 | AP6: 163.92 | AQ6: 6.75 | AR6: 6.75 | AS6: 0.64 | AT6: 0.051648 | AU6: 40.26 | AV6: 5.964444444 | AW6: 40.36938399 | AX6: 5.98064948
A7: Air flow unit selection | C7: 1.19 | D7: 28.56 | E7: 2.79 | F7: 0.225153 | G7: 4.75 | H7: 4.75 | I7: 41.78 | J7: 8.795789474 | K7: 42.17800409 | L7: 8.879579808 | M7: 0.007020820177 | N7: 2.078683814 | O7: 2.327316432 | Q7: OK | R7: =IF(Q7="OK",IF(COUNTIF($G$4:G6,G7)=0,_xlfn.CONCAT(G7," ",$G$3),""),"") ->  | S7: =IF(ISNUMBER(E7),IF(flag_hdiff_confirm>0,IF(G7=cell_hdiff_confirm,IF(COUNTIF($E$4:E6,E7)=0,MAX($S$4:S6)+1,MAX(MAX($S$4:S6),1)),""),IF(COUNTIF($E$4:E6,E7)=0,MAX($S$4:S6)+1,MAX(MAX($S$4:S6),1))),"") -> 1 | V7: 1.19 | X7: =IF(W7="OK",IF(COUNTIF($E$4:E6,E7)=0,_xlfn.CONCAT(E7," ",$E$3),""),"") ->  | Y7: =IF(ISNUMBER(G7),IF(flag_ddiff_confirm>0,IF(E7=cell_ddiff_confirm,IF(COUNTIF($G$4:G6,G7)=0,MAX($Y$4:Y6)+1,MAX(MAX($Y$4:Y6),1)),""),IF(COUNTIF($G$4:G6,G7)=0,MAX($Y$4:Y6)+1,MAX(MAX($Y$4:Y6),1))),"") ->  | AD7: 1.19 | AE7: 28.56 | AF7: 2.79 | AG7: 0.225153 | AH7: 4.75 | AI7: 4.75 | AJ7: 41.78 | AK7: 8.795789474 | AL7: 42.17800409 | AM7: 8.879579808 | AO7: 9.11 | AP7: 218.64 | AQ7: 6.75 | AR7: 6.75 | AS7: 0.64 | AT7: 0.051648 | AU7: 39.38 | AV7: 5.834074074 | AW7: 39.07853472 | AX7: 5.789412551
A8: m³/h at NTP | C8: 1.19 | D8: 28.56 | E8: 2.79 | F8: 0.225153 | G8: 4.75 | H8: 4.75 | I8: 41.85 | J8: 8.810526316 | K8: 42.17800409 | L8: 8.879579808 | M8: 0.004768384829 | N8: 2.121395089 | O8: 2.327316432 | Q8: OK | R8: =IF(Q8="OK",IF(COUNTIF($G$4:G7,G8)=0,_xlfn.CONCAT(G8," ",$G$3),""),"") ->  | S8: =IF(ISNUMBER(E8),IF(flag_hdiff_confirm>0,IF(G8=cell_hdiff_confirm,IF(COUNTIF($E$4:E7,E8)=0,MAX($S$4:S7)+1,MAX(MAX($S$4:S7),1)),""),IF(COUNTIF($E$4:E7,E8)=0,MAX($S$4:S7)+1,MAX(MAX($S$4:S7),1))),"") -> 1 | V8: 1.19 | X8: =IF(W8="OK",IF(COUNTIF($E$4:E7,E8)=0,_xlfn.CONCAT(E8," ",$E$3),""),"") ->  | Y8: =IF(ISNUMBER(G8),IF(flag_ddiff_confirm>0,IF(E8=cell_ddiff_confirm,IF(COUNTIF($G$4:G7,G8)=0,MAX($Y$4:Y7)+1,MAX(MAX($Y$4:Y7),1)),""),IF(COUNTIF($G$4:G7,G8)=0,MAX($Y$4:Y7)+1,MAX(MAX($Y$4:Y7),1))),"") ->  | AD8: 1.19 | AE8: 28.56 | AF8: 2.79 | AG8: 0.225153 | AH8: 4.75 | AI8: 4.75 | AJ8: 41.85 | AK8: 8.810526316 | AL8: 42.17800409 | AM8: 8.879579808 | AO8: 13.66 | AP8: 327.84 | AQ8: 6.75 | AR8: 6.75 | AS8: 0.64 | AT8: 0.051648 | AU8: 37.19 | AV8: 5.50962963 | AW8: 37.7197369 | AX8: 5.58810917
C9: 1.79 | D9: 42.96 | E9: 2.79 | F9: 0.225153 | G9: 4.75 | H9: 4.75 | I9: 40.75 | J9: 8.578947368 | K9: 41.12423035 | L9: 8.657732705 | M9: 0.00620712924 | N9: 1.500433973 | O9: 1.69965289 | Q9: OK | R9: =IF(Q9="OK",IF(COUNTIF($G$4:G8,G9)=0,_xlfn.CONCAT(G9," ",$G$3),""),"") ->  | S9: =IF(ISNUMBER(E9),IF(flag_hdiff_confirm>0,IF(G9=cell_hdiff_confirm,IF(COUNTIF($E$4:E8,E9)=0,MAX($S$4:S8)+1,MAX(MAX($S$4:S8),1)),""),IF(COUNTIF($E$4:E8,E9)=0,MAX($S$4:S8)+1,MAX(MAX($S$4:S8),1))),"") -> 1 | V9: 1.79 | X9: =IF(W9="OK",IF(COUNTIF($E$4:E8,E9)=0,_xlfn.CONCAT(E9," ",$E$3),""),"") ->  | Y9: =IF(ISNUMBER(G9),IF(flag_ddiff_confirm>0,IF(E9=cell_ddiff_confirm,IF(COUNTIF($G$4:G8,G9)=0,MAX($Y$4:Y8)+1,MAX(MAX($Y$4:Y8),1)),""),IF(COUNTIF($G$4:G8,G9)=0,MAX($Y$4:Y8)+1,MAX(MAX($Y$4:Y8),1))),"") ->  | AD9: 1.79 | AE9: 42.96 | AF9: 2.79 | AG9: 0.225153 | AH9: 4.75 | AI9: 4.75 | AJ9: 40.75 | AK9: 8.578947368 | AL9: 41.12423035 | AM9: 8.657732705 | AO9: 18.22 | AP9: 437.28 | AQ9: 6.75 | AR9: 6.75 | AS9: 0.64 | AT9: 0.051648 | AU9: 37.2 | AV9: 5.511111111 | AW9: 37.15790016 | AX9: 5.504874098
A10: Aeration efficiency selection | C10: 2.39 | D10: 57.36 | E10: 2.79 | F10: 0.225153 | G10: 4.75 | H10: 4.75 | I10: 39.74 | J10: 8.366315789 | K10: 40.18646998 | L10: 8.46030947 | M10: 0.008834811905 | N10: 1.024731952 | O10: 1.223864573 | Q10: OK | R10: =IF(Q10="OK",IF(COUNTIF($G$4:G9,G10)=0,_xlfn.CONCAT(G10," ",$G$3),""),"") ->  | S10: =IF(ISNUMBER(E10),IF(flag_hdiff_confirm>0,IF(G10=cell_hdiff_confirm,IF(COUNTIF($E$4:E9,E10)=0,MAX($S$4:S9)+1,MAX(MAX($S$4:S9),1)),""),IF(COUNTIF($E$4:E9,E10)=0,MAX($S$4:S9)+1,MAX(MAX($S$4:S9),1))),"") -> 1 | X10: =IF(W10="OK",IF(COUNTIF($E$4:E9,E10)=0,_xlfn.CONCAT(E10," ",$E$3),""),"") ->  | Y10: =IF(ISNUMBER(G10),IF(flag_ddiff_confirm>0,IF(E10=cell_ddiff_confirm,IF(COUNTIF($G$4:G9,G10)=0,MAX($Y$4:Y9)+1,MAX(MAX($Y$4:Y9),1)),""),IF(COUNTIF($G$4:G9,G10)=0,MAX($Y$4:Y9)+1,MAX(MAX($Y$4:Y9),1))),"") ->  | AD10: 2.39 | AE10: 57.36 | AF10: 2.79 | AG10: 0.225153 | AH10: 4.75 | AI10: 4.75 | AJ10: 39.74 | AK10: 8.366315789 | AL10: 40.18646998 | AM10: 8.46030947 | AO10: 2.28 | AP10: 54.72 | AQ10: 4.75 | AR10: 4.75 | AS10: 0.64 | AT10: 0.051648 | AU10: 35.58 | AV10: 7.490526316 | AW10: 35.57379958 | AX10: 7.489220964
A11: % | C11: 2.99 | D11: 71.76 | E11: 2.79 | F11: 0.225153 | G11: 4.75 | H11: 4.75 | I11: 38.94 | J11: 8.197894737 | K11: 39.3519507 | L11: 8.2846212 | M11: 0.007521479332 | N11: 0.712115557 | O11: 0.8660086517 | Q11: OK | R11: =IF(Q11="OK",IF(COUNTIF($G$4:G10,G11)=0,_xlfn.CONCAT(G11," ",$G$3),""),"") ->  | S11: =IF(ISNUMBER(E11),IF(flag_hdiff_confirm>0,IF(G11=cell_hdiff_confirm,IF(COUNTIF($E$4:E10,E11)=0,MAX($S$4:S10)+1,MAX(MAX($S$4:S10),1)),""),IF(COUNTIF($E$4:E10,E11)=0,MAX($S$4:S10)+1,MAX(MAX($S$4:S10),1))),"") -> 1 | X11: =IF(W11="OK",IF(COUNTIF($E$4:E10,E11)=0,_xlfn.CONCAT(E11," ",$E$3),""),"") ->  | Y11: =IF(ISNUMBER(G11),IF(flag_ddiff_confirm>0,IF(E11=cell_ddiff_confirm,IF(COUNTIF($G$4:G10,G11)=0,MAX($Y$4:Y10)+1,MAX(MAX($Y$4:Y10),1)),""),IF(COUNTIF($G$4:G10,G11)=0,MAX($Y$4:Y10)+1,MAX(MAX($Y$4:Y10),1))),"") ->  | AD11: 2.99 | AE11: 71.76 | AF11: 2.79 | AG11: 0.225153 | AH11: 4.75 | AI11: 4.75 | AJ11: 38.94 | AK11: 8.197894737 | AL11: 39.3519507 | AM11: 8.2846212 | AO11: 4.56 | AP11: 109.44 | AQ11: 4.75 | AR11: 4.75 | AS11: 0.64 | AT11: 0.051648 | AU11: 32.95 | AV11: 6.936842105 | AW11: 33.12938169 | AX11: 6.974606672
C12: 3.58 | D12: 85.92 | E12: 2.79 | F12: 0.225153 | G12: 4.75 | H12: 4.75 | I12: 38.03 | J12: 8.006315789 | K12: 38.6209873 | L12: 8.130734168 | M12: 0.01547993285 | N12: 0.425482829 | O12: 0.6032766013 | Q12: OK | R12: =IF(Q12="OK",IF(COUNTIF($G$4:G11,G12)=0,_xlfn.CONCAT(G12," ",$G$3),""),"") ->  | S12: =IF(ISNUMBER(E12),IF(flag_hdiff_confirm>0,IF(G12=cell_hdiff_confirm,IF(COUNTIF($E$4:E11,E12)=0,MAX($S$4:S11)+1,MAX(MAX($S$4:S11),1)),""),IF(COUNTIF($E$4:E11,E12)=0,MAX($S$4:S11)+1,MAX(MAX($S$4:S11),1))),"") -> 1 | X12: =IF(W12="OK",IF(COUNTIF($E$4:E11,E12)=0,_xlfn.CONCAT(E12," ",$E$3),""),"") ->  | Y12: =IF(ISNUMBER(G12),IF(flag_ddiff_confirm>0,IF(E12=cell_ddiff_confirm,IF(COUNTIF($G$4:G11,G12)=0,MAX($Y$4:Y11)+1,MAX(MAX($Y$4:Y11),1)),""),IF(COUNTIF($G$4:G11,G12)=0,MAX($Y$4:Y11)+1,MAX(MAX($Y$4:Y11),1))),"") ->  | AD12: 3.58 | AE12: 85.92 | AF12: 2.79 | AG12: 0.225153 | AH12: 4.75 | AI12: 4.75 | AJ12: 38.03 | AK12: 8.006315789 | AL12: 38.6209873 | AM12: 8.130734168 | AO12: 6.83 | AP12: 163.92 | AQ12: 4.75 | AR12: 4.75 | AS12: 0.64 | AT12: 0.051648 | AU12: 32 | AV12: 6.736842105 | AW12: 31.56563398 | AX12: 6.645396627
A13: Diffuser density selection | C13: 5.38 | D13: 129.12 | E13: 2.79 | F13: 0.225153 | G13: 4.75 | H13: 4.75 | I13: 37.37 | J13: 7.867368421 | K13: 36.84515223 | L13: 7.756874153 | M13: 0.01220898331 | N13: 0.2635211177 | O13: 0.1622871651 | Q13: OK | R13: =IF(Q13="OK",IF(COUNTIF($G$4:G12,G13)=0,_xlfn.CONCAT(G13," ",$G$3),""),"") ->  | S13: =IF(ISNUMBER(E13),IF(flag_hdiff_confirm>0,IF(G13=cell_hdiff_confirm,IF(COUNTIF($E$4:E12,E13)=0,MAX($S$4:S12)+1,MAX(MAX($S$4:S12),1)),""),IF(COUNTIF($E$4:E12,E13)=0,MAX($S$4:S12)+1,MAX(MAX($S$4:S12),1))),"") -> 1 | X13: =IF(W13="OK",IF(COUNTIF($E$4:E12,E13)=0,_xlfn.CONCAT(E13," ",$E$3),""),"") ->  | Y13: =IF(ISNUMBER(G13),IF(flag_ddiff_confirm>0,IF(E13=cell_ddiff_confirm,IF(COUNTIF($G$4:G12,G13)=0,MAX($Y$4:Y12)+1,MAX(MAX($Y$4:Y12),1)),""),IF(COUNTIF($G$4:G12,G13)=0,MAX($Y$4:Y12)+1,MAX(MAX($Y$4:Y12),1))),"") ->  | AD13: 5.38 | AE13: 129.12 | AF13: 2.79 | AG13: 0.225153 | AH13: 4.75 | AI13: 4.75 | AJ13: 37.37 | AK13: 7.867368421 | AL13: 36.84515223 | AM13: 7.756874153 | AO13: 9.11 | AP13: 218.64 | AQ13: 4.75 | AR13: 4.75 | AS13: 0.64 | AT13: 0.051648 | AU13: 30.91 | AV13: 6.507368421 | AW13: 30.55629295 | AX13: 6.432903779
A14: diff/m² | C14: 7.17 | D14: 172.08 | E14: 2.79 | F14: 0.225153 | G14: 4.75 | H14: 4.75 | I14: 35.51 | J14: 7.475789474 | K14: 35.59944986 | L14: 7.494621023 | M14: 0.0003546272593 | N14: 0.01482650398 | O14: 0.01976714583 | Q14: OK | R14: =IF(Q14="OK",IF(COUNTIF($G$4:G13,G14)=0,_xlfn.CONCAT(G14," ",$G$3),""),"") ->  | S14: =IF(ISNUMBER(E14),IF(flag_hdiff_confirm>0,IF(G14=cell_hdiff_confirm,IF(COUNTIF($E$4:E13,E14)=0,MAX($S$4:S13)+1,MAX(MAX($S$4:S13),1)),""),IF(COUNTIF($E$4:E13,E14)=0,MAX($S$4:S13)+1,MAX(MAX($S$4:S13),1))),"") -> 1 | X14: =IF(W14="OK",IF(COUNTIF($E$4:E13,E14)=0,_xlfn.CONCAT(E14," ",$E$3),""),"") ->  | Y14: =IF(ISNUMBER(G14),IF(flag_ddiff_confirm>0,IF(E14=cell_ddiff_confirm,IF(COUNTIF($G$4:G13,G14)=0,MAX($Y$4:Y13)+1,MAX(MAX($Y$4:Y13),1)),""),IF(COUNTIF($G$4:G13,G14)=0,MAX($Y$4:Y13)+1,MAX(MAX($Y$4:Y13),1))),"") ->  | AD14: 7.17 | AE14: 172.08 | AF14: 2.79 | AG14: 0.225153 | AH14: 4.75 | AI14: 4.75 | AJ14: 35.51 | AK14: 7.475789474 | AL14: 35.59944986 | AM14: 7.494621023 | AO14: 13.66 | AP14: 327.84 | AQ14: 4.75 | AR14: 4.75 | AS14: 0.64 | AT14: 0.051648 | AU14: 29.7 | AV14: 6.252631579 | AW14: 29.49382158 | AX14: 6.209225596
C15: 10.39 | D15: 249.36 | E15: 2.79 | F15: 0.225153 | G15: 4.75 | H15: 4.75 | I15: 34.91 | J15: 7.349473684 | K15: 34.20690606 | L15: 7.201453907 | M15: 0.02190985459 | N15: 2.071758072e-05 | O15: 0.02327804266 | Q15: OK | R15: =IF(Q15="OK",IF(COUNTIF($G$4:G14,G15)=0,_xlfn.CONCAT(G15," ",$G$3),""),"") ->  | S15: =IF(ISNUMBER(E15),IF(flag_hdiff_confirm>0,IF(G15=cell_hdiff_confirm,IF(COUNTIF($E$4:E14,E15)=0,MAX($S$4:S14)+1,MAX(MAX($S$4:S14),1)),""),IF(COUNTIF($E$4:E14,E15)=0,MAX($S$4:S14)+1,MAX(MAX($S$4:S14),1))),"") -> 1 | X15: =IF(W15="OK",IF(COUNTIF($E$4:E14,E15)=0,_xlfn.CONCAT(E15," ",$E$3),""),"") ->  | Y15: =IF(ISNUMBER(G15),IF(flag_ddiff_confirm>0,IF(E15=cell_ddiff_confirm,IF(COUNTIF($G$4:G14,G15)=0,MAX($Y$4:Y14)+1,MAX(MAX($Y$4:Y14),1)),""),IF(COUNTIF($G$4:G14,G15)=0,MAX($Y$4:Y14)+1,MAX(MAX($Y$4:Y14),1))),"") ->  | AD15: 10.39 | AE15: 249.36 | AF15: 2.79 | AG15: 0.225153 | AH15: 4.75 | AI15: 4.75 | AJ15: 34.91 | AK15: 7.349473684 | AL15: 34.20690606 | AM15: 7.201453907 | AO15: 18.22 | AP15: 437.28 | AQ15: 4.75 | AR15: 4.75 | AS15: 0.64 | AT15: 0.051648 | AU15: 28.2 | AV15: 5.936842105 | AW15: 29.05451013 | AX15: 6.116738974
A16: Diffuser submergence selection | C16: 2.28 | D16: 54.72 | E16: 0.64 | F16: 0.051648 | G16: 4.75 | H16: 4.75 | I16: 35.58 | J16: 7.490526316 | K16: 35.57379958 | L16: 7.489220964 | M16: 1.703942091e-06 | N16: 0.01863251608 | O16: 0.01827785657 | Q16: OK | R16: =IF(Q16="OK",IF(COUNTIF($G$4:G15,G16)=0,_xlfn.CONCAT(G16," ",$G$3),""),"") ->  | S16: =IF(ISNUMBER(E16),IF(flag_hdiff_confirm>0,IF(G16=cell_hdiff_confirm,IF(COUNTIF($E$4:E15,E16)=0,MAX($S$4:S15)+1,MAX(MAX($S$4:S15),1)),""),IF(COUNTIF($E$4:E15,E16)=0,MAX($S$4:S15)+1,MAX(MAX($S$4:S15),1))),"") -> 2 | T16: 2.28 | U16: 18.22 | W16: OK | X16: =IF(W16="OK",IF(COUNTIF($E$4:E15,E16)=0,_xlfn.CONCAT(E16," ",$E$3),""),"") -> 0.64 diff/m² | Y16: =IF(ISNUMBER(G16),IF(flag_ddiff_confirm>0,IF(E16=cell_ddiff_confirm,IF(COUNTIF($G$4:G15,G16)=0,MAX($Y$4:Y15)+1,MAX(MAX($Y$4:Y15),1)),""),IF(COUNTIF($G$4:G15,G16)=0,MAX($Y$4:Y15)+1,MAX(MAX($Y$4:Y15),1))),"") -> 1 | Z16: 2.28 | AA16: 18.22 | AD16: 13.66 | AE16: 327.84 | AF16: 2.79 | AG16: 0.225153 | AH16: 4.75 | AI16: 4.75 | AL16: 33.45396778 | AM16: 7.042940585
A17: m | C17: 4.56 | D17: 109.44 | E17: 0.64 | F17: 0.051648 | G17: 4.75 | H17: 4.75 | I17: 32.95 | J17: 6.936842105 | K17: 33.12938169 | L17: 6.974606672 | M17: 0.001426162464 | N17: 0.1740418523 | O17: 0.1439585269 | Q17: OK | R17: =IF(Q17="OK",IF(COUNTIF($G$4:G16,G17)=0,_xlfn.CONCAT(G17," ",$G$3),""),"") ->  | S17: =IF(ISNUMBER(E17),IF(flag_hdiff_confirm>0,IF(G17=cell_hdiff_confirm,IF(COUNTIF($E$4:E16,E17)=0,MAX($S$4:S16)+1,MAX(MAX($S$4:S16),1)),""),IF(COUNTIF($E$4:E16,E17)=0,MAX($S$4:S16)+1,MAX(MAX($S$4:S16),1))),"") -> 2 | W17: OK | X17: =IF(W17="OK",IF(COUNTIF($E$4:E16,E17)=0,_xlfn.CONCAT(E17," ",$E$3),""),"") ->  | Y17: =IF(ISNUMBER(G17),IF(flag_ddiff_confirm>0,IF(E17=cell_ddiff_confirm,IF(COUNTIF($G$4:G16,G17)=0,MAX($Y$4:Y16)+1,MAX(MAX($Y$4:Y16),1)),""),IF(COUNTIF($G$4:G16,G17)=0,MAX($Y$4:Y16)+1,MAX(MAX($Y$4:Y16),1))),"") -> 1 | AD17: 18.22 | AE17: 437.28 | AF17: 2.79 | AG17: 0.225153 | AH17: 4.75 | AI17: 4.75 | AL17: 32.95566982 | AM17: 6.938035751
C18: 6.83 | D18: 163.92 | E18: 0.64 | F18: 0.051648 | G18: 4.75 | H18: 4.75 | I18: 32 | J18: 6.736842105 | K18: 31.56563398 | L18: 6.645396627 | M18: 0.008362275431 | N18: 0.3809151466 | O18: 0.502154654 | Q18: OK | R18: =IF(Q18="OK",IF(COUNTIF($G$4:G17,G18)=0,_xlfn.CONCAT(G18," ",$G$3),""),"") ->  | S18: =IF(ISNUMBER(E18),IF(flag_hdiff_confirm>0,IF(G18=cell_hdiff_confirm,IF(COUNTIF($E$4:E17,E18)=0,MAX($S$4:S17)+1,MAX(MAX($S$4:S17),1)),""),IF(COUNTIF($E$4:E17,E18)=0,MAX($S$4:S17)+1,MAX(MAX($S$4:S17),1))),"") -> 2 | W18: OK | X18: =IF(W18="OK",IF(COUNTIF($E$4:E17,E18)=0,_xlfn.CONCAT(E18," ",$E$3),""),"") ->  | Y18: =IF(ISNUMBER(G18),IF(flag_ddiff_confirm>0,IF(E18=cell_ddiff_confirm,IF(COUNTIF($G$4:G17,G18)=0,MAX($Y$4:Y17)+1,MAX(MAX($Y$4:Y17),1)),""),IF(COUNTIF($G$4:G17,G18)=0,MAX($Y$4:Y17)+1,MAX(MAX($Y$4:Y17),1))),"") -> 1 | AD18: 0.6 | AE18: 14.4 | AF18: 0.64 | AG18: 0.051648 | AH18: 4.75 | AI18: 4.75 | AL18: 38.21069141 | AM18: 8.044356087
A19: Diffuser area unit selection | C19: 9.11 | D19: 218.64 | E19: 0.64 | F19: 0.051648 | G19: 4.75 | H19: 4.75 | I19: 30.91 | J19: 6.507368421 | K19: 30.55629295 | L19: 6.432903779 | M19: 0.005544982848 | N19: 0.7168279403 | O19: 0.8484649314 | Q19: OK | R19: =IF(Q19="OK",IF(COUNTIF($G$4:G18,G19)=0,_xlfn.CONCAT(G19," ",$G$3),""),"") ->  | S19: =IF(ISNUMBER(E19),IF(flag_hdiff_confirm>0,IF(G19=cell_hdiff_confirm,IF(COUNTIF($E$4:E18,E19)=0,MAX($S$4:S18)+1,MAX(MAX($S$4:S18),1)),""),IF(COUNTIF($E$4:E18,E19)=0,MAX($S$4:S18)+1,MAX(MAX($S$4:S18),1))),"") -> 2 | W19: OK | X19: =IF(W19="OK",IF(COUNTIF($E$4:E18,E19)=0,_xlfn.CONCAT(E19," ",$E$3),""),"") ->  | Y19: =IF(ISNUMBER(G19),IF(flag_ddiff_confirm>0,IF(E19=cell_ddiff_confirm,IF(COUNTIF($G$4:G18,G19)=0,MAX($Y$4:Y18)+1,MAX(MAX($Y$4:Y18),1)),""),IF(COUNTIF($G$4:G18,G19)=0,MAX($Y$4:Y18)+1,MAX(MAX($Y$4:Y18),1))),"") -> 1 | AD19: 0.89 | AE19: 21.36 | AF19: 0.64 | AG19: 0.051648 | AH19: 4.75 | AI19: 4.75 | AL19: 37.69190794 | AM19: 7.935138514
A20: m² | C20: 13.66 | D20: 327.84 | E20: 0.64 | F20: 0.051648 | G20: 4.75 | H20: 4.75 | I20: 29.7 | J20: 6.252631579 | K20: 29.49382158 | L20: 6.209225596 | M20: 0.001884079359 | N20: 1.213068219 | O20: 1.310566457 | Q20: OK | R20: =IF(Q20="OK",IF(COUNTIF($G$4:G19,G20)=0,_xlfn.CONCAT(G20," ",$G$3),""),"") ->  | S20: =IF(ISNUMBER(E20),IF(flag_hdiff_confirm>0,IF(G20=cell_hdiff_confirm,IF(COUNTIF($E$4:E19,E20)=0,MAX($S$4:S19)+1,MAX(MAX($S$4:S19),1)),""),IF(COUNTIF($E$4:E19,E20)=0,MAX($S$4:S19)+1,MAX(MAX($S$4:S19),1))),"") -> 2 | V20: 13.66 | W20: OK | X20: =IF(W20="OK",IF(COUNTIF($E$4:E19,E20)=0,_xlfn.CONCAT(E20," ",$E$3),""),"") ->  | Y20: =IF(ISNUMBER(G20),IF(flag_ddiff_confirm>0,IF(E20=cell_ddiff_confirm,IF(COUNTIF($G$4:G19,G20)=0,MAX($Y$4:Y19)+1,MAX(MAX($Y$4:Y19),1)),""),IF(COUNTIF($G$4:G19,G20)=0,MAX($Y$4:Y19)+1,MAX(MAX($Y$4:Y19),1))),"") -> 1 | AD20: 1.19 | AE20: 28.56 | AF20: 0.64 | AG20: 0.051648 | AH20: 4.75 | AI20: 4.75 | AL20: 37.18514155 | AM20: 7.828450853
C21: 18.22 | D21: 437.28 | E21: 0.64 | F21: 0.051648 | G21: 4.75 | H21: 4.75 | I21: 28.2 | J21: 5.936842105 | K21: 29.05451013 | L21: 6.116738974 | M21: 0.03236288351 | N21: 2.008408324 | O21: 1.530877553 | Q21: OK | R21: =IF(Q21="OK",IF(COUNTIF($G$4:G20,G21)=0,_xlfn.CONCAT(G21," ",$G$3),""),"") ->  | S21: =IF(ISNUMBER(E21),IF(flag_hdiff_confirm>0,IF(G21=cell_hdiff_confirm,IF(COUNTIF($E$4:E20,E21)=0,MAX($S$4:S20)+1,MAX(MAX($S$4:S20),1)),""),IF(COUNTIF($E$4:E20,E21)=0,MAX($S$4:S20)+1,MAX(MAX($S$4:S20),1))),"") -> 2 | V21: 18.22 | W21: OK | X21: =IF(W21="OK",IF(COUNTIF($E$4:E20,E21)=0,_xlfn.CONCAT(E21," ",$E$3),""),"") ->  | Y21: =IF(ISNUMBER(G21),IF(flag_ddiff_confirm>0,IF(E21=cell_ddiff_confirm,IF(COUNTIF($G$4:G20,G21)=0,MAX($Y$4:Y20)+1,MAX(MAX($Y$4:Y20),1)),""),IF(COUNTIF($G$4:G20,G21)=0,MAX($Y$4:Y20)+1,MAX(MAX($Y$4:Y20),1))),"") -> 1 | AD21: 1.19 | AE21: 28.56 | AF21: 0.64 | AG21: 0.051648 | AH21: 4.75 | AI21: 4.75 | AL21: 37.18514155 | AM21: 7.828450853
C22: 2.28 | D22: 54.72 | E22: 0.64 | F22: 0.051648 | G22: 6.75 | H22: 6.75 | I22: 45.41 | J22: 6.727407407 | K22: 45.495439 | L22: 6.740065037 | M22: 0.0001602155866 | N22: 0.3926500349 | O22: 0.3769472551 | R22: =IF(Q22="OK",IF(COUNTIF($G$4:G21,G22)=0,_xlfn.CONCAT(G22," ",$G$3),""),"") ->  | S22: =IF(ISNUMBER(E22),IF(flag_hdiff_confirm>0,IF(G22=cell_hdiff_confirm,IF(COUNTIF($E$4:E21,E22)=0,MAX($S$4:S21)+1,MAX(MAX($S$4:S21),1)),""),IF(COUNTIF($E$4:E21,E22)=0,MAX($S$4:S21)+1,MAX(MAX($S$4:S21),1))),"") ->  | W22: OK | X22: =IF(W22="OK",IF(COUNTIF($E$4:E21,E22)=0,_xlfn.CONCAT(E22," ",$E$3),""),"") ->  | Y22: =IF(ISNUMBER(G22),IF(flag_ddiff_confirm>0,IF(E22=cell_ddiff_confirm,IF(COUNTIF($G$4:G21,G22)=0,MAX($Y$4:Y21)+1,MAX(MAX($Y$4:Y21),1)),""),IF(COUNTIF($G$4:G21,G22)=0,MAX($Y$4:Y21)+1,MAX(MAX($Y$4:Y21),1))),"") -> 2 | Z22: 2.28 | AA22: 18.22 | AD22: 1.19 | AE22: 28.56 | AF22: 0.64 | AG22: 0.051648 | AH22: 4.75 | AI22: 4.75 | AL22: 37.18514155 | AM22: 7.828450853
C23: 4.56 | D23: 109.44 | E23: 0.64 | F23: 0.051648 | G23: 6.75 | H23: 6.75 | I23: 42.72 | J23: 6.328888889 | K23: 42.36926563 | L23: 6.276928241 | M23: 0.00269990895 | N23: 1.050904746 | O23: 1.160138164 | R23: =IF(Q23="OK",IF(COUNTIF($G$4:G22,G23)=0,_xlfn.CONCAT(G23," ",$G$3),""),"") ->  | S23: =IF(ISNUMBER(E23),IF(flag_hdiff_confirm>0,IF(G23=cell_hdiff_confirm,IF(COUNTIF($E$4:E22,E23)=0,MAX($S$4:S22)+1,MAX(MAX($S$4:S22),1)),""),IF(COUNTIF($E$4:E22,E23)=0,MAX($S$4:S22)+1,MAX(MAX($S$4:S22),1))),"") ->  | W23: OK | X23: =IF(W23="OK",IF(COUNTIF($E$4:E22,E23)=0,_xlfn.CONCAT(E23," ",$E$3),""),"") ->  | Y23: =IF(ISNUMBER(G23),IF(flag_ddiff_confirm>0,IF(E23=cell_ddiff_confirm,IF(COUNTIF($G$4:G22,G23)=0,MAX($Y$4:Y22)+1,MAX(MAX($Y$4:Y22),1)),""),IF(COUNTIF($G$4:G22,G23)=0,MAX($Y$4:Y22)+1,MAX(MAX($Y$4:Y22),1))),"") -> 2 | AD23: 1.79 | AE23: 42.96 | AF23: 0.64 | AG23: 0.051648 | AH23: 4.75 | AI23: 4.75 | AL23: 36.25610931 | AM23: 7.632865117
C24: 6.83 | D24: 163.92 | E24: 0.64 | F24: 0.051648 | G24: 6.75 | H24: 6.75 | I24: 40.26 | J24: 5.964444444 | K24: 40.36938399 | L24: 5.98064948 | M24: 0.0002626031696 | N24: 1.930935068 | O24: 1.886161257 | R24: =IF(Q24="OK",IF(COUNTIF($G$4:G23,G24)=0,_xlfn.CONCAT(G24," ",$G$3),""),"") ->  | S24: =IF(ISNUMBER(E24),IF(flag_hdiff_confirm>0,IF(G24=cell_hdiff_confirm,IF(COUNTIF($E$4:E23,E24)=0,MAX($S$4:S23)+1,MAX(MAX($S$4:S23),1)),""),IF(COUNTIF($E$4:E23,E24)=0,MAX($S$4:S23)+1,MAX(MAX($S$4:S23),1))),"") ->  | W24: OK | X24: =IF(W24="OK",IF(COUNTIF($E$4:E23,E24)=0,_xlfn.CONCAT(E24," ",$E$3),""),"") ->  | Y24: =IF(ISNUMBER(G24),IF(flag_ddiff_confirm>0,IF(E24=cell_ddiff_confirm,IF(COUNTIF($G$4:G23,G24)=0,MAX($Y$4:Y23)+1,MAX(MAX($Y$4:Y23),1)),""),IF(COUNTIF($G$4:G23,G24)=0,MAX($Y$4:Y23)+1,MAX(MAX($Y$4:Y23),1))),"") -> 2 | AD24: 2.28 | AE24: 54.72 | AF24: 0.64 | AG24: 0.051648 | AH24: 4.75 | AI24: 4.75 | AJ24: 35.58 | AK24: 7.490526316 | AL24: 35.57379958 | AM24: 7.489220964
C25: 9.11 | D25: 218.64 | E25: 0.64 | F25: 0.051648 | G25: 6.75 | H25: 6.75 | I25: 39.38 | J25: 5.834074074 | K25: 39.07853472 | L25: 5.789412551 | M25: 0.001994651627 | N25: 2.310251854 | O25: 2.448013182 | R25: =IF(Q25="OK",IF(COUNTIF($G$4:G24,G25)=0,_xlfn.CONCAT(G25," ",$G$3),""),"") ->  | S25: =IF(ISNUMBER(E25),IF(flag_hdiff_confirm>0,IF(G25=cell_hdiff_confirm,IF(COUNTIF($E$4:E24,E25)=0,MAX($S$4:S24)+1,MAX(MAX($S$4:S24),1)),""),IF(COUNTIF($E$4:E24,E25)=0,MAX($S$4:S24)+1,MAX(MAX($S$4:S24),1))),"") ->  | W25: OK | X25: =IF(W25="OK",IF(COUNTIF($E$4:E24,E25)=0,_xlfn.CONCAT(E25," ",$E$3),""),"") ->  | Y25: =IF(ISNUMBER(G25),IF(flag_ddiff_confirm>0,IF(E25=cell_ddiff_confirm,IF(COUNTIF($G$4:G24,G25)=0,MAX($Y$4:Y24)+1,MAX(MAX($Y$4:Y24),1)),""),IF(COUNTIF($G$4:G24,G25)=0,MAX($Y$4:Y24)+1,MAX(MAX($Y$4:Y24),1))),"") -> 2 | AD25: 4.56 | AE25: 109.44 | AF25: 0.64 | AG25: 0.051648 | AH25: 4.75 | AI25: 4.75 | AJ25: 32.95 | AK25: 6.936842105 | AL25: 33.12938169 | AM25: 6.974606672
C26: 13.66 | D26: 327.84 | E26: 0.64 | F26: 0.051648 | G26: 6.75 | H26: 6.75 | I26: 37.19 | J26: 5.50962963 | K26: 37.7197369 | L26: 5.58810917 | M26: 0.006159038224 | N26: 3.401795541 | O26: 3.118459924 | R26: =IF(Q26="OK",IF(COUNTIF($G$4:G25,G26)=0,_xlfn.CONCAT(G26," ",$G$3),""),"") ->  | S26: =IF(ISNUMBER(E26),IF(flag_hdiff_confirm>0,IF(G26=cell_hdiff_confirm,IF(COUNTIF($E$4:E25,E26)=0,MAX($S$4:S25)+1,MAX(MAX($S$4:S25),1)),""),IF(COUNTIF($E$4:E25,E26)=0,MAX($S$4:S25)+1,MAX(MAX($S$4:S25),1))),"") ->  | W26: OK | X26: =IF(W26="OK",IF(COUNTIF($E$4:E25,E26)=0,_xlfn.CONCAT(E26," ",$E$3),""),"") ->  | Y26: =IF(ISNUMBER(G26),IF(flag_ddiff_confirm>0,IF(E26=cell_ddiff_confirm,IF(COUNTIF($G$4:G25,G26)=0,MAX($Y$4:Y25)+1,MAX(MAX($Y$4:Y25),1)),""),IF(COUNTIF($G$4:G25,G26)=0,MAX($Y$4:Y25)+1,MAX(MAX($Y$4:Y25),1))),"") -> 2 | AD26: 6.83 | AE26: 163.92 | AF26: 0.64 | AG26: 0.051648 | AH26: 4.75 | AI26: 4.75 | AJ26: 32 | AK26: 6.736842105 | AL26: 31.56563398 | AM26: 6.645396627
C27: 18.22 | D27: 437.28 | E27: 0.64 | F27: 0.051648 | G27: 6.75 | H27: 6.75 | I27: 37.2 | J27: 5.511111111 | K27: 37.15790016 | L27: 5.504874098 | M27: 3.890033264e-05 | N27: 3.396332859 | O27: 3.41936032 | R27: =IF(Q27="OK",IF(COUNTIF($G$4:G26,G27)=0,_xlfn.CONCAT(G27," ",$G$3),""),"") ->  | S27: =IF(ISNUMBER(E27),IF(flag_hdiff_confirm>0,IF(G27=cell_hdiff_confirm,IF(COUNTIF($E$4:E26,E27)=0,MAX($S$4:S26)+1,MAX(MAX($S$4:S26),1)),""),IF(COUNTIF($E$4:E26,E27)=0,MAX($S$4:S26)+1,MAX(MAX($S$4:S26),1))),"") ->  | W27: OK | X27: =IF(W27="OK",IF(COUNTIF($E$4:E26,E27)=0,_xlfn.CONCAT(E27," ",$E$3),""),"") ->  | Y27: =IF(ISNUMBER(G27),IF(flag_ddiff_confirm>0,IF(E27=cell_ddiff_confirm,IF(COUNTIF($G$4:G26,G27)=0,MAX($Y$4:Y26)+1,MAX(MAX($Y$4:Y26),1)),""),IF(COUNTIF($G$4:G26,G27)=0,MAX($Y$4:Y26)+1,MAX(MAX($Y$4:Y26),1))),"") -> 2 | AD27: 9.11 | AE27: 218.64 | AF27: 0.64 | AG27: 0.051648 | AH27: 4.75 | AI27: 4.75 | AJ27: 30.91 | AK27: 6.507368421 | AL27: 30.55629295 | AM27: 6.432903779
R28: =IF(Q28="OK",IF(COUNTIF($G$4:G27,G28)=0,_xlfn.CONCAT(G28," ",$G$3),""),"") ->  | S28: =IF(ISNUMBER(E28),IF(flag_hdiff_confirm>0,IF(G28=cell_hdiff_confirm,IF(COUNTIF($E$4:E27,E28)=0,MAX($S$4:S27)+1,MAX(MAX($S$4:S27),1)),""),IF(COUNTIF($E$4:E27,E28)=0,MAX($S$4:S27)+1,MAX(MAX($S$4:S27),1))),"") ->  | X28: =IF(W28="OK",IF(COUNTIF($E$4:E27,E28)=0,_xlfn.CONCAT(E28," ",$E$3),""),"") ->  | Y28: =IF(ISNUMBER(G28),IF(flag_ddiff_confirm>0,IF(E28=cell_ddiff_confirm,IF(COUNTIF($G$4:G27,G28)=0,MAX($Y$4:Y27)+1,MAX(MAX($Y$4:Y27),1)),""),IF(COUNTIF($G$4:G27,G28)=0,MAX($Y$4:Y27)+1,MAX(MAX($Y$4:Y27),1))),"") ->  | AD28: 13.66 | AE28: 327.84 | AF28: 0.64 | AG28: 0.051648 | AH28: 4.75 | AI28: 4.75 | AJ28: 29.7 | AK28: 6.252631579 | AL28: 29.49382158 | AM28: 6.209225596
R29: =IF(Q29="OK",IF(COUNTIF($G$4:G28,G29)=0,_xlfn.CONCAT(G29," ",$G$3),""),"") ->  | S29: =IF(ISNUMBER(E29),IF(flag_hdiff_confirm>0,IF(G29=cell_hdiff_confirm,IF(COUNTIF($E$4:E28,E29)=0,MAX($S$4:S28)+1,MAX(MAX($S$4:S28),1)),""),IF(COUNTIF($E$4:E28,E29)=0,MAX($S$4:S28)+1,MAX(MAX($S$4:S28),1))),"") ->  | X29: =IF(W29="OK",IF(COUNTIF($E$4:E28,E29)=0,_xlfn.CONCAT(E29," ",$E$3),""),"") ->  | Y29: =IF(ISNUMBER(G29),IF(flag_ddiff_confirm>0,IF(E29=cell_ddiff_confirm,IF(COUNTIF($G$4:G28,G29)=0,MAX($Y$4:Y28)+1,MAX(MAX($Y$4:Y28),1)),""),IF(COUNTIF($G$4:G28,G29)=0,MAX($Y$4:Y28)+1,MAX(MAX($Y$4:Y28),1))),"") ->  | AD29: 18.22 | AE29: 437.28 | AF29: 0.64 | AG29: 0.051648 | AH29: 4.75 | AI29: 4.75 | AJ29: 28.2 | AK29: 5.936842105 | AL29: 29.05451013 | AM29: 6.116738974
R30: =IF(Q30="OK",IF(COUNTIF($G$4:G29,G30)=0,_xlfn.CONCAT(G30," ",$G$3),""),"") ->  | S30: =IF(ISNUMBER(E30),IF(flag_hdiff_confirm>0,IF(G30=cell_hdiff_confirm,IF(COUNTIF($E$4:E29,E30)=0,MAX($S$4:S29)+1,MAX(MAX($S$4:S29),1)),""),IF(COUNTIF($E$4:E29,E30)=0,MAX($S$4:S29)+1,MAX(MAX($S$4:S29),1))),"") ->  | X30: =IF(W30="OK",IF(COUNTIF($E$4:E29,E30)=0,_xlfn.CONCAT(E30," ",$E$3),""),"") ->  | Y30: =IF(ISNUMBER(G30),IF(flag_ddiff_confirm>0,IF(E30=cell_ddiff_confirm,IF(COUNTIF($G$4:G29,G30)=0,MAX($Y$4:Y29)+1,MAX(MAX($Y$4:Y29),1)),""),IF(COUNTIF($G$4:G29,G30)=0,MAX($Y$4:Y29)+1,MAX(MAX($Y$4:Y29),1))),"") -> 
R31: =IF(Q31="OK",IF(COUNTIF($G$4:G30,G31)=0,_xlfn.CONCAT(G31," ",$G$3),""),"") ->  | S31: =IF(ISNUMBER(E31),IF(flag_hdiff_confirm>0,IF(G31=cell_hdiff_confirm,IF(COUNTIF($E$4:E30,E31)=0,MAX($S$4:S30)+1,MAX(MAX($S$4:S30),1)),""),IF(COUNTIF($E$4:E30,E31)=0,MAX($S$4:S30)+1,MAX(MAX($S$4:S30),1))),"") ->  | X31: =IF(W31="OK",IF(COUNTIF($E$4:E30,E31)=0,_xlfn.CONCAT(E31," ",$E$3),""),"") ->  | Y31: =IF(ISNUMBER(G31),IF(flag_ddiff_confirm>0,IF(E31=cell_ddiff_confirm,IF(COUNTIF($G$4:G30,G31)=0,MAX($Y$4:Y30)+1,MAX(MAX($Y$4:Y30),1)),""),IF(COUNTIF($G$4:G30,G31)=0,MAX($Y$4:Y30)+1,MAX(MAX($Y$4:Y30),1))),"") -> 
R32: =IF(Q32="OK",IF(COUNTIF($G$4:G31,G32)=0,_xlfn.CONCAT(G32," ",$G$3),""),"") ->  | S32: =IF(ISNUMBER(E32),IF(flag_hdiff_confirm>0,IF(G32=cell_hdiff_confirm,IF(COUNTIF($E$4:E31,E32)=0,MAX($S$4:S31)+1,MAX(MAX($S$4:S31),1)),""),IF(COUNTIF($E$4:E31,E32)=0,MAX($S$4:S31)+1,MAX(MAX($S$4:S31),1))),"") ->  | X32: =IF(W32="OK",IF(COUNTIF($E$4:E31,E32)=0,_xlfn.CONCAT(E32," ",$E$3),""),"") ->  | Y32: =IF(ISNUMBER(G32),IF(flag_ddiff_confirm>0,IF(E32=cell_ddiff_confirm,IF(COUNTIF($G$4:G31,G32)=0,MAX($Y$4:Y31)+1,MAX(MAX($Y$4:Y31),1)),""),IF(COUNTIF($G$4:G31,G32)=0,MAX($Y$4:Y31)+1,MAX(MAX($Y$4:Y31),1))),"") -> 
R33: =IF(Q33="OK",IF(COUNTIF($G$4:G32,G33)=0,_xlfn.CONCAT(G33," ",$G$3),""),"") ->  | S33: =IF(ISNUMBER(E33),IF(flag_hdiff_confirm>0,IF(G33=cell_hdiff_confirm,IF(COUNTIF($E$4:E32,E33)=0,MAX($S$4:S32)+1,MAX(MAX($S$4:S32),1)),""),IF(COUNTIF($E$4:E32,E33)=0,MAX($S$4:S32)+1,MAX(MAX($S$4:S32),1))),"") ->  | X33: =IF(W33="OK",IF(COUNTIF($E$4:E32,E33)=0,_xlfn.CONCAT(E33," ",$E$3),""),"") ->  | Y33: =IF(ISNUMBER(G33),IF(flag_ddiff_confirm>0,IF(E33=cell_ddiff_confirm,IF(COUNTIF($G$4:G32,G33)=0,MAX($Y$4:Y32)+1,MAX(MAX($Y$4:Y32),1)),""),IF(COUNTIF($G$4:G32,G33)=0,MAX($Y$4:Y32)+1,MAX(MAX($Y$4:Y32),1))),"") -> 
R34: =IF(Q34="OK",IF(COUNTIF($G$4:G33,G34)=0,_xlfn.CONCAT(G34," ",$G$3),""),"") ->  | S34: =IF(ISNUMBER(E34),IF(flag_hdiff_confirm>0,IF(G34=cell_hdiff_confirm,IF(COUNTIF($E$4:E33,E34)=0,MAX($S$4:S33)+1,MAX(MAX($S$4:S33),1)),""),IF(COUNTIF($E$4:E33,E34)=0,MAX($S$4:S33)+1,MAX(MAX($S$4:S33),1))),"") ->  | X34: =IF(W34="OK",IF(COUNTIF($E$4:E33,E34)=0,_xlfn.CONCAT(E34," ",$E$3),""),"") ->  | Y34: =IF(ISNUMBER(G34),IF(flag_ddiff_confirm>0,IF(E34=cell_ddiff_confirm,IF(COUNTIF($G$4:G33,G34)=0,MAX($Y$4:Y33)+1,MAX(MAX($Y$4:Y33),1)),""),IF(COUNTIF($G$4:G33,G34)=0,MAX($Y$4:Y33)+1,MAX(MAX($Y$4:Y33),1))),"") -> 
R35: =IF(Q35="OK",IF(COUNTIF($G$4:G34,G35)=0,_xlfn.CONCAT(G35," ",$G$3),""),"") ->  | S35: =IF(ISNUMBER(E35),IF(flag_hdiff_confirm>0,IF(G35=cell_hdiff_confirm,IF(COUNTIF($E$4:E34,E35)=0,MAX($S$4:S34)+1,MAX(MAX($S$4:S34),1)),""),IF(COUNTIF($E$4:E34,E35)=0,MAX($S$4:S34)+1,MAX(MAX($S$4:S34),1))),"") ->  | X35: =IF(W35="OK",IF(COUNTIF($E$4:E34,E35)=0,_xlfn.CONCAT(E35," ",$E$3),""),"") ->  | Y35: =IF(ISNUMBER(G35),IF(flag_ddiff_confirm>0,IF(E35=cell_ddiff_confirm,IF(COUNTIF($G$4:G34,G35)=0,MAX($Y$4:Y34)+1,MAX(MAX($Y$4:Y34),1)),""),IF(COUNTIF($G$4:G34,G35)=0,MAX($Y$4:Y34)+1,MAX(MAX($Y$4:Y34),1))),"") -> 
R36: =IF(Q36="OK",IF(COUNTIF($G$4:G35,G36)=0,_xlfn.CONCAT(G36," ",$G$3),""),"") ->  | S36: =IF(ISNUMBER(E36),IF(flag_hdiff_confirm>0,IF(G36=cell_hdiff_confirm,IF(COUNTIF($E$4:E35,E36)=0,MAX($S$4:S35)+1,MAX(MAX($S$4:S35),1)),""),IF(COUNTIF($E$4:E35,E36)=0,MAX($S$4:S35)+1,MAX(MAX($S$4:S35),1))),"") ->  | X36: =IF(W36="OK",IF(COUNTIF($E$4:E35,E36)=0,_xlfn.CONCAT(E36," ",$E$3),""),"") ->  | Y36: =IF(ISNUMBER(G36),IF(flag_ddiff_confirm>0,IF(E36=cell_ddiff_confirm,IF(COUNTIF($G$4:G35,G36)=0,MAX($Y$4:Y35)+1,MAX(MAX($Y$4:Y35),1)),""),IF(COUNTIF($G$4:G35,G36)=0,MAX($Y$4:Y35)+1,MAX(MAX($Y$4:Y35),1))),"") -> 
R37: =IF(Q37="OK",IF(COUNTIF($G$4:G36,G37)=0,_xlfn.CONCAT(G37," ",$G$3),""),"") ->  | S37: =IF(ISNUMBER(E37),IF(flag_hdiff_confirm>0,IF(G37=cell_hdiff_confirm,IF(COUNTIF($E$4:E36,E37)=0,MAX($S$4:S36)+1,MAX(MAX($S$4:S36),1)),""),IF(COUNTIF($E$4:E36,E37)=0,MAX($S$4:S36)+1,MAX(MAX($S$4:S36),1))),"") ->  | X37: =IF(W37="OK",IF(COUNTIF($E$4:E36,E37)=0,_xlfn.CONCAT(E37," ",$E$3),""),"") ->  | Y37: =IF(ISNUMBER(G37),IF(flag_ddiff_confirm>0,IF(E37=cell_ddiff_confirm,IF(COUNTIF($G$4:G36,G37)=0,MAX($Y$4:Y36)+1,MAX(MAX($Y$4:Y36),1)),""),IF(COUNTIF($G$4:G36,G37)=0,MAX($Y$4:Y36)+1,MAX(MAX($Y$4:Y36),1))),"") -> 
R38: =IF(Q38="OK",IF(COUNTIF($G$4:G37,G38)=0,_xlfn.CONCAT(G38," ",$G$3),""),"") ->  | S38: =IF(ISNUMBER(E38),IF(flag_hdiff_confirm>0,IF(G38=cell_hdiff_confirm,IF(COUNTIF($E$4:E37,E38)=0,MAX($S$4:S37)+1,MAX(MAX($S$4:S37),1)),""),IF(COUNTIF($E$4:E37,E38)=0,MAX($S$4:S37)+1,MAX(MAX($S$4:S37),1))),"") ->  | X38: =IF(W38="OK",IF(COUNTIF($E$4:E37,E38)=0,_xlfn.CONCAT(E38," ",$E$3),""),"") ->  | Y38: =IF(ISNUMBER(G38),IF(flag_ddiff_confirm>0,IF(E38=cell_ddiff_confirm,IF(COUNTIF($G$4:G37,G38)=0,MAX($Y$4:Y37)+1,MAX(MAX($Y$4:Y37),1)),""),IF(COUNTIF($G$4:G37,G38)=0,MAX($Y$4:Y37)+1,MAX(MAX($Y$4:Y37),1))),"") -> 
R39: =IF(Q39="OK",IF(COUNTIF($G$4:G38,G39)=0,_xlfn.CONCAT(G39," ",$G$3),""),"") ->  | S39: =IF(ISNUMBER(E39),IF(flag_hdiff_confirm>0,IF(G39=cell_hdiff_confirm,IF(COUNTIF($E$4:E38,E39)=0,MAX($S$4:S38)+1,MAX(MAX($S$4:S38),1)),""),IF(COUNTIF($E$4:E38,E39)=0,MAX($S$4:S38)+1,MAX(MAX($S$4:S38),1))),"") ->  | X39: =IF(W39="OK",IF(COUNTIF($E$4:E38,E39)=0,_xlfn.CONCAT(E39," ",$E$3),""),"") ->  | Y39: =IF(ISNUMBER(G39),IF(flag_ddiff_confirm>0,IF(E39=cell_ddiff_confirm,IF(COUNTIF($G$4:G38,G39)=0,MAX($Y$4:Y38)+1,MAX(MAX($Y$4:Y38),1)),""),IF(COUNTIF($G$4:G38,G39)=0,MAX($Y$4:Y38)+1,MAX(MAX($Y$4:Y38),1))),"") -> 
R40: =IF(Q40="OK",IF(COUNTIF($G$4:G39,G40)=0,_xlfn.CONCAT(G40," ",$G$3),""),"") ->  | S40: =IF(ISNUMBER(E40),IF(flag_hdiff_confirm>0,IF(G40=cell_hdiff_confirm,IF(COUNTIF($E$4:E39,E40)=0,MAX($S$4:S39)+1,MAX(MAX($S$4:S39),1)),""),IF(COUNTIF($E$4:E39,E40)=0,MAX($S$4:S39)+1,MAX(MAX($S$4:S39),1))),"") ->  | X40: =IF(W40="OK",IF(COUNTIF($E$4:E39,E40)=0,_xlfn.CONCAT(E40," ",$E$3),""),"") ->  | Y40: =IF(ISNUMBER(G40),IF(flag_ddiff_confirm>0,IF(E40=cell_ddiff_confirm,IF(COUNTIF($G$4:G39,G40)=0,MAX($Y$4:Y39)+1,MAX(MAX($Y$4:Y39),1)),""),IF(COUNTIF($G$4:G39,G40)=0,MAX($Y$4:Y39)+1,MAX(MAX($Y$4:Y39),1))),"") -> 
R41: =IF(Q41="OK",IF(COUNTIF($G$4:G40,G41)=0,_xlfn.CONCAT(G41," ",$G$3),""),"") ->  | S41: =IF(ISNUMBER(E41),IF(flag_hdiff_confirm>0,IF(G41=cell_hdiff_confirm,IF(COUNTIF($E$4:E40,E41)=0,MAX($S$4:S40)+1,MAX(MAX($S$4:S40),1)),""),IF(COUNTIF($E$4:E40,E41)=0,MAX($S$4:S40)+1,MAX(MAX($S$4:S40),1))),"") ->  | X41: =IF(W41="OK",IF(COUNTIF($E$4:E40,E41)=0,_xlfn.CONCAT(E41," ",$E$3),""),"") ->  | Y41: =IF(ISNUMBER(G41),IF(flag_ddiff_confirm>0,IF(E41=cell_ddiff_confirm,IF(COUNTIF($G$4:G40,G41)=0,MAX($Y$4:Y40)+1,MAX(MAX($Y$4:Y40),1)),""),IF(COUNTIF($G$4:G40,G41)=0,MAX($Y$4:Y40)+1,MAX(MAX($Y$4:Y40),1))),"") -> 
R42: =IF(Q42="OK",IF(COUNTIF($G$4:G41,G42)=0,_xlfn.CONCAT(G42," ",$G$3),""),"") ->  | S42: =IF(ISNUMBER(E42),IF(flag_hdiff_confirm>0,IF(G42=cell_hdiff_confirm,IF(COUNTIF($E$4:E41,E42)=0,MAX($S$4:S41)+1,MAX(MAX($S$4:S41),1)),""),IF(COUNTIF($E$4:E41,E42)=0,MAX($S$4:S41)+1,MAX(MAX($S$4:S41),1))),"") ->  | X42: =IF(W42="OK",IF(COUNTIF($E$4:E41,E42)=0,_xlfn.CONCAT(E42," ",$E$3),""),"") ->  | Y42: =IF(ISNUMBER(G42),IF(flag_ddiff_confirm>0,IF(E42=cell_ddiff_confirm,IF(COUNTIF($G$4:G41,G42)=0,MAX($Y$4:Y41)+1,MAX(MAX($Y$4:Y41),1)),""),IF(COUNTIF($G$4:G41,G42)=0,MAX($Y$4:Y41)+1,MAX(MAX($Y$4:Y41),1))),"") -> 
R43: =IF(Q43="OK",IF(COUNTIF($G$4:G42,G43)=0,_xlfn.CONCAT(G43," ",$G$3),""),"") ->  | S43: =IF(ISNUMBER(E43),IF(flag_hdiff_confirm>0,IF(G43=cell_hdiff_confirm,IF(COUNTIF($E$4:E42,E43)=0,MAX($S$4:S42)+1,MAX(MAX($S$4:S42),1)),""),IF(COUNTIF($E$4:E42,E43)=0,MAX($S$4:S42)+1,MAX(MAX($S$4:S42),1))),"") ->  | X43: =IF(W43="OK",IF(COUNTIF($E$4:E42,E43)=0,_xlfn.CONCAT(E43," ",$E$3),""),"") ->  | Y43: =IF(ISNUMBER(G43),IF(flag_ddiff_confirm>0,IF(E43=cell_ddiff_confirm,IF(COUNTIF($G$4:G42,G43)=0,MAX($Y$4:Y42)+1,MAX(MAX($Y$4:Y42),1)),""),IF(COUNTIF($G$4:G42,G43)=0,MAX($Y$4:Y42)+1,MAX(MAX($Y$4:Y42),1))),"") -> 
R44: =IF(Q44="OK",IF(COUNTIF($G$4:G43,G44)=0,_xlfn.CONCAT(G44," ",$G$3),""),"") ->  | S44: =IF(ISNUMBER(E44),IF(flag_hdiff_confirm>0,IF(G44=cell_hdiff_confirm,IF(COUNTIF($E$4:E43,E44)=0,MAX($S$4:S43)+1,MAX(MAX($S$4:S43),1)),""),IF(COUNTIF($E$4:E43,E44)=0,MAX($S$4:S43)+1,MAX(MAX($S$4:S43),1))),"") ->  | X44: =IF(W44="OK",IF(COUNTIF($E$4:E43,E44)=0,_xlfn.CONCAT(E44," ",$E$3),""),"") ->  | Y44: =IF(ISNUMBER(G44),IF(flag_ddiff_confirm>0,IF(E44=cell_ddiff_confirm,IF(COUNTIF($G$4:G43,G44)=0,MAX($Y$4:Y43)+1,MAX(MAX($Y$4:Y43),1)),""),IF(COUNTIF($G$4:G43,G44)=0,MAX($Y$4:Y43)+1,MAX(MAX($Y$4:Y43),1))),"") -> 
R45: =IF(Q45="OK",IF(COUNTIF($G$4:G44,G45)=0,_xlfn.CONCAT(G45," ",$G$3),""),"") ->  | S45: =IF(ISNUMBER(E45),IF(flag_hdiff_confirm>0,IF(G45=cell_hdiff_confirm,IF(COUNTIF($E$4:E44,E45)=0,MAX($S$4:S44)+1,MAX(MAX($S$4:S44),1)),""),IF(COUNTIF($E$4:E44,E45)=0,MAX($S$4:S44)+1,MAX(MAX($S$4:S44),1))),"") ->  | X45: =IF(W45="OK",IF(COUNTIF($E$4:E44,E45)=0,_xlfn.CONCAT(E45," ",$E$3),""),"") ->  | Y45: =IF(ISNUMBER(G45),IF(flag_ddiff_confirm>0,IF(E45=cell_ddiff_confirm,IF(COUNTIF($G$4:G44,G45)=0,MAX($Y$4:Y44)+1,MAX(MAX($Y$4:Y44),1)),""),IF(COUNTIF($G$4:G44,G45)=0,MAX($Y$4:Y44)+1,MAX(MAX($Y$4:Y44),1))),"") -> 
R46: =IF(Q46="OK",IF(COUNTIF($G$4:G45,G46)=0,_xlfn.CONCAT(G46," ",$G$3),""),"") ->  | S46: =IF(ISNUMBER(E46),IF(flag_hdiff_confirm>0,IF(G46=cell_hdiff_confirm,IF(COUNTIF($E$4:E45,E46)=0,MAX($S$4:S45)+1,MAX(MAX($S$4:S45),1)),""),IF(COUNTIF($E$4:E45,E46)=0,MAX($S$4:S45)+1,MAX(MAX($S$4:S45),1))),"") ->  | X46: =IF(W46="OK",IF(COUNTIF($E$4:E45,E46)=0,_xlfn.CONCAT(E46," ",$E$3),""),"") ->  | Y46: =IF(ISNUMBER(G46),IF(flag_ddiff_confirm>0,IF(E46=cell_ddiff_confirm,IF(COUNTIF($G$4:G45,G46)=0,MAX($Y$4:Y45)+1,MAX(MAX($Y$4:Y45),1)),""),IF(COUNTIF($G$4:G45,G46)=0,MAX($Y$4:Y45)+1,MAX(MAX($Y$4:Y45),1))),"") -> 
R47: =IF(Q47="OK",IF(COUNTIF($G$4:G46,G47)=0,_xlfn.CONCAT(G47," ",$G$3),""),"") ->  | S47: =IF(ISNUMBER(E47),IF(flag_hdiff_confirm>0,IF(G47=cell_hdiff_confirm,IF(COUNTIF($E$4:E46,E47)=0,MAX($S$4:S46)+1,MAX(MAX($S$4:S46),1)),""),IF(COUNTIF($E$4:E46,E47)=0,MAX($S$4:S46)+1,MAX(MAX($S$4:S46),1))),"") ->  | X47: =IF(W47="OK",IF(COUNTIF($E$4:E46,E47)=0,_xlfn.CONCAT(E47," ",$E$3),""),"") ->  | Y47: =IF(ISNUMBER(G47),IF(flag_ddiff_confirm>0,IF(E47=cell_ddiff_confirm,IF(COUNTIF($G$4:G46,G47)=0,MAX($Y$4:Y46)+1,MAX(MAX($Y$4:Y46),1)),""),IF(COUNTIF($G$4:G46,G47)=0,MAX($Y$4:Y46)+1,MAX(MAX($Y$4:Y46),1))),"") -> 
R48: =IF(Q48="OK",IF(COUNTIF($G$4:G47,G48)=0,_xlfn.CONCAT(G48," ",$G$3),""),"") ->  | S48: =IF(ISNUMBER(E48),IF(flag_hdiff_confirm>0,IF(G48=cell_hdiff_confirm,IF(COUNTIF($E$4:E47,E48)=0,MAX($S$4:S47)+1,MAX(MAX($S$4:S47),1)),""),IF(COUNTIF($E$4:E47,E48)=0,MAX($S$4:S47)+1,MAX(MAX($S$4:S47),1))),"") ->  | X48: =IF(W48="OK",IF(COUNTIF($E$4:E47,E48)=0,_xlfn.CONCAT(E48," ",$E$3),""),"") ->  | Y48: =IF(ISNUMBER(G48),IF(flag_ddiff_confirm>0,IF(E48=cell_ddiff_confirm,IF(COUNTIF($G$4:G47,G48)=0,MAX($Y$4:Y47)+1,MAX(MAX($Y$4:Y47),1)),""),IF(COUNTIF($G$4:G47,G48)=0,MAX($Y$4:Y47)+1,MAX(MAX($Y$4:Y47),1))),"") -> 
R49: =IF(Q49="OK",IF(COUNTIF($G$4:G48,G49)=0,_xlfn.CONCAT(G49," ",$G$3),""),"") ->  | S49: =IF(ISNUMBER(E49),IF(flag_hdiff_confirm>0,IF(G49=cell_hdiff_confirm,IF(COUNTIF($E$4:E48,E49)=0,MAX($S$4:S48)+1,MAX(MAX($S$4:S48),1)),""),IF(COUNTIF($E$4:E48,E49)=0,MAX($S$4:S48)+1,MAX(MAX($S$4:S48),1))),"") ->  | X49: =IF(W49="OK",IF(COUNTIF($E$4:E48,E49)=0,_xlfn.CONCAT(E49," ",$E$3),""),"") ->  | Y49: =IF(ISNUMBER(G49),IF(flag_ddiff_confirm>0,IF(E49=cell_ddiff_confirm,IF(COUNTIF($G$4:G48,G49)=0,MAX($Y$4:Y48)+1,MAX(MAX($Y$4:Y48),1)),""),IF(COUNTIF($G$4:G48,G49)=0,MAX($Y$4:Y48)+1,MAX(MAX($Y$4:Y48),1))),"") -> 
R50: =IF(Q50="OK",IF(COUNTIF($G$4:G49,G50)=0,_xlfn.CONCAT(G50," ",$G$3),""),"") ->  | S50: =IF(ISNUMBER(E50),IF(flag_hdiff_confirm>0,IF(G50=cell_hdiff_confirm,IF(COUNTIF($E$4:E49,E50)=0,MAX($S$4:S49)+1,MAX(MAX($S$4:S49),1)),""),IF(COUNTIF($E$4:E49,E50)=0,MAX($S$4:S49)+1,MAX(MAX($S$4:S49),1))),"") ->  | X50: =IF(W50="OK",IF(COUNTIF($E$4:E49,E50)=0,_xlfn.CONCAT(E50," ",$E$3),""),"") ->  | Y50: =IF(ISNUMBER(G50),IF(flag_ddiff_confirm>0,IF(E50=cell_ddiff_confirm,IF(COUNTIF($G$4:G49,G50)=0,MAX($Y$4:Y49)+1,MAX(MAX($Y$4:Y49),1)),""),IF(COUNTIF($G$4:G49,G50)=0,MAX($Y$4:Y49)+1,MAX(MAX($Y$4:Y49),1))),"") -> 
R51: =IF(Q51="OK",IF(COUNTIF($G$4:G50,G51)=0,_xlfn.CONCAT(G51," ",$G$3),""),"") ->  | S51: =IF(ISNUMBER(E51),IF(flag_hdiff_confirm>0,IF(G51=cell_hdiff_confirm,IF(COUNTIF($E$4:E50,E51)=0,MAX($S$4:S50)+1,MAX(MAX($S$4:S50),1)),""),IF(COUNTIF($E$4:E50,E51)=0,MAX($S$4:S50)+1,MAX(MAX($S$4:S50),1))),"") ->  | X51: =IF(W51="OK",IF(COUNTIF($E$4:E50,E51)=0,_xlfn.CONCAT(E51," ",$E$3),""),"") ->  | Y51: =IF(ISNUMBER(G51),IF(flag_ddiff_confirm>0,IF(E51=cell_ddiff_confirm,IF(COUNTIF($G$4:G50,G51)=0,MAX($Y$4:Y50)+1,MAX(MAX($Y$4:Y50),1)),""),IF(COUNTIF($G$4:G50,G51)=0,MAX($Y$4:Y50)+1,MAX(MAX($Y$4:Y50),1))),"") -> 
R52: =IF(Q52="OK",IF(COUNTIF($G$4:G51,G52)=0,_xlfn.CONCAT(G52," ",$G$3),""),"") ->  | S52: =IF(ISNUMBER(E52),IF(flag_hdiff_confirm>0,IF(G52=cell_hdiff_confirm,IF(COUNTIF($E$4:E51,E52)=0,MAX($S$4:S51)+1,MAX(MAX($S$4:S51),1)),""),IF(COUNTIF($E$4:E51,E52)=0,MAX($S$4:S51)+1,MAX(MAX($S$4:S51),1))),"") ->  | X52: =IF(W52="OK",IF(COUNTIF($E$4:E51,E52)=0,_xlfn.CONCAT(E52," ",$E$3),""),"") ->  | Y52: =IF(ISNUMBER(G52),IF(flag_ddiff_confirm>0,IF(E52=cell_ddiff_confirm,IF(COUNTIF($G$4:G51,G52)=0,MAX($Y$4:Y51)+1,MAX(MAX($Y$4:Y51),1)),""),IF(COUNTIF($G$4:G51,G52)=0,MAX($Y$4:Y51)+1,MAX(MAX($Y$4:Y51),1))),"") -> 
R53: =IF(Q53="OK",IF(COUNTIF($G$4:G52,G53)=0,_xlfn.CONCAT(G53," ",$G$3),""),"") ->  | S53: =IF(ISNUMBER(E53),IF(flag_hdiff_confirm>0,IF(G53=cell_hdiff_confirm,IF(COUNTIF($E$4:E52,E53)=0,MAX($S$4:S52)+1,MAX(MAX($S$4:S52),1)),""),IF(COUNTIF($E$4:E52,E53)=0,MAX($S$4:S52)+1,MAX(MAX($S$4:S52),1))),"") ->  | X53: =IF(W53="OK",IF(COUNTIF($E$4:E52,E53)=0,_xlfn.CONCAT(E53," ",$E$3),""),"") ->  | Y53: =IF(ISNUMBER(G53),IF(flag_ddiff_confirm>0,IF(E53=cell_ddiff_confirm,IF(COUNTIF($G$4:G52,G53)=0,MAX($Y$4:Y52)+1,MAX(MAX($Y$4:Y52),1)),""),IF(COUNTIF($G$4:G52,G53)=0,MAX($Y$4:Y52)+1,MAX(MAX($Y$4:Y52),1))),"") -> 
R54: =IF(Q54="OK",IF(COUNTIF($G$4:G53,G54)=0,_xlfn.CONCAT(G54," ",$G$3),""),"") ->  | S54: =IF(ISNUMBER(E54),IF(flag_hdiff_confirm>0,IF(G54=cell_hdiff_confirm,IF(COUNTIF($E$4:E53,E54)=0,MAX($S$4:S53)+1,MAX(MAX($S$4:S53),1)),""),IF(COUNTIF($E$4:E53,E54)=0,MAX($S$4:S53)+1,MAX(MAX($S$4:S53),1))),"") ->  | X54: =IF(W54="OK",IF(COUNTIF($E$4:E53,E54)=0,_xlfn.CONCAT(E54," ",$E$3),""),"") ->  | Y54: =IF(ISNUMBER(G54),IF(flag_ddiff_confirm>0,IF(E54=cell_ddiff_confirm,IF(COUNTIF($G$4:G53,G54)=0,MAX($Y$4:Y53)+1,MAX(MAX($Y$4:Y53),1)),""),IF(COUNTIF($G$4:G53,G54)=0,MAX($Y$4:Y53)+1,MAX(MAX($Y$4:Y53),1))),"") -> 
R55: =IF(Q55="OK",IF(COUNTIF($G$4:G54,G55)=0,_xlfn.CONCAT(G55," ",$G$3),""),"") ->  | S55: =IF(ISNUMBER(E55),IF(flag_hdiff_confirm>0,IF(G55=cell_hdiff_confirm,IF(COUNTIF($E$4:E54,E55)=0,MAX($S$4:S54)+1,MAX(MAX($S$4:S54),1)),""),IF(COUNTIF($E$4:E54,E55)=0,MAX($S$4:S54)+1,MAX(MAX($S$4:S54),1))),"") ->  | X55: =IF(W55="OK",IF(COUNTIF($E$4:E54,E55)=0,_xlfn.CONCAT(E55," ",$E$3),""),"") ->  | Y55: =IF(ISNUMBER(G55),IF(flag_ddiff_confirm>0,IF(E55=cell_ddiff_confirm,IF(COUNTIF($G$4:G54,G55)=0,MAX($Y$4:Y54)+1,MAX(MAX($Y$4:Y54),1)),""),IF(COUNTIF($G$4:G54,G55)=0,MAX($Y$4:Y54)+1,MAX(MAX($Y$4:Y54),1))),"") -> 
R56: =IF(Q56="OK",IF(COUNTIF($G$4:G55,G56)=0,_xlfn.CONCAT(G56," ",$G$3),""),"") ->  | S56: =IF(ISNUMBER(E56),IF(flag_hdiff_confirm>0,IF(G56=cell_hdiff_confirm,IF(COUNTIF($E$4:E55,E56)=0,MAX($S$4:S55)+1,MAX(MAX($S$4:S55),1)),""),IF(COUNTIF($E$4:E55,E56)=0,MAX($S$4:S55)+1,MAX(MAX($S$4:S55),1))),"") ->  | X56: =IF(W56="OK",IF(COUNTIF($E$4:E55,E56)=0,_xlfn.CONCAT(E56," ",$E$3),""),"") ->  | Y56: =IF(ISNUMBER(G56),IF(flag_ddiff_confirm>0,IF(E56=cell_ddiff_confirm,IF(COUNTIF($G$4:G55,G56)=0,MAX($Y$4:Y55)+1,MAX(MAX($Y$4:Y55),1)),""),IF(COUNTIF($G$4:G55,G56)=0,MAX($Y$4:Y55)+1,MAX(MAX($Y$4:Y55),1))),"") -> 
R57: =IF(Q57="OK",IF(COUNTIF($G$4:G56,G57)=0,_xlfn.CONCAT(G57," ",$G$3),""),"") ->  | S57: =IF(ISNUMBER(E57),IF(flag_hdiff_confirm>0,IF(G57=cell_hdiff_confirm,IF(COUNTIF($E$4:E56,E57)=0,MAX($S$4:S56)+1,MAX(MAX($S$4:S56),1)),""),IF(COUNTIF($E$4:E56,E57)=0,MAX($S$4:S56)+1,MAX(MAX($S$4:S56),1))),"") ->  | X57: =IF(W57="OK",IF(COUNTIF($E$4:E56,E57)=0,_xlfn.CONCAT(E57," ",$E$3),""),"") ->  | Y57: =IF(ISNUMBER(G57),IF(flag_ddiff_confirm>0,IF(E57=cell_ddiff_confirm,IF(COUNTIF($G$4:G56,G57)=0,MAX($Y$4:Y56)+1,MAX(MAX($Y$4:Y56),1)),""),IF(COUNTIF($G$4:G56,G57)=0,MAX($Y$4:Y56)+1,MAX(MAX($Y$4:Y56),1))),"") -> 
R58: =IF(Q58="OK",IF(COUNTIF($G$4:G57,G58)=0,_xlfn.CONCAT(G58," ",$G$3),""),"") ->  | S58: =IF(ISNUMBER(E58),IF(flag_hdiff_confirm>0,IF(G58=cell_hdiff_confirm,IF(COUNTIF($E$4:E57,E58)=0,MAX($S$4:S57)+1,MAX(MAX($S$4:S57),1)),""),IF(COUNTIF($E$4:E57,E58)=0,MAX($S$4:S57)+1,MAX(MAX($S$4:S57),1))),"") ->  | X58: =IF(W58="OK",IF(COUNTIF($E$4:E57,E58)=0,_xlfn.CONCAT(E58," ",$E$3),""),"") ->  | Y58: =IF(ISNUMBER(G58),IF(flag_ddiff_confirm>0,IF(E58=cell_ddiff_confirm,IF(COUNTIF($G$4:G57,G58)=0,MAX($Y$4:Y57)+1,MAX(MAX($Y$4:Y57),1)),""),IF(COUNTIF($G$4:G57,G58)=0,MAX($Y$4:Y57)+1,MAX(MAX($Y$4:Y57),1))),"") -> 
R59: =IF(Q59="OK",IF(COUNTIF($G$4:G58,G59)=0,_xlfn.CONCAT(G59," ",$G$3),""),"") ->  | S59: =IF(ISNUMBER(E59),IF(flag_hdiff_confirm>0,IF(G59=cell_hdiff_confirm,IF(COUNTIF($E$4:E58,E59)=0,MAX($S$4:S58)+1,MAX(MAX($S$4:S58),1)),""),IF(COUNTIF($E$4:E58,E59)=0,MAX($S$4:S58)+1,MAX(MAX($S$4:S58),1))),"") ->  | X59: =IF(W59="OK",IF(COUNTIF($E$4:E58,E59)=0,_xlfn.CONCAT(E59," ",$E$3),""),"") ->  | Y59: =IF(ISNUMBER(G59),IF(flag_ddiff_confirm>0,IF(E59=cell_ddiff_confirm,IF(COUNTIF($G$4:G58,G59)=0,MAX($Y$4:Y58)+1,MAX(MAX($Y$4:Y58),1)),""),IF(COUNTIF($G$4:G58,G59)=0,MAX($Y$4:Y58)+1,MAX(MAX($Y$4:Y58),1))),"") -> 
R60: =IF(Q60="OK",IF(COUNTIF($G$4:G59,G60)=0,_xlfn.CONCAT(G60," ",$G$3),""),"") ->  | S60: =IF(ISNUMBER(E60),IF(flag_hdiff_confirm>0,IF(G60=cell_hdiff_confirm,IF(COUNTIF($E$4:E59,E60)=0,MAX($S$4:S59)+1,MAX(MAX($S$4:S59),1)),""),IF(COUNTIF($E$4:E59,E60)=0,MAX($S$4:S59)+1,MAX(MAX($S$4:S59),1))),"") ->  | X60: =IF(W60="OK",IF(COUNTIF($E$4:E59,E60)=0,_xlfn.CONCAT(E60," ",$E$3),""),"") ->  | Y60: =IF(ISNUMBER(G60),IF(flag_ddiff_confirm>0,IF(E60=cell_ddiff_confirm,IF(COUNTIF($G$4:G59,G60)=0,MAX($Y$4:Y59)+1,MAX(MAX($Y$4:Y59),1)),""),IF(COUNTIF($G$4:G59,G60)=0,MAX($Y$4:Y59)+1,MAX(MAX($Y$4:Y59),1))),"") -> 
R61: =IF(Q61="OK",IF(COUNTIF($G$4:G60,G61)=0,_xlfn.CONCAT(G61," ",$G$3),""),"") ->  | S61: =IF(ISNUMBER(E61),IF(flag_hdiff_confirm>0,IF(G61=cell_hdiff_confirm,IF(COUNTIF($E$4:E60,E61)=0,MAX($S$4:S60)+1,MAX(MAX($S$4:S60),1)),""),IF(COUNTIF($E$4:E60,E61)=0,MAX($S$4:S60)+1,MAX(MAX($S$4:S60),1))),"") ->  | X61: =IF(W61="OK",IF(COUNTIF($E$4:E60,E61)=0,_xlfn.CONCAT(E61," ",$E$3),""),"") ->  | Y61: =IF(ISNUMBER(G61),IF(flag_ddiff_confirm>0,IF(E61=cell_ddiff_confirm,IF(COUNTIF($G$4:G60,G61)=0,MAX($Y$4:Y60)+1,MAX(MAX($Y$4:Y60),1)),""),IF(COUNTIF($G$4:G60,G61)=0,MAX($Y$4:Y60)+1,MAX(MAX($Y$4:Y60),1))),"") -> 
R62: =IF(Q62="OK",IF(COUNTIF($G$4:G61,G62)=0,_xlfn.CONCAT(G62," ",$G$3),""),"") ->  | S62: =IF(ISNUMBER(E62),IF(flag_hdiff_confirm>0,IF(G62=cell_hdiff_confirm,IF(COUNTIF($E$4:E61,E62)=0,MAX($S$4:S61)+1,MAX(MAX($S$4:S61),1)),""),IF(COUNTIF($E$4:E61,E62)=0,MAX($S$4:S61)+1,MAX(MAX($S$4:S61),1))),"") ->  | X62: =IF(W62="OK",IF(COUNTIF($E$4:E61,E62)=0,_xlfn.CONCAT(E62," ",$E$3),""),"") ->  | Y62: =IF(ISNUMBER(G62),IF(flag_ddiff_confirm>0,IF(E62=cell_ddiff_confirm,IF(COUNTIF($G$4:G61,G62)=0,MAX($Y$4:Y61)+1,MAX(MAX($Y$4:Y61),1)),""),IF(COUNTIF($G$4:G61,G62)=0,MAX($Y$4:Y61)+1,MAX(MAX($Y$4:Y61),1))),"") -> 
R63: =IF(Q63="OK",IF(COUNTIF($G$4:G62,G63)=0,_xlfn.CONCAT(G63," ",$G$3),""),"") ->  | S63: =IF(ISNUMBER(E63),IF(flag_hdiff_confirm>0,IF(G63=cell_hdiff_confirm,IF(COUNTIF($E$4:E62,E63)=0,MAX($S$4:S62)+1,MAX(MAX($S$4:S62),1)),""),IF(COUNTIF($E$4:E62,E63)=0,MAX($S$4:S62)+1,MAX(MAX($S$4:S62),1))),"") ->  | X63: =IF(W63="OK",IF(COUNTIF($E$4:E62,E63)=0,_xlfn.CONCAT(E63," ",$E$3),""),"") ->  | Y63: =IF(ISNUMBER(G63),IF(flag_ddiff_confirm>0,IF(E63=cell_ddiff_confirm,IF(COUNTIF($G$4:G62,G63)=0,MAX($Y$4:Y62)+1,MAX(MAX($Y$4:Y62),1)),""),IF(COUNTIF($G$4:G62,G63)=0,MAX($Y$4:Y62)+1,MAX(MAX($Y$4:Y62),1))),"") -> 
R64: =IF(Q64="OK",IF(COUNTIF($G$4:G63,G64)=0,_xlfn.CONCAT(G64," ",$G$3),""),"") ->  | S64: =IF(ISNUMBER(E64),IF(flag_hdiff_confirm>0,IF(G64=cell_hdiff_confirm,IF(COUNTIF($E$4:E63,E64)=0,MAX($S$4:S63)+1,MAX(MAX($S$4:S63),1)),""),IF(COUNTIF($E$4:E63,E64)=0,MAX($S$4:S63)+1,MAX(MAX($S$4:S63),1))),"") ->  | X64: =IF(W64="OK",IF(COUNTIF($E$4:E63,E64)=0,_xlfn.CONCAT(E64," ",$E$3),""),"") ->  | Y64: =IF(ISNUMBER(G64),IF(flag_ddiff_confirm>0,IF(E64=cell_ddiff_confirm,IF(COUNTIF($G$4:G63,G64)=0,MAX($Y$4:Y63)+1,MAX(MAX($Y$4:Y63),1)),""),IF(COUNTIF($G$4:G63,G64)=0,MAX($Y$4:Y63)+1,MAX(MAX($Y$4:Y63),1))),"") -> 
R65: =IF(Q65="OK",IF(COUNTIF($G$4:G64,G65)=0,_xlfn.CONCAT(G65," ",$G$3),""),"") ->  | S65: =IF(ISNUMBER(E65),IF(flag_hdiff_confirm>0,IF(G65=cell_hdiff_confirm,IF(COUNTIF($E$4:E64,E65)=0,MAX($S$4:S64)+1,MAX(MAX($S$4:S64),1)),""),IF(COUNTIF($E$4:E64,E65)=0,MAX($S$4:S64)+1,MAX(MAX($S$4:S64),1))),"") ->  | X65: =IF(W65="OK",IF(COUNTIF($E$4:E64,E65)=0,_xlfn.CONCAT(E65," ",$E$3),""),"") ->  | Y65: =IF(ISNUMBER(G65),IF(flag_ddiff_confirm>0,IF(E65=cell_ddiff_confirm,IF(COUNTIF($G$4:G64,G65)=0,MAX($Y$4:Y64)+1,MAX(MAX($Y$4:Y64),1)),""),IF(COUNTIF($G$4:G64,G65)=0,MAX($Y$4:Y64)+1,MAX(MAX($Y$4:Y64),1))),"") -> 
R66: =IF(Q66="OK",IF(COUNTIF($G$4:G65,G66)=0,_xlfn.CONCAT(G66," ",$G$3),""),"") ->  | S66: =IF(ISNUMBER(E66),IF(flag_hdiff_confirm>0,IF(G66=cell_hdiff_confirm,IF(COUNTIF($E$4:E65,E66)=0,MAX($S$4:S65)+1,MAX(MAX($S$4:S65),1)),""),IF(COUNTIF($E$4:E65,E66)=0,MAX($S$4:S65)+1,MAX(MAX($S$4:S65),1))),"") ->  | X66: =IF(W66="OK",IF(COUNTIF($E$4:E65,E66)=0,_xlfn.CONCAT(E66," ",$E$3),""),"") ->  | Y66: =IF(ISNUMBER(G66),IF(flag_ddiff_confirm>0,IF(E66=cell_ddiff_confirm,IF(COUNTIF($G$4:G65,G66)=0,MAX($Y$4:Y65)+1,MAX(MAX($Y$4:Y65),1)),""),IF(COUNTIF($G$4:G65,G66)=0,MAX($Y$4:Y65)+1,MAX(MAX($Y$4:Y65),1))),"") -> 
R67: =IF(Q67="OK",IF(COUNTIF($G$4:G66,G67)=0,_xlfn.CONCAT(G67," ",$G$3),""),"") ->  | S67: =IF(ISNUMBER(E67),IF(flag_hdiff_confirm>0,IF(G67=cell_hdiff_confirm,IF(COUNTIF($E$4:E66,E67)=0,MAX($S$4:S66)+1,MAX(MAX($S$4:S66),1)),""),IF(COUNTIF($E$4:E66,E67)=0,MAX($S$4:S66)+1,MAX(MAX($S$4:S66),1))),"") ->  | X67: =IF(W67="OK",IF(COUNTIF($E$4:E66,E67)=0,_xlfn.CONCAT(E67," ",$E$3),""),"") ->  | Y67: =IF(ISNUMBER(G67),IF(flag_ddiff_confirm>0,IF(E67=cell_ddiff_confirm,IF(COUNTIF($G$4:G66,G67)=0,MAX($Y$4:Y66)+1,MAX(MAX($Y$4:Y66),1)),""),IF(COUNTIF($G$4:G66,G67)=0,MAX($Y$4:Y66)+1,MAX(MAX($Y$4:Y66),1))),"") -> 
D68: =IF(ISNUMBER(C68),IF(cell_Qairselection_calc="m³/h at NTP",C68*24,IF(cell_Qairselection_calc="m³/d at NTP",C68,IF(cell_Qairselection_calc="m³/h at STP",C68*293.15/273.15*24,IF(cell_Qairselection_calc="scfm",C68/3.28084^3*60*24,"")))),"") ->  | F68: =IF(cell_ddiffselection_calc="diff/m²",IF(AND(ISNUMBER(E68),ISNUMBER($A$5)),E68*IF(cell_Adiffselection_calc="ft²",$A$5*0.3048^2,$A$5),""),IF(cell_ddiffselection_calc="diff/100ft²",IF(AND(ISNUMBER(E68),ISNUMBER($A$5)),E68/100*IF(cell_Adiffselection_calc="m²",$A$5/0.3048^2,$A$5),""),IF(cell_ddiffselection_calc="m²/m²",IF(ISNUMBER(E68),E68,""),IF(cell_ddiffselection_calc="%",IF(ISNUMBER(E68),E68/100,""),IF(cell_ddiffselection_calc="m²/m² (AT/AD)",IF(ISNUMBER(E68),1/E68,""),""))))) ->  | H68: =IF(ISNUMBER(G68),IF(cell_hdiffselection_calc="m",G68,IF(cell_hdiffselection_calc="ft",G68*0.3048,"")),"") ->  | J68: =IF(cell_SOTEselection_calc="%",IF(AND(ISNUMBER(I68),ISNUMBER(H68)),I68/H68,""),IF(cell_SOTEselection_calc="%/m",IF(ISNUMBER(I68),I68,""),IF(cell_SOTEselection_calc="%/ft",IF(ISNUMBER(I68),I68/0.3048,""),""))) ->  | K68: =IF(cell_SOTEselection_calc="%",IF(AND(ISNUMBER(L68),ISNUMBER(H68)),L68*H68,""),IF(cell_SOTEselection_calc="%/m",IF(ISNUMBER(L68),L68,""),IF(cell_SOTEselection_calc="%/ft",IF(ISNUMBER(L68),L68*0.3048,""),""))) ->  | L68: =IF(AND(cell_ddiffselection_calc<>"NA",cell_hdiffselection_calc<>"NA"),IF(AND(ISNUMBER(D68),ISNUMBER(F68),ISNUMBER(H68)),((cell_SSOTE0_est-cell_SSOTEasym_est)*EXP(-cell_expSSOTE_est*D68)+cell_SSOTEasym_est)*(F68/cell_divddiff_est)^cell_powddiff_est/(cell_coeffleadhdiff_est*H68^cell_powhdiff_est+cell_coefflinhdiff_est*H68+1),""),IF(AND(cell_ddiffselection_calc="NA",cell_hdiffselection_calc<>"NA"),IF(AND(ISNUMBER(D68),ISNUMBER(H68)),((cell_SSOTE0_est-cell_SSOTEasym_est)*EXP(-cell_expSSOTE_est*D68)+cell_SSOTEasym_est)/(cell_coeffleadhdiff_est*H68^cell_powhdiff_est+cell_coefflinhdiff_est*H68+1),""),IF(AND(cell_ddiffselection_calc<>"NA",cell_hdiffselection_calc="NA"),IF(AND(ISNUMBER(D68),ISNUMBER(F68)),((cell_SSOTE0_est-cell_SSOTEasym_est)*EXP(-cell_expSSOTE_est*D68)+cell_SSOTEasym_est)*(F68/cell_divddiff_est)^cell_powddiff_est,""),IF(ISNUMBER(D68),(cell_SSOTE0_est-cell_SSOTEasym_est)*EXP(-cell_expSSOTE_est*D68)+cell_SSOTEasym_est,"")))) ->  | M68: =IF(AND(ISNUMBER(J68),ISNUMBER(L68)),(J68-L68)^2,"") ->  | N68: =IF(ISNUMBER(J68),(J68-$J$1004)^2,"") ->  | O68: =IF(AND(ISNUMBER(L68),ISNUMBER($J$1004)),(L68-$J$1004)^2,"") ->  | Q68: =IF(AND(ISNUMBER(E68),ISNUMBER(G68)),IF(COUNTIF(cells_hdiff_calc,G68)>COUNTIFS(cells_hdiff_calc,G68,cells_ddiff_calc,E68),"OK",""),"") ->  | R68: =IF(Q68="OK",IF(COUNTIF($G$4:G67,G68)=0,_xlfn.CONCAT(G68," ",$G$3),""),"") ->  | S68: =IF(ISNUMBER(E68),IF(flag_hdiff_confirm>0,IF(G68=cell_hdiff_confirm,IF(COUNTIF($E$4:E67,E68)=0,MAX($S$4:S67)+1,MAX(MAX($S$4:S67),1)),""),IF(COUNTIF($E$4:E67,E68)=0,MAX($S$4:S67)+1,MAX(MAX($S$4:S67),1))),"") ->  | V68: =IF(ISNUMBER(S68),IF(OR(C68<MAX(mins_Qair_ddiffplot),C68>MIN(maxs_Qair_ddiffplot)),C68,""),"") ->  | W68: =IF(AND(ISNUMBER(E68),ISNUMBER(G68)),IF(COUNTIF(cells_ddiff_calc,E68)>COUNTIFS(cells_hdiff_calc,G68,cells_ddiff_calc,E68),"OK",""),"") ->  | X68: =IF(W68="OK",IF(COUNTIF($E$4:E67,E68)=0,_xlfn.CONCAT(E68," ",$E$3),""),"") ->  | Y68: =IF(ISNUMBER(G68),IF(flag_ddiff_confirm>0,IF(E68=cell_ddiff_confirm,IF(COUNTIF($G$4:G67,G68)=0,MAX($Y$4:Y67)+1,MAX(MAX($Y$4:Y67),1)),""),IF(COUNTIF($G$4:G67,G68)=0,MAX($Y$4:Y67)+1,MAX(MAX($Y$4:Y67),1))),"") ->  | AB68: =IF(ISNUMBER(Y68),IF(OR(C68<MAX(mins_Qair_hdiffplot),C68>MIN(maxs_Qair_hdiffplot)),C68,""),"") ->  | AE68: =IF(ISNUMBER(AD68),IF(cell_Qairselection_calc="m³/h at NTP",AD68*24,IF(cell_Qairselection_calc="m³/d at NTP",AD68,IF(cell_Qairselection_calc="m³/h at STP",AD68*293.15/273.15*24,IF(cell_Qairselection_calc="scfm",AD68/3.28084^3*60*24,"")))),"") ->  | AG68: =IF(cell_ddiffselection_calc="diff/m²",IF(AND(ISNUMBER(AF68),ISNUMBER($A$5)),AF68*IF(cell_Adiffselection_calc="ft²",$A$5*0.3048^2,$A$5),""),IF(cell_ddiffselection_calc="diff/100ft²",IF(AND(ISNUMBER(AF68),ISNUMBER($A$5)),AF68/100*IF(cell_Adiffselection_calc="m²",$A$5/0.3048^2,$A$5),""),IF(cell_ddiffselection_calc="m²/m²",IF(ISNUMBER(AF68),AF68,""),IF(cell_ddiffselection_calc="%",IF(ISNUMBER(AF68),AF68/100,""),IF(cell_ddiffselection_calc="m²/m² (AT/AD)",IF(ISNUMBER(AF68),1/AF68,""),""))))) ->  | AI68: =IF(ISNUMBER(AH68),IF(cell_hdiffselection_calc="m",AH68,IF(cell_hdiffselection_calc="ft",AH68*0.3048,"")),"") ->  | AK68: =IF(cell_SOTEselection_calc="%",IF(AND(ISNUMBER(AJ68),ISNUMBER(AI68)),AJ68/AI68,""),IF(cell_SOTEselection_calc="%/m",IF(ISNUMBER(AJ68),AJ68,""),IF(cell_SOTEselection_calc="%/ft",IF(ISNUMBER(AJ68),AJ68/0.3048,""),""))) ->  | AL68: =IF(cell_SOTEselection_calc="%",IF(AND(ISNUMBER(AM68),ISNUMBER(AI68)),AM68*AI68,""),IF(cell_SOTEselection_calc="%/m",IF(ISNUMBER(AM68),AM68,""),IF(cell_SOTEselection_calc="%/ft",IF(ISNUMBER(AM68),AM68*0.3048,""),""))) ->  | AM68: =IF(AND(cell_ddiffselection_calc<>"NA",cell_hdiffselection_calc<>"NA"),IF(AND(ISNUMBER(AE68),ISNUMBER(AG68),ISNUMBER(AI68)),((cell_SSOTE0_est-cell_SSOTEasym_est)*EXP(-cell_expSSOTE_est*AE68)+cell_SSOTEasym_est)*(AG68/cell_divddiff_est)^cell_powddiff_est/(cell_coeffleadhdiff_est*AI68^cell_powhdiff_est+cell_coefflinhdiff_est*AI68+1),""),IF(AND(cell_ddiffselection_calc="NA",cell_hdiffselection_calc<>"NA"),IF(AND(ISNUMBER(AE68),ISNUMBER(AI68)),((cell_SSOTE0_est-cell_SSOTEasym_est)*EXP(-cell_expSSOTE_est*AE68)+cell_SSOTEasym_est)/(cell_coeffleadhdiff_est*AI68^cell_powhdiff_est+cell_coefflinhdiff_est*AI68+1),""),IF(AND(cell_ddiffselection_calc<>"NA",cell_hdiffselection_calc="NA"),IF(AND(ISNUMBER(AE68),ISNUMBER(AG68)),((cell_SSOTE0_est-cell_SSOTEasym_est)*EXP(-cell_expSSOTE_est*AE68)+cell_SSOTEasym_est)*(AG68/cell_divddiff_est)^cell_powddiff_est,""),IF(ISNUMBER(AE68),(cell_SSOTE0_est-cell_SSOTEasym_est)*EXP(-cell_expSSOTE_est*AE68)+cell_SSOTEasym_est,"")))) ->  | AP68: =IF(ISNUMBER(AO68),IF(cell_Qairselection_calc="m³/h at NTP",AO68*24,IF(cell_Qairselection_calc="m³/d at NTP",AO68,IF(cell_Qairselection_calc="m³/h at NTP",AO68*293.15/273.15*24,IF(cell_Qairselection_calc="scfm",AO68/3.28084^3*60*24,"")))),"") ->  | AR68: =IF(ISNUMBER(AQ68),IF(cell_hdiffselection_calc="m",AQ68,IF(cell_hdiffselection_calc="ft",AQ68*0.3048,"")),"") ->  | AT68: =IF(cell_ddiffselection_calc="diff/m²",IF(AND(ISNUMBER(AS68),ISNUMBER($A$5)),AS68*IF(cell_Adiffselection_calc="ft²",$A$5*0.3048^2,$A$5),""),IF(cell_ddiffselection_calc="diff/100ft²",IF(AND(ISNUMBER(AS68),ISNUMBER($A$5)),AS68/100*IF(cell_Adiffselection_calc="m²",$A$5/0.3048^2,$A$5),""),IF(cell_ddiffselection_calc="m²/m²",IF(ISNUMBER(AS68),AS68,""),IF(cell_ddiffselection_calc="%",IF(ISNUMBER(AS68),AS68/100,""),IF(cell_ddiffselection_calc="m²/m² (AT/AD)",IF(ISNUMBER(AS68),1/AS68,""),""))))) ->  | AV68: =IF(cell_SOTEselection_calc="%",IF(AND(ISNUMBER(AU68),ISNUMBER(AR68)),AU68/AR68,""),IF(cell_SOTEselection_calc="%/m",IF(ISNUMBER(AU68),AU68,""),IF(cell_SOTEselection_calc="%/ft",IF(ISNUMBER(AU68),AU68/0.3048,""),""))) ->  | AW68: =IF(cell_SOTEselection_calc="%",IF(AND(ISNUMBER(AX68),ISNUMBER(AR68)),AX68*AR68,""),IF(cell_SOTEselection_calc="%/m",IF(ISNUMBER(AX68),AX68,""),IF(cell_SOTEselection_calc="%/ft",IF(ISNUMBER(AX68),AX68*0.3048,""),""))) ->  | AX68: =IF(AND(cell_ddiffselection_calc<>"NA",cell_hdiffselection_calc<>"NA"),IF(AND(ISNUMBER(AP68),ISNUMBER(AT68),ISNUMBER(AR68)),((cell_SSOTE0_est-cell_SSOTEasym_est)*EXP(-cell_expSSOTE_est*AP68)+cell_SSOTEasym_est)*(AT68/cell_divddiff_est)^cell_powddiff_est/(cell_coeffleadhdiff_est*AR68^cell_powhdiff_est+cell_coefflinhdiff_est*AR68+1),""),IF(AND(cell_ddiffselection_calc="NA",cell_hdiffselection_calc<>"NA"),IF(AND(ISNUMBER(AP68),ISNUMBER(AR68)),((cell_SSOTE0_est-cell_SSOTEasym_est)*EXP(-cell_expSSOTE_est*AP68)+cell_SSOTEasym_est)/(cell_coeffleadhdiff_est*AR68^cell_powhdiff_est+cell_coefflinhdiff_est*AR68+1),""),IF(AND(cell_ddiffselection_calc<>"NA",cell_hdiffselection_calc="NA"),IF(AND(ISNUMBER(AP68),ISNUMBER(AT68)),((cell_SSOTE0_est-cell_SSOTEasym_est)*EXP(-cell_expSSOTE_est*AP68)+cell_SSOTEasym_est)*(AT68/cell_divddiff_est)^cell_powddiff_est,""),IF(ISNUMBER(AP68),(cell_SSOTE0_est-cell_SSOTEasym_est)*EXP(-cell_expSSOTE_est*AP68)+cell_SSOTEasym_est,"")))) -> 
R69: =IF(Q69="OK",IF(COUNTIF($G$4:G68,G69)=0,_xlfn.CONCAT(G69," ",$G$3),""),"") ->  | S69: =IF(ISNUMBER(E69),IF(flag_hdiff_confirm>0,IF(G69=cell_hdiff_confirm,IF(COUNTIF($E$4:E68,E69)=0,MAX($S$4:S68)+1,MAX(MAX($S$4:S68),1)),""),IF(COUNTIF($E$4:E68,E69)=0,MAX($S$4:S68)+1,MAX(MAX($S$4:S68),1))),"") ->  | T69: =IF(AND(ISNUMBER(S69),S69<>S68),_xlfn.MINIFS((cells_Qair_calc),(labels_ddiff_confirm),S69),"") ->  | U69: =IF(AND(ISNUMBER(S69),S69<>S68),_xlfn.MAXIFS((cells_Qair_calc),(labels_ddiff_confirm),S69),"") ->  | X69: =IF(W69="OK",IF(COUNTIF($E$4:E68,E69)=0,_xlfn.CONCAT(E69," ",$E$3),""),"") ->  | Y69: =IF(ISNUMBER(G69),IF(flag_ddiff_confirm>0,IF(E69=cell_ddiff_confirm,IF(COUNTIF($G$4:G68,G69)=0,MAX($Y$4:Y68)+1,MAX(MAX($Y$4:Y68),1)),""),IF(COUNTIF($G$4:G68,G69)=0,MAX($Y$4:Y68)+1,MAX(MAX($Y$4:Y68),1))),"") ->  | Z69: =IF(AND(ISNUMBER(Y69),Y69<>Y68),_xlfn.MINIFS((cells_Qair_calc),(labels_hdiff_confirm),Y69),"") ->  | AA69: =IF(AND(ISNUMBER(Y69),Y69<>Y68),_xlfn.MAXIFS((cells_Qair_calc),(labels_hdiff_confirm),Y69),"") -> 
R70: =IF(Q70="OK",IF(COUNTIF($G$4:G69,G70)=0,_xlfn.CONCAT(G70," ",$G$3),""),"") ->  | S70: =IF(ISNUMBER(E70),IF(flag_hdiff_confirm>0,IF(G70=cell_hdiff_confirm,IF(COUNTIF($E$4:E69,E70)=0,MAX($S$4:S69)+1,MAX(MAX($S$4:S69),1)),""),IF(COUNTIF($E$4:E69,E70)=0,MAX($S$4:S69)+1,MAX(MAX($S$4:S69),1))),"") ->  | X70: =IF(W70="OK",IF(COUNTIF($E$4:E69,E70)=0,_xlfn.CONCAT(E70," ",$E$3),""),"") ->  | Y70: =IF(ISNUMBER(G70),IF(flag_ddiff_confirm>0,IF(E70=cell_ddiff_confirm,IF(COUNTIF($G$4:G69,G70)=0,MAX($Y$4:Y69)+1,MAX(MAX($Y$4:Y69),1)),""),IF(COUNTIF($G$4:G69,G70)=0,MAX($Y$4:Y69)+1,MAX(MAX($Y$4:Y69),1))),"") -> 
R71: =IF(Q71="OK",IF(COUNTIF($G$4:G70,G71)=0,_xlfn.CONCAT(G71," ",$G$3),""),"") ->  | S71: =IF(ISNUMBER(E71),IF(flag_hdiff_confirm>0,IF(G71=cell_hdiff_confirm,IF(COUNTIF($E$4:E70,E71)=0,MAX($S$4:S70)+1,MAX(MAX($S$4:S70),1)),""),IF(COUNTIF($E$4:E70,E71)=0,MAX($S$4:S70)+1,MAX(MAX($S$4:S70),1))),"") ->  | X71: =IF(W71="OK",IF(COUNTIF($E$4:E70,E71)=0,_xlfn.CONCAT(E71," ",$E$3),""),"") ->  | Y71: =IF(ISNUMBER(G71),IF(flag_ddiff_confirm>0,IF(E71=cell_ddiff_confirm,IF(COUNTIF($G$4:G70,G71)=0,MAX($Y$4:Y70)+1,MAX(MAX($Y$4:Y70),1)),""),IF(COUNTIF($G$4:G70,G71)=0,MAX($Y$4:Y70)+1,MAX(MAX($Y$4:Y70),1))),"") -> 
R72: =IF(Q72="OK",IF(COUNTIF($G$4:G71,G72)=0,_xlfn.CONCAT(G72," ",$G$3),""),"") ->  | S72: =IF(ISNUMBER(E72),IF(flag_hdiff_confirm>0,IF(G72=cell_hdiff_confirm,IF(COUNTIF($E$4:E71,E72)=0,MAX($S$4:S71)+1,MAX(MAX($S$4:S71),1)),""),IF(COUNTIF($E$4:E71,E72)=0,MAX($S$4:S71)+1,MAX(MAX($S$4:S71),1))),"") ->  | X72: =IF(W72="OK",IF(COUNTIF($E$4:E71,E72)=0,_xlfn.CONCAT(E72," ",$E$3),""),"") ->  | Y72: =IF(ISNUMBER(G72),IF(flag_ddiff_confirm>0,IF(E72=cell_ddiff_confirm,IF(COUNTIF($G$4:G71,G72)=0,MAX($Y$4:Y71)+1,MAX(MAX($Y$4:Y71),1)),""),IF(COUNTIF($G$4:G71,G72)=0,MAX($Y$4:Y71)+1,MAX(MAX($Y$4:Y71),1))),"") -> 
R73: =IF(Q73="OK",IF(COUNTIF($G$4:G72,G73)=0,_xlfn.CONCAT(G73," ",$G$3),""),"") ->  | S73: =IF(ISNUMBER(E73),IF(flag_hdiff_confirm>0,IF(G73=cell_hdiff_confirm,IF(COUNTIF($E$4:E72,E73)=0,MAX($S$4:S72)+1,MAX(MAX($S$4:S72),1)),""),IF(COUNTIF($E$4:E72,E73)=0,MAX($S$4:S72)+1,MAX(MAX($S$4:S72),1))),"") ->  | X73: =IF(W73="OK",IF(COUNTIF($E$4:E72,E73)=0,_xlfn.CONCAT(E73," ",$E$3),""),"") ->  | Y73: =IF(ISNUMBER(G73),IF(flag_ddiff_confirm>0,IF(E73=cell_ddiff_confirm,IF(COUNTIF($G$4:G72,G73)=0,MAX($Y$4:Y72)+1,MAX(MAX($Y$4:Y72),1)),""),IF(COUNTIF($G$4:G72,G73)=0,MAX($Y$4:Y72)+1,MAX(MAX($Y$4:Y72),1))),"") -> 
R74: =IF(Q74="OK",IF(COUNTIF($G$4:G73,G74)=0,_xlfn.CONCAT(G74," ",$G$3),""),"") ->  | S74: =IF(ISNUMBER(E74),IF(flag_hdiff_confirm>0,IF(G74=cell_hdiff_confirm,IF(COUNTIF($E$4:E73,E74)=0,MAX($S$4:S73)+1,MAX(MAX($S$4:S73),1)),""),IF(COUNTIF($E$4:E73,E74)=0,MAX($S$4:S73)+1,MAX(MAX($S$4:S73),1))),"") ->  | X74: =IF(W74="OK",IF(COUNTIF($E$4:E73,E74)=0,_xlfn.CONCAT(E74," ",$E$3),""),"") ->  | Y74: =IF(ISNUMBER(G74),IF(flag_ddiff_confirm>0,IF(E74=cell_ddiff_confirm,IF(COUNTIF($G$4:G73,G74)=0,MAX($Y$4:Y73)+1,MAX(MAX($Y$4:Y73),1)),""),IF(COUNTIF($G$4:G73,G74)=0,MAX($Y$4:Y73)+1,MAX(MAX($Y$4:Y73),1))),"") -> 
R75: =IF(Q75="OK",IF(COUNTIF($G$4:G74,G75)=0,_xlfn.CONCAT(G75," ",$G$3),""),"") ->  | S75: =IF(ISNUMBER(E75),IF(flag_hdiff_confirm>0,IF(G75=cell_hdiff_confirm,IF(COUNTIF($E$4:E74,E75)=0,MAX($S$4:S74)+1,MAX(MAX($S$4:S74),1)),""),IF(COUNTIF($E$4:E74,E75)=0,MAX($S$4:S74)+1,MAX(MAX($S$4:S74),1))),"") ->  | X75: =IF(W75="OK",IF(COUNTIF($E$4:E74,E75)=0,_xlfn.CONCAT(E75," ",$E$3),""),"") ->  | Y75: =IF(ISNUMBER(G75),IF(flag_ddiff_confirm>0,IF(E75=cell_ddiff_confirm,IF(COUNTIF($G$4:G74,G75)=0,MAX($Y$4:Y74)+1,MAX(MAX($Y$4:Y74),1)),""),IF(COUNTIF($G$4:G74,G75)=0,MAX($Y$4:Y74)+1,MAX(MAX($Y$4:Y74),1))),"") -> 
R76: =IF(Q76="OK",IF(COUNTIF($G$4:G75,G76)=0,_xlfn.CONCAT(G76," ",$G$3),""),"") ->  | S76: =IF(ISNUMBER(E76),IF(flag_hdiff_confirm>0,IF(G76=cell_hdiff_confirm,IF(COUNTIF($E$4:E75,E76)=0,MAX($S$4:S75)+1,MAX(MAX($S$4:S75),1)),""),IF(COUNTIF($E$4:E75,E76)=0,MAX($S$4:S75)+1,MAX(MAX($S$4:S75),1))),"") ->  | X76: =IF(W76="OK",IF(COUNTIF($E$4:E75,E76)=0,_xlfn.CONCAT(E76," ",$E$3),""),"") ->  | Y76: =IF(ISNUMBER(G76),IF(flag_ddiff_confirm>0,IF(E76=cell_ddiff_confirm,IF(COUNTIF($G$4:G75,G76)=0,MAX($Y$4:Y75)+1,MAX(MAX($Y$4:Y75),1)),""),IF(COUNTIF($G$4:G75,G76)=0,MAX($Y$4:Y75)+1,MAX(MAX($Y$4:Y75),1))),"") -> 
R77: =IF(Q77="OK",IF(COUNTIF($G$4:G76,G77)=0,_xlfn.CONCAT(G77," ",$G$3),""),"") ->  | S77: =IF(ISNUMBER(E77),IF(flag_hdiff_confirm>0,IF(G77=cell_hdiff_confirm,IF(COUNTIF($E$4:E76,E77)=0,MAX($S$4:S76)+1,MAX(MAX($S$4:S76),1)),""),IF(COUNTIF($E$4:E76,E77)=0,MAX($S$4:S76)+1,MAX(MAX($S$4:S76),1))),"") ->  | X77: =IF(W77="OK",IF(COUNTIF($E$4:E76,E77)=0,_xlfn.CONCAT(E77," ",$E$3),""),"") ->  | Y77: =IF(ISNUMBER(G77),IF(flag_ddiff_confirm>0,IF(E77=cell_ddiff_confirm,IF(COUNTIF($G$4:G76,G77)=0,MAX($Y$4:Y76)+1,MAX(MAX($Y$4:Y76),1)),""),IF(COUNTIF($G$4:G76,G77)=0,MAX($Y$4:Y76)+1,MAX(MAX($Y$4:Y76),1))),"") -> 
R78: =IF(Q78="OK",IF(COUNTIF($G$4:G77,G78)=0,_xlfn.CONCAT(G78," ",$G$3),""),"") ->  | S78: =IF(ISNUMBER(E78),IF(flag_hdiff_confirm>0,IF(G78=cell_hdiff_confirm,IF(COUNTIF($E$4:E77,E78)=0,MAX($S$4:S77)+1,MAX(MAX($S$4:S77),1)),""),IF(COUNTIF($E$4:E77,E78)=0,MAX($S$4:S77)+1,MAX(MAX($S$4:S77),1))),"") ->  | X78: =IF(W78="OK",IF(COUNTIF($E$4:E77,E78)=0,_xlfn.CONCAT(E78," ",$E$3),""),"") ->  | Y78: =IF(ISNUMBER(G78),IF(flag_ddiff_confirm>0,IF(E78=cell_ddiff_confirm,IF(COUNTIF($G$4:G77,G78)=0,MAX($Y$4:Y77)+1,MAX(MAX($Y$4:Y77),1)),""),IF(COUNTIF($G$4:G77,G78)=0,MAX($Y$4:Y77)+1,MAX(MAX($Y$4:Y77),1))),"") -> 
R79: =IF(Q79="OK",IF(COUNTIF($G$4:G78,G79)=0,_xlfn.CONCAT(G79," ",$G$3),""),"") ->  | S79: =IF(ISNUMBER(E79),IF(flag_hdiff_confirm>0,IF(G79=cell_hdiff_confirm,IF(COUNTIF($E$4:E78,E79)=0,MAX($S$4:S78)+1,MAX(MAX($S$4:S78),1)),""),IF(COUNTIF($E$4:E78,E79)=0,MAX($S$4:S78)+1,MAX(MAX($S$4:S78),1))),"") ->  | X79: =IF(W79="OK",IF(COUNTIF($E$4:E78,E79)=0,_xlfn.CONCAT(E79," ",$E$3),""),"") ->  | Y79: =IF(ISNUMBER(G79),IF(flag_ddiff_confirm>0,IF(E79=cell_ddiff_confirm,IF(COUNTIF($G$4:G78,G79)=0,MAX($Y$4:Y78)+1,MAX(MAX($Y$4:Y78),1)),""),IF(COUNTIF($G$4:G78,G79)=0,MAX($Y$4:Y78)+1,MAX(MAX($Y$4:Y78),1))),"") -> 
R80: =IF(Q80="OK",IF(COUNTIF($G$4:G79,G80)=0,_xlfn.CONCAT(G80," ",$G$3),""),"") ->  | S80: =IF(ISNUMBER(E80),IF(flag_hdiff_confirm>0,IF(G80=cell_hdiff_confirm,IF(COUNTIF($E$4:E79,E80)=0,MAX($S$4:S79)+1,MAX(MAX($S$4:S79),1)),""),IF(COUNTIF($E$4:E79,E80)=0,MAX($S$4:S79)+1,MAX(MAX($S$4:S79),1))),"") ->  | X80: =IF(W80="OK",IF(COUNTIF($E$4:E79,E80)=0,_xlfn.CONCAT(E80," ",$E$3),""),"") ->  | Y80: =IF(ISNUMBER(G80),IF(flag_ddiff_confirm>0,IF(E80=cell_ddiff_confirm,IF(COUNTIF($G$4:G79,G80)=0,MAX($Y$4:Y79)+1,MAX(MAX($Y$4:Y79),1)),""),IF(COUNTIF($G$4:G79,G80)=0,MAX($Y$4:Y79)+1,MAX(MAX($Y$4:Y79),1))),"") -> 
R81: =IF(Q81="OK",IF(COUNTIF($G$4:G80,G81)=0,_xlfn.CONCAT(G81," ",$G$3),""),"") ->  | S81: =IF(ISNUMBER(E81),IF(flag_hdiff_confirm>0,IF(G81=cell_hdiff_confirm,IF(COUNTIF($E$4:E80,E81)=0,MAX($S$4:S80)+1,MAX(MAX($S$4:S80),1)),""),IF(COUNTIF($E$4:E80,E81)=0,MAX($S$4:S80)+1,MAX(MAX($S$4:S80),1))),"") ->  | X81: =IF(W81="OK",IF(COUNTIF($E$4:E80,E81)=0,_xlfn.CONCAT(E81," ",$E$3),""),"") ->  | Y81: =IF(ISNUMBER(G81),IF(flag_ddiff_confirm>0,IF(E81=cell_ddiff_confirm,IF(COUNTIF($G$4:G80,G81)=0,MAX($Y$4:Y80)+1,MAX(MAX($Y$4:Y80),1)),""),IF(COUNTIF($G$4:G80,G81)=0,MAX($Y$4:Y80)+1,MAX(MAX($Y$4:Y80),1))),"") -> 
R82: =IF(Q82="OK",IF(COUNTIF($G$4:G81,G82)=0,_xlfn.CONCAT(G82," ",$G$3),""),"") ->  | S82: =IF(ISNUMBER(E82),IF(flag_hdiff_confirm>0,IF(G82=cell_hdiff_confirm,IF(COUNTIF($E$4:E81,E82)=0,MAX($S$4:S81)+1,MAX(MAX($S$4:S81),1)),""),IF(COUNTIF($E$4:E81,E82)=0,MAX($S$4:S81)+1,MAX(MAX($S$4:S81),1))),"") ->  | X82: =IF(W82="OK",IF(COUNTIF($E$4:E81,E82)=0,_xlfn.CONCAT(E82," ",$E$3),""),"") ->  | Y82: =IF(ISNUMBER(G82),IF(flag_ddiff_confirm>0,IF(E82=cell_ddiff_confirm,IF(COUNTIF($G$4:G81,G82)=0,MAX($Y$4:Y81)+1,MAX(MAX($Y$4:Y81),1)),""),IF(COUNTIF($G$4:G81,G82)=0,MAX($Y$4:Y81)+1,MAX(MAX($Y$4:Y81),1))),"") -> 
R83: =IF(Q83="OK",IF(COUNTIF($G$4:G82,G83)=0,_xlfn.CONCAT(G83," ",$G$3),""),"") ->  | S83: =IF(ISNUMBER(E83),IF(flag_hdiff_confirm>0,IF(G83=cell_hdiff_confirm,IF(COUNTIF($E$4:E82,E83)=0,MAX($S$4:S82)+1,MAX(MAX($S$4:S82),1)),""),IF(COUNTIF($E$4:E82,E83)=0,MAX($S$4:S82)+1,MAX(MAX($S$4:S82),1))),"") ->  | X83: =IF(W83="OK",IF(COUNTIF($E$4:E82,E83)=0,_xlfn.CONCAT(E83," ",$E$3),""),"") ->  | Y83: =IF(ISNUMBER(G83),IF(flag_ddiff_confirm>0,IF(E83=cell_ddiff_confirm,IF(COUNTIF($G$4:G82,G83)=0,MAX($Y$4:Y82)+1,MAX(MAX($Y$4:Y82),1)),""),IF(COUNTIF($G$4:G82,G83)=0,MAX($Y$4:Y82)+1,MAX(MAX($Y$4:Y82),1))),"") -> 
R84: =IF(Q84="OK",IF(COUNTIF($G$4:G83,G84)=0,_xlfn.CONCAT(G84," ",$G$3),""),"") ->  | S84: =IF(ISNUMBER(E84),IF(flag_hdiff_confirm>0,IF(G84=cell_hdiff_confirm,IF(COUNTIF($E$4:E83,E84)=0,MAX($S$4:S83)+1,MAX(MAX($S$4:S83),1)),""),IF(COUNTIF($E$4:E83,E84)=0,MAX($S$4:S83)+1,MAX(MAX($S$4:S83),1))),"") ->  | X84: =IF(W84="OK",IF(COUNTIF($E$4:E83,E84)=0,_xlfn.CONCAT(E84," ",$E$3),""),"") ->  | Y84: =IF(ISNUMBER(G84),IF(flag_ddiff_confirm>0,IF(E84=cell_ddiff_confirm,IF(COUNTIF($G$4:G83,G84)=0,MAX($Y$4:Y83)+1,MAX(MAX($Y$4:Y83),1)),""),IF(COUNTIF($G$4:G83,G84)=0,MAX($Y$4:Y83)+1,MAX(MAX($Y$4:Y83),1))),"") -> 
R85: =IF(Q85="OK",IF(COUNTIF($G$4:G84,G85)=0,_xlfn.CONCAT(G85," ",$G$3),""),"") ->  | S85: =IF(ISNUMBER(E85),IF(flag_hdiff_confirm>0,IF(G85=cell_hdiff_confirm,IF(COUNTIF($E$4:E84,E85)=0,MAX($S$4:S84)+1,MAX(MAX($S$4:S84),1)),""),IF(COUNTIF($E$4:E84,E85)=0,MAX($S$4:S84)+1,MAX(MAX($S$4:S84),1))),"") ->  | X85: =IF(W85="OK",IF(COUNTIF($E$4:E84,E85)=0,_xlfn.CONCAT(E85," ",$E$3),""),"") ->  | Y85: =IF(ISNUMBER(G85),IF(flag_ddiff_confirm>0,IF(E85=cell_ddiff_confirm,IF(COUNTIF($G$4:G84,G85)=0,MAX($Y$4:Y84)+1,MAX(MAX($Y$4:Y84),1)),""),IF(COUNTIF($G$4:G84,G85)=0,MAX($Y$4:Y84)+1,MAX(MAX($Y$4:Y84),1))),"") -> 
R86: =IF(Q86="OK",IF(COUNTIF($G$4:G85,G86)=0,_xlfn.CONCAT(G86," ",$G$3),""),"") ->  | S86: =IF(ISNUMBER(E86),IF(flag_hdiff_confirm>0,IF(G86=cell_hdiff_confirm,IF(COUNTIF($E$4:E85,E86)=0,MAX($S$4:S85)+1,MAX(MAX($S$4:S85),1)),""),IF(COUNTIF($E$4:E85,E86)=0,MAX($S$4:S85)+1,MAX(MAX($S$4:S85),1))),"") ->  | X86: =IF(W86="OK",IF(COUNTIF($E$4:E85,E86)=0,_xlfn.CONCAT(E86," ",$E$3),""),"") ->  | Y86: =IF(ISNUMBER(G86),IF(flag_ddiff_confirm>0,IF(E86=cell_ddiff_confirm,IF(COUNTIF($G$4:G85,G86)=0,MAX($Y$4:Y85)+1,MAX(MAX($Y$4:Y85),1)),""),IF(COUNTIF($G$4:G85,G86)=0,MAX($Y$4:Y85)+1,MAX(MAX($Y$4:Y85),1))),"") -> 
R87: =IF(Q87="OK",IF(COUNTIF($G$4:G86,G87)=0,_xlfn.CONCAT(G87," ",$G$3),""),"") ->  | S87: =IF(ISNUMBER(E87),IF(flag_hdiff_confirm>0,IF(G87=cell_hdiff_confirm,IF(COUNTIF($E$4:E86,E87)=0,MAX($S$4:S86)+1,MAX(MAX($S$4:S86),1)),""),IF(COUNTIF($E$4:E86,E87)=0,MAX($S$4:S86)+1,MAX(MAX($S$4:S86),1))),"") ->  | X87: =IF(W87="OK",IF(COUNTIF($E$4:E86,E87)=0,_xlfn.CONCAT(E87," ",$E$3),""),"") ->  | Y87: =IF(ISNUMBER(G87),IF(flag_ddiff_confirm>0,IF(E87=cell_ddiff_confirm,IF(COUNTIF($G$4:G86,G87)=0,MAX($Y$4:Y86)+1,MAX(MAX($Y$4:Y86),1)),""),IF(COUNTIF($G$4:G86,G87)=0,MAX($Y$4:Y86)+1,MAX(MAX($Y$4:Y86),1))),"") -> 
R88: =IF(Q88="OK",IF(COUNTIF($G$4:G87,G88)=0,_xlfn.CONCAT(G88," ",$G$3),""),"") ->  | S88: =IF(ISNUMBER(E88),IF(flag_hdiff_confirm>0,IF(G88=cell_hdiff_confirm,IF(COUNTIF($E$4:E87,E88)=0,MAX($S$4:S87)+1,MAX(MAX($S$4:S87),1)),""),IF(COUNTIF($E$4:E87,E88)=0,MAX($S$4:S87)+1,MAX(MAX($S$4:S87),1))),"") ->  | X88: =IF(W88="OK",IF(COUNTIF($E$4:E87,E88)=0,_xlfn.CONCAT(E88," ",$E$3),""),"") ->  | Y88: =IF(ISNUMBER(G88),IF(flag_ddiff_confirm>0,IF(E88=cell_ddiff_confirm,IF(COUNTIF($G$4:G87,G88)=0,MAX($Y$4:Y87)+1,MAX(MAX($Y$4:Y87),1)),""),IF(COUNTIF($G$4:G87,G88)=0,MAX($Y$4:Y87)+1,MAX(MAX($Y$4:Y87),1))),"") -> 
R89: =IF(Q89="OK",IF(COUNTIF($G$4:G88,G89)=0,_xlfn.CONCAT(G89," ",$G$3),""),"") ->  | S89: =IF(ISNUMBER(E89),IF(flag_hdiff_confirm>0,IF(G89=cell_hdiff_confirm,IF(COUNTIF($E$4:E88,E89)=0,MAX($S$4:S88)+1,MAX(MAX($S$4:S88),1)),""),IF(COUNTIF($E$4:E88,E89)=0,MAX($S$4:S88)+1,MAX(MAX($S$4:S88),1))),"") ->  | X89: =IF(W89="OK",IF(COUNTIF($E$4:E88,E89)=0,_xlfn.CONCAT(E89," ",$E$3),""),"") ->  | Y89: =IF(ISNUMBER(G89),IF(flag_ddiff_confirm>0,IF(E89=cell_ddiff_confirm,IF(COUNTIF($G$4:G88,G89)=0,MAX($Y$4:Y88)+1,MAX(MAX($Y$4:Y88),1)),""),IF(COUNTIF($G$4:G88,G89)=0,MAX($Y$4:Y88)+1,MAX(MAX($Y$4:Y88),1))),"") -> 
R90: =IF(Q90="OK",IF(COUNTIF($G$4:G89,G90)=0,_xlfn.CONCAT(G90," ",$G$3),""),"") ->  | S90: =IF(ISNUMBER(E90),IF(flag_hdiff_confirm>0,IF(G90=cell_hdiff_confirm,IF(COUNTIF($E$4:E89,E90)=0,MAX($S$4:S89)+1,MAX(MAX($S$4:S89),1)),""),IF(COUNTIF($E$4:E89,E90)=0,MAX($S$4:S89)+1,MAX(MAX($S$4:S89),1))),"") ->  | X90: =IF(W90="OK",IF(COUNTIF($E$4:E89,E90)=0,_xlfn.CONCAT(E90," ",$E$3),""),"") ->  | Y90: =IF(ISNUMBER(G90),IF(flag_ddiff_confirm>0,IF(E90=cell_ddiff_confirm,IF(COUNTIF($G$4:G89,G90)=0,MAX($Y$4:Y89)+1,MAX(MAX($Y$4:Y89),1)),""),IF(COUNTIF($G$4:G89,G90)=0,MAX($Y$4:Y89)+1,MAX(MAX($Y$4:Y89),1))),"") -> 
R91: =IF(Q91="OK",IF(COUNTIF($G$4:G90,G91)=0,_xlfn.CONCAT(G91," ",$G$3),""),"") ->  | S91: =IF(ISNUMBER(E91),IF(flag_hdiff_confirm>0,IF(G91=cell_hdiff_confirm,IF(COUNTIF($E$4:E90,E91)=0,MAX($S$4:S90)+1,MAX(MAX($S$4:S90),1)),""),IF(COUNTIF($E$4:E90,E91)=0,MAX($S$4:S90)+1,MAX(MAX($S$4:S90),1))),"") ->  | X91: =IF(W91="OK",IF(COUNTIF($E$4:E90,E91)=0,_xlfn.CONCAT(E91," ",$E$3),""),"") ->  | Y91: =IF(ISNUMBER(G91),IF(flag_ddiff_confirm>0,IF(E91=cell_ddiff_confirm,IF(COUNTIF($G$4:G90,G91)=0,MAX($Y$4:Y90)+1,MAX(MAX($Y$4:Y90),1)),""),IF(COUNTIF($G$4:G90,G91)=0,MAX($Y$4:Y90)+1,MAX(MAX($Y$4:Y90),1))),"") -> 
R92: =IF(Q92="OK",IF(COUNTIF($G$4:G91,G92)=0,_xlfn.CONCAT(G92," ",$G$3),""),"") ->  | S92: =IF(ISNUMBER(E92),IF(flag_hdiff_confirm>0,IF(G92=cell_hdiff_confirm,IF(COUNTIF($E$4:E91,E92)=0,MAX($S$4:S91)+1,MAX(MAX($S$4:S91),1)),""),IF(COUNTIF($E$4:E91,E92)=0,MAX($S$4:S91)+1,MAX(MAX($S$4:S91),1))),"") ->  | X92: =IF(W92="OK",IF(COUNTIF($E$4:E91,E92)=0,_xlfn.CONCAT(E92," ",$E$3),""),"") ->  | Y92: =IF(ISNUMBER(G92),IF(flag_ddiff_confirm>0,IF(E92=cell_ddiff_confirm,IF(COUNTIF($G$4:G91,G92)=0,MAX($Y$4:Y91)+1,MAX(MAX($Y$4:Y91),1)),""),IF(COUNTIF($G$4:G91,G92)=0,MAX($Y$4:Y91)+1,MAX(MAX($Y$4:Y91),1))),"") -> 
R93: =IF(Q93="OK",IF(COUNTIF($G$4:G92,G93)=0,_xlfn.CONCAT(G93," ",$G$3),""),"") ->  | S93: =IF(ISNUMBER(E93),IF(flag_hdiff_confirm>0,IF(G93=cell_hdiff_confirm,IF(COUNTIF($E$4:E92,E93)=0,MAX($S$4:S92)+1,MAX(MAX($S$4:S92),1)),""),IF(COUNTIF($E$4:E92,E93)=0,MAX($S$4:S92)+1,MAX(MAX($S$4:S92),1))),"") ->  | X93: =IF(W93="OK",IF(COUNTIF($E$4:E92,E93)=0,_xlfn.CONCAT(E93," ",$E$3),""),"") ->  | Y93: =IF(ISNUMBER(G93),IF(flag_ddiff_confirm>0,IF(E93=cell_ddiff_confirm,IF(COUNTIF($G$4:G92,G93)=0,MAX($Y$4:Y92)+1,MAX(MAX($Y$4:Y92),1)),""),IF(COUNTIF($G$4:G92,G93)=0,MAX($Y$4:Y92)+1,MAX(MAX($Y$4:Y92),1))),"") -> 
R94: =IF(Q94="OK",IF(COUNTIF($G$4:G93,G94)=0,_xlfn.CONCAT(G94," ",$G$3),""),"") ->  | S94: =IF(ISNUMBER(E94),IF(flag_hdiff_confirm>0,IF(G94=cell_hdiff_confirm,IF(COUNTIF($E$4:E93,E94)=0,MAX($S$4:S93)+1,MAX(MAX($S$4:S93),1)),""),IF(COUNTIF($E$4:E93,E94)=0,MAX($S$4:S93)+1,MAX(MAX($S$4:S93),1))),"") ->  | X94: =IF(W94="OK",IF(COUNTIF($E$4:E93,E94)=0,_xlfn.CONCAT(E94," ",$E$3),""),"") ->  | Y94: =IF(ISNUMBER(G94),IF(flag_ddiff_confirm>0,IF(E94=cell_ddiff_confirm,IF(COUNTIF($G$4:G93,G94)=0,MAX($Y$4:Y93)+1,MAX(MAX($Y$4:Y93),1)),""),IF(COUNTIF($G$4:G93,G94)=0,MAX($Y$4:Y93)+1,MAX(MAX($Y$4:Y93),1))),"") -> 
R95: =IF(Q95="OK",IF(COUNTIF($G$4:G94,G95)=0,_xlfn.CONCAT(G95," ",$G$3),""),"") ->  | S95: =IF(ISNUMBER(E95),IF(flag_hdiff_confirm>0,IF(G95=cell_hdiff_confirm,IF(COUNTIF($E$4:E94,E95)=0,MAX($S$4:S94)+1,MAX(MAX($S$4:S94),1)),""),IF(COUNTIF($E$4:E94,E95)=0,MAX($S$4:S94)+1,MAX(MAX($S$4:S94),1))),"") ->  | X95: =IF(W95="OK",IF(COUNTIF($E$4:E94,E95)=0,_xlfn.CONCAT(E95," ",$E$3),""),"") ->  | Y95: =IF(ISNUMBER(G95),IF(flag_ddiff_confirm>0,IF(E95=cell_ddiff_confirm,IF(COUNTIF($G$4:G94,G95)=0,MAX($Y$4:Y94)+1,MAX(MAX($Y$4:Y94),1)),""),IF(COUNTIF($G$4:G94,G95)=0,MAX($Y$4:Y94)+1,MAX(MAX($Y$4:Y94),1))),"") -> 
R96: =IF(Q96="OK",IF(COUNTIF($G$4:G95,G96)=0,_xlfn.CONCAT(G96," ",$G$3),""),"") ->  | S96: =IF(ISNUMBER(E96),IF(flag_hdiff_confirm>0,IF(G96=cell_hdiff_confirm,IF(COUNTIF($E$4:E95,E96)=0,MAX($S$4:S95)+1,MAX(MAX($S$4:S95),1)),""),IF(COUNTIF($E$4:E95,E96)=0,MAX($S$4:S95)+1,MAX(MAX($S$4:S95),1))),"") ->  | X96: =IF(W96="OK",IF(COUNTIF($E$4:E95,E96)=0,_xlfn.CONCAT(E96," ",$E$3),""),"") ->  | Y96: =IF(ISNUMBER(G96),IF(flag_ddiff_confirm>0,IF(E96=cell_ddiff_confirm,IF(COUNTIF($G$4:G95,G96)=0,MAX($Y$4:Y95)+1,MAX(MAX($Y$4:Y95),1)),""),IF(COUNTIF($G$4:G95,G96)=0,MAX($Y$4:Y95)+1,MAX(MAX($Y$4:Y95),1))),"") -> 
R97: =IF(Q97="OK",IF(COUNTIF($G$4:G96,G97)=0,_xlfn.CONCAT(G97," ",$G$3),""),"") ->  | S97: =IF(ISNUMBER(E97),IF(flag_hdiff_confirm>0,IF(G97=cell_hdiff_confirm,IF(COUNTIF($E$4:E96,E97)=0,MAX($S$4:S96)+1,MAX(MAX($S$4:S96),1)),""),IF(COUNTIF($E$4:E96,E97)=0,MAX($S$4:S96)+1,MAX(MAX($S$4:S96),1))),"") ->  | X97: =IF(W97="OK",IF(COUNTIF($E$4:E96,E97)=0,_xlfn.CONCAT(E97," ",$E$3),""),"") ->  | Y97: =IF(ISNUMBER(G97),IF(flag_ddiff_confirm>0,IF(E97=cell_ddiff_confirm,IF(COUNTIF($G$4:G96,G97)=0,MAX($Y$4:Y96)+1,MAX(MAX($Y$4:Y96),1)),""),IF(COUNTIF($G$4:G96,G97)=0,MAX($Y$4:Y96)+1,MAX(MAX($Y$4:Y96),1))),"") -> 
R98: =IF(Q98="OK",IF(COUNTIF($G$4:G97,G98)=0,_xlfn.CONCAT(G98," ",$G$3),""),"") ->  | S98: =IF(ISNUMBER(E98),IF(flag_hdiff_confirm>0,IF(G98=cell_hdiff_confirm,IF(COUNTIF($E$4:E97,E98)=0,MAX($S$4:S97)+1,MAX(MAX($S$4:S97),1)),""),IF(COUNTIF($E$4:E97,E98)=0,MAX($S$4:S97)+1,MAX(MAX($S$4:S97),1))),"") ->  | X98: =IF(W98="OK",IF(COUNTIF($E$4:E97,E98)=0,_xlfn.CONCAT(E98," ",$E$3),""),"") ->  | Y98: =IF(ISNUMBER(G98),IF(flag_ddiff_confirm>0,IF(E98=cell_ddiff_confirm,IF(COUNTIF($G$4:G97,G98)=0,MAX($Y$4:Y97)+1,MAX(MAX($Y$4:Y97),1)),""),IF(COUNTIF($G$4:G97,G98)=0,MAX($Y$4:Y97)+1,MAX(MAX($Y$4:Y97),1))),"") -> 
R99: =IF(Q99="OK",IF(COUNTIF($G$4:G98,G99)=0,_xlfn.CONCAT(G99," ",$G$3),""),"") ->  | S99: =IF(ISNUMBER(E99),IF(flag_hdiff_confirm>0,IF(G99=cell_hdiff_confirm,IF(COUNTIF($E$4:E98,E99)=0,MAX($S$4:S98)+1,MAX(MAX($S$4:S98),1)),""),IF(COUNTIF($E$4:E98,E99)=0,MAX($S$4:S98)+1,MAX(MAX($S$4:S98),1))),"") ->  | X99: =IF(W99="OK",IF(COUNTIF($E$4:E98,E99)=0,_xlfn.CONCAT(E99," ",$E$3),""),"") ->  | Y99: =IF(ISNUMBER(G99),IF(flag_ddiff_confirm>0,IF(E99=cell_ddiff_confirm,IF(COUNTIF($G$4:G98,G99)=0,MAX($Y$4:Y98)+1,MAX(MAX($Y$4:Y98),1)),""),IF(COUNTIF($G$4:G98,G99)=0,MAX($Y$4:Y98)+1,MAX(MAX($Y$4:Y98),1))),"") -> 
R100: =IF(Q100="OK",IF(COUNTIF($G$4:G99,G100)=0,_xlfn.CONCAT(G100," ",$G$3),""),"") ->  | S100: =IF(ISNUMBER(E100),IF(flag_hdiff_confirm>0,IF(G100=cell_hdiff_confirm,IF(COUNTIF($E$4:E99,E100)=0,MAX($S$4:S99)+1,MAX(MAX($S$4:S99),1)),""),IF(COUNTIF($E$4:E99,E100)=0,MAX($S$4:S99)+1,MAX(MAX($S$4:S99),1))),"") ->  | X100: =IF(W100="OK",IF(COUNTIF($E$4:E99,E100)=0,_xlfn.CONCAT(E100," ",$E$3),""),"") ->  | Y100: =IF(ISNUMBER(G100),IF(flag_ddiff_confirm>0,IF(E100=cell_ddiff_confirm,IF(COUNTIF($G$4:G99,G100)=0,MAX($Y$4:Y99)+1,MAX(MAX($Y$4:Y99),1)),""),IF(COUNTIF($G$4:G99,G100)=0,MAX($Y$4:Y99)+1,MAX(MAX($Y$4:Y99),1))),"") -> 
R101: =IF(Q101="OK",IF(COUNTIF($G$4:G100,G101)=0,_xlfn.CONCAT(G101," ",$G$3),""),"") ->  | S101: =IF(ISNUMBER(E101),IF(flag_hdiff_confirm>0,IF(G101=cell_hdiff_confirm,IF(COUNTIF($E$4:E100,E101)=0,MAX($S$4:S100)+1,MAX(MAX($S$4:S100),1)),""),IF(COUNTIF($E$4:E100,E101)=0,MAX($S$4:S100)+1,MAX(MAX($S$4:S100),1))),"") ->  | X101: =IF(W101="OK",IF(COUNTIF($E$4:E100,E101)=0,_xlfn.CONCAT(E101," ",$E$3),""),"") ->  | Y101: =IF(ISNUMBER(G101),IF(flag_ddiff_confirm>0,IF(E101=cell_ddiff_confirm,IF(COUNTIF($G$4:G100,G101)=0,MAX($Y$4:Y100)+1,MAX(MAX($Y$4:Y100),1)),""),IF(COUNTIF($G$4:G100,G101)=0,MAX($Y$4:Y100)+1,MAX(MAX($Y$4:Y100),1))),"") -> 
R102: =IF(Q102="OK",IF(COUNTIF($G$4:G101,G102)=0,_xlfn.CONCAT(G102," ",$G$3),""),"") ->  | S102: =IF(ISNUMBER(E102),IF(flag_hdiff_confirm>0,IF(G102=cell_hdiff_confirm,IF(COUNTIF($E$4:E101,E102)=0,MAX($S$4:S101)+1,MAX(MAX($S$4:S101),1)),""),IF(COUNTIF($E$4:E101,E102)=0,MAX($S$4:S101)+1,MAX(MAX($S$4:S101),1))),"") ->  | X102: =IF(W102="OK",IF(COUNTIF($E$4:E101,E102)=0,_xlfn.CONCAT(E102," ",$E$3),""),"") ->  | Y102: =IF(ISNUMBER(G102),IF(flag_ddiff_confirm>0,IF(E102=cell_ddiff_confirm,IF(COUNTIF($G$4:G101,G102)=0,MAX($Y$4:Y101)+1,MAX(MAX($Y$4:Y101),1)),""),IF(COUNTIF($G$4:G101,G102)=0,MAX($Y$4:Y101)+1,MAX(MAX($Y$4:Y101),1))),"") -> 
R103: =IF(Q103="OK",IF(COUNTIF($G$4:G102,G103)=0,_xlfn.CONCAT(G103," ",$G$3),""),"") ->  | S103: =IF(ISNUMBER(E103),IF(flag_hdiff_confirm>0,IF(G103=cell_hdiff_confirm,IF(COUNTIF($E$4:E102,E103)=0,MAX($S$4:S102)+1,MAX(MAX($S$4:S102),1)),""),IF(COUNTIF($E$4:E102,E103)=0,MAX($S$4:S102)+1,MAX(MAX($S$4:S102),1))),"") ->  | X103: =IF(W103="OK",IF(COUNTIF($E$4:E102,E103)=0,_xlfn.CONCAT(E103," ",$E$3),""),"") ->  | Y103: =IF(ISNUMBER(G103),IF(flag_ddiff_confirm>0,IF(E103=cell_ddiff_confirm,IF(COUNTIF($G$4:G102,G103)=0,MAX($Y$4:Y102)+1,MAX(MAX($Y$4:Y102),1)),""),IF(COUNTIF($G$4:G102,G103)=0,MAX($Y$4:Y102)+1,MAX(MAX($Y$4:Y102),1))),"") -> 
R104: =IF(Q104="OK",IF(COUNTIF($G$4:G103,G104)=0,_xlfn.CONCAT(G104," ",$G$3),""),"") ->  | S104: =IF(ISNUMBER(E104),IF(flag_hdiff_confirm>0,IF(G104=cell_hdiff_confirm,IF(COUNTIF($E$4:E103,E104)=0,MAX($S$4:S103)+1,MAX(MAX($S$4:S103),1)),""),IF(COUNTIF($E$4:E103,E104)=0,MAX($S$4:S103)+1,MAX(MAX($S$4:S103),1))),"") ->  | X104: =IF(W104="OK",IF(COUNTIF($E$4:E103,E104)=0,_xlfn.CONCAT(E104," ",$E$3),""),"") ->  | Y104: =IF(ISNUMBER(G104),IF(flag_ddiff_confirm>0,IF(E104=cell_ddiff_confirm,IF(COUNTIF($G$4:G103,G104)=0,MAX($Y$4:Y103)+1,MAX(MAX($Y$4:Y103),1)),""),IF(COUNTIF($G$4:G103,G104)=0,MAX($Y$4:Y103)+1,MAX(MAX($Y$4:Y103),1))),"") -> 
R105: =IF(Q105="OK",IF(COUNTIF($G$4:G104,G105)=0,_xlfn.CONCAT(G105," ",$G$3),""),"") ->  | S105: =IF(ISNUMBER(E105),IF(flag_hdiff_confirm>0,IF(G105=cell_hdiff_confirm,IF(COUNTIF($E$4:E104,E105)=0,MAX($S$4:S104)+1,MAX(MAX($S$4:S104),1)),""),IF(COUNTIF($E$4:E104,E105)=0,MAX($S$4:S104)+1,MAX(MAX($S$4:S104),1))),"") ->  | X105: =IF(W105="OK",IF(COUNTIF($E$4:E104,E105)=0,_xlfn.CONCAT(E105," ",$E$3),""),"") ->  | Y105: =IF(ISNUMBER(G105),IF(flag_ddiff_confirm>0,IF(E105=cell_ddiff_confirm,IF(COUNTIF($G$4:G104,G105)=0,MAX($Y$4:Y104)+1,MAX(MAX($Y$4:Y104),1)),""),IF(COUNTIF($G$4:G104,G105)=0,MAX($Y$4:Y104)+1,MAX(MAX($Y$4:Y104),1))),"") -> 
R106: =IF(Q106="OK",IF(COUNTIF($G$4:G105,G106)=0,_xlfn.CONCAT(G106," ",$G$3),""),"") ->  | S106: =IF(ISNUMBER(E106),IF(flag_hdiff_confirm>0,IF(G106=cell_hdiff_confirm,IF(COUNTIF($E$4:E105,E106)=0,MAX($S$4:S105)+1,MAX(MAX($S$4:S105),1)),""),IF(COUNTIF($E$4:E105,E106)=0,MAX($S$4:S105)+1,MAX(MAX($S$4:S105),1))),"") ->  | X106: =IF(W106="OK",IF(COUNTIF($E$4:E105,E106)=0,_xlfn.CONCAT(E106," ",$E$3),""),"") ->  | Y106: =IF(ISNUMBER(G106),IF(flag_ddiff_confirm>0,IF(E106=cell_ddiff_confirm,IF(COUNTIF($G$4:G105,G106)=0,MAX($Y$4:Y105)+1,MAX(MAX($Y$4:Y105),1)),""),IF(COUNTIF($G$4:G105,G106)=0,MAX($Y$4:Y105)+1,MAX(MAX($Y$4:Y105),1))),"") -> 
R107: =IF(Q107="OK",IF(COUNTIF($G$4:G106,G107)=0,_xlfn.CONCAT(G107," ",$G$3),""),"") ->  | S107: =IF(ISNUMBER(E107),IF(flag_hdiff_confirm>0,IF(G107=cell_hdiff_confirm,IF(COUNTIF($E$4:E106,E107)=0,MAX($S$4:S106)+1,MAX(MAX($S$4:S106),1)),""),IF(COUNTIF($E$4:E106,E107)=0,MAX($S$4:S106)+1,MAX(MAX($S$4:S106),1))),"") ->  | X107: =IF(W107="OK",IF(COUNTIF($E$4:E106,E107)=0,_xlfn.CONCAT(E107," ",$E$3),""),"") ->  | Y107: =IF(ISNUMBER(G107),IF(flag_ddiff_confirm>0,IF(E107=cell_ddiff_confirm,IF(COUNTIF($G$4:G106,G107)=0,MAX($Y$4:Y106)+1,MAX(MAX($Y$4:Y106),1)),""),IF(COUNTIF($G$4:G106,G107)=0,MAX($Y$4:Y106)+1,MAX(MAX($Y$4:Y106),1))),"") -> 
R108: =IF(Q108="OK",IF(COUNTIF($G$4:G107,G108)=0,_xlfn.CONCAT(G108," ",$G$3),""),"") ->  | S108: =IF(ISNUMBER(E108),IF(flag_hdiff_confirm>0,IF(G108=cell_hdiff_confirm,IF(COUNTIF($E$4:E107,E108)=0,MAX($S$4:S107)+1,MAX(MAX($S$4:S107),1)),""),IF(COUNTIF($E$4:E107,E108)=0,MAX($S$4:S107)+1,MAX(MAX($S$4:S107),1))),"") ->  | X108: =IF(W108="OK",IF(COUNTIF($E$4:E107,E108)=0,_xlfn.CONCAT(E108," ",$E$3),""),"") ->  | Y108: =IF(ISNUMBER(G108),IF(flag_ddiff_confirm>0,IF(E108=cell_ddiff_confirm,IF(COUNTIF($G$4:G107,G108)=0,MAX($Y$4:Y107)+1,MAX(MAX($Y$4:Y107),1)),""),IF(COUNTIF($G$4:G107,G108)=0,MAX($Y$4:Y107)+1,MAX(MAX($Y$4:Y107),1))),"") -> 
R109: =IF(Q109="OK",IF(COUNTIF($G$4:G108,G109)=0,_xlfn.CONCAT(G109," ",$G$3),""),"") ->  | S109: =IF(ISNUMBER(E109),IF(flag_hdiff_confirm>0,IF(G109=cell_hdiff_confirm,IF(COUNTIF($E$4:E108,E109)=0,MAX($S$4:S108)+1,MAX(MAX($S$4:S108),1)),""),IF(COUNTIF($E$4:E108,E109)=0,MAX($S$4:S108)+1,MAX(MAX($S$4:S108),1))),"") ->  | X109: =IF(W109="OK",IF(COUNTIF($E$4:E108,E109)=0,_xlfn.CONCAT(E109," ",$E$3),""),"") ->  | Y109: =IF(ISNUMBER(G109),IF(flag_ddiff_confirm>0,IF(E109=cell_ddiff_confirm,IF(COUNTIF($G$4:G108,G109)=0,MAX($Y$4:Y108)+1,MAX(MAX($Y$4:Y108),1)),""),IF(COUNTIF($G$4:G108,G109)=0,MAX($Y$4:Y108)+1,MAX(MAX($Y$4:Y108),1))),"") -> 
R110: =IF(Q110="OK",IF(COUNTIF($G$4:G109,G110)=0,_xlfn.CONCAT(G110," ",$G$3),""),"") ->  | S110: =IF(ISNUMBER(E110),IF(flag_hdiff_confirm>0,IF(G110=cell_hdiff_confirm,IF(COUNTIF($E$4:E109,E110)=0,MAX($S$4:S109)+1,MAX(MAX($S$4:S109),1)),""),IF(COUNTIF($E$4:E109,E110)=0,MAX($S$4:S109)+1,MAX(MAX($S$4:S109),1))),"") ->  | X110: =IF(W110="OK",IF(COUNTIF($E$4:E109,E110)=0,_xlfn.CONCAT(E110," ",$E$3),""),"") ->  | Y110: =IF(ISNUMBER(G110),IF(flag_ddiff_confirm>0,IF(E110=cell_ddiff_confirm,IF(COUNTIF($G$4:G109,G110)=0,MAX($Y$4:Y109)+1,MAX(MAX($Y$4:Y109),1)),""),IF(COUNTIF($G$4:G109,G110)=0,MAX($Y$4:Y109)+1,MAX(MAX($Y$4:Y109),1))),"") -> 
R111: =IF(Q111="OK",IF(COUNTIF($G$4:G110,G111)=0,_xlfn.CONCAT(G111," ",$G$3),""),"") ->  | S111: =IF(ISNUMBER(E111),IF(flag_hdiff_confirm>0,IF(G111=cell_hdiff_confirm,IF(COUNTIF($E$4:E110,E111)=0,MAX($S$4:S110)+1,MAX(MAX($S$4:S110),1)),""),IF(COUNTIF($E$4:E110,E111)=0,MAX($S$4:S110)+1,MAX(MAX($S$4:S110),1))),"") ->  | X111: =IF(W111="OK",IF(COUNTIF($E$4:E110,E111)=0,_xlfn.CONCAT(E111," ",$E$3),""),"") ->  | Y111: =IF(ISNUMBER(G111),IF(flag_ddiff_confirm>0,IF(E111=cell_ddiff_confirm,IF(COUNTIF($G$4:G110,G111)=0,MAX($Y$4:Y110)+1,MAX(MAX($Y$4:Y110),1)),""),IF(COUNTIF($G$4:G110,G111)=0,MAX($Y$4:Y110)+1,MAX(MAX($Y$4:Y110),1))),"") -> 
R112: =IF(Q112="OK",IF(COUNTIF($G$4:G111,G112)=0,_xlfn.CONCAT(G112," ",$G$3),""),"") ->  | S112: =IF(ISNUMBER(E112),IF(flag_hdiff_confirm>0,IF(G112=cell_hdiff_confirm,IF(COUNTIF($E$4:E111,E112)=0,MAX($S$4:S111)+1,MAX(MAX($S$4:S111),1)),""),IF(COUNTIF($E$4:E111,E112)=0,MAX($S$4:S111)+1,MAX(MAX($S$4:S111),1))),"") ->  | X112: =IF(W112="OK",IF(COUNTIF($E$4:E111,E112)=0,_xlfn.CONCAT(E112," ",$E$3),""),"") ->  | Y112: =IF(ISNUMBER(G112),IF(flag_ddiff_confirm>0,IF(E112=cell_ddiff_confirm,IF(COUNTIF($G$4:G111,G112)=0,MAX($Y$4:Y111)+1,MAX(MAX($Y$4:Y111),1)),""),IF(COUNTIF($G$4:G111,G112)=0,MAX($Y$4:Y111)+1,MAX(MAX($Y$4:Y111),1))),"") -> 
R113: =IF(Q113="OK",IF(COUNTIF($G$4:G112,G113)=0,_xlfn.CONCAT(G113," ",$G$3),""),"") ->  | S113: =IF(ISNUMBER(E113),IF(flag_hdiff_confirm>0,IF(G113=cell_hdiff_confirm,IF(COUNTIF($E$4:E112,E113)=0,MAX($S$4:S112)+1,MAX(MAX($S$4:S112),1)),""),IF(COUNTIF($E$4:E112,E113)=0,MAX($S$4:S112)+1,MAX(MAX($S$4:S112),1))),"") ->  | X113: =IF(W113="OK",IF(COUNTIF($E$4:E112,E113)=0,_xlfn.CONCAT(E113," ",$E$3),""),"") ->  | Y113: =IF(ISNUMBER(G113),IF(flag_ddiff_confirm>0,IF(E113=cell_ddiff_confirm,IF(COUNTIF($G$4:G112,G113)=0,MAX($Y$4:Y112)+1,MAX(MAX($Y$4:Y112),1)),""),IF(COUNTIF($G$4:G112,G113)=0,MAX($Y$4:Y112)+1,MAX(MAX($Y$4:Y112),1))),"") -> 
R114: =IF(Q114="OK",IF(COUNTIF($G$4:G113,G114)=0,_xlfn.CONCAT(G114," ",$G$3),""),"") ->  | S114: =IF(ISNUMBER(E114),IF(flag_hdiff_confirm>0,IF(G114=cell_hdiff_confirm,IF(COUNTIF($E$4:E113,E114)=0,MAX($S$4:S113)+1,MAX(MAX($S$4:S113),1)),""),IF(COUNTIF($E$4:E113,E114)=0,MAX($S$4:S113)+1,MAX(MAX($S$4:S113),1))),"") ->  | X114: =IF(W114="OK",IF(COUNTIF($E$4:E113,E114)=0,_xlfn.CONCAT(E114," ",$E$3),""),"") ->  | Y114: =IF(ISNUMBER(G114),IF(flag_ddiff_confirm>0,IF(E114=cell_ddiff_confirm,IF(COUNTIF($G$4:G113,G114)=0,MAX($Y$4:Y113)+1,MAX(MAX($Y$4:Y113),1)),""),IF(COUNTIF($G$4:G113,G114)=0,MAX($Y$4:Y113)+1,MAX(MAX($Y$4:Y113),1))),"") -> 
R115: =IF(Q115="OK",IF(COUNTIF($G$4:G114,G115)=0,_xlfn.CONCAT(G115," ",$G$3),""),"") ->  | S115: =IF(ISNUMBER(E115),IF(flag_hdiff_confirm>0,IF(G115=cell_hdiff_confirm,IF(COUNTIF($E$4:E114,E115)=0,MAX($S$4:S114)+1,MAX(MAX($S$4:S114),1)),""),IF(COUNTIF($E$4:E114,E115)=0,MAX($S$4:S114)+1,MAX(MAX($S$4:S114),1))),"") ->  | X115: =IF(W115="OK",IF(COUNTIF($E$4:E114,E115)=0,_xlfn.CONCAT(E115," ",$E$3),""),"") ->  | Y115: =IF(ISNUMBER(G115),IF(flag_ddiff_confirm>0,IF(E115=cell_ddiff_confirm,IF(COUNTIF($G$4:G114,G115)=0,MAX($Y$4:Y114)+1,MAX(MAX($Y$4:Y114),1)),""),IF(COUNTIF($G$4:G114,G115)=0,MAX($Y$4:Y114)+1,MAX(MAX($Y$4:Y114),1))),"") -> 
R116: =IF(Q116="OK",IF(COUNTIF($G$4:G115,G116)=0,_xlfn.CONCAT(G116," ",$G$3),""),"") ->  | S116: =IF(ISNUMBER(E116),IF(flag_hdiff_confirm>0,IF(G116=cell_hdiff_confirm,IF(COUNTIF($E$4:E115,E116)=0,MAX($S$4:S115)+1,MAX(MAX($S$4:S115),1)),""),IF(COUNTIF($E$4:E115,E116)=0,MAX($S$4:S115)+1,MAX(MAX($S$4:S115),1))),"") ->  | X116: =IF(W116="OK",IF(COUNTIF($E$4:E115,E116)=0,_xlfn.CONCAT(E116," ",$E$3),""),"") ->  | Y116: =IF(ISNUMBER(G116),IF(flag_ddiff_confirm>0,IF(E116=cell_ddiff_confirm,IF(COUNTIF($G$4:G115,G116)=0,MAX($Y$4:Y115)+1,MAX(MAX($Y$4:Y115),1)),""),IF(COUNTIF($G$4:G115,G116)=0,MAX($Y$4:Y115)+1,MAX(MAX($Y$4:Y115),1))),"") -> 
R117: =IF(Q117="OK",IF(COUNTIF($G$4:G116,G117)=0,_xlfn.CONCAT(G117," ",$G$3),""),"") ->  | S117: =IF(ISNUMBER(E117),IF(flag_hdiff_confirm>0,IF(G117=cell_hdiff_confirm,IF(COUNTIF($E$4:E116,E117)=0,MAX($S$4:S116)+1,MAX(MAX($S$4:S116),1)),""),IF(COUNTIF($E$4:E116,E117)=0,MAX($S$4:S116)+1,MAX(MAX($S$4:S116),1))),"") ->  | X117: =IF(W117="OK",IF(COUNTIF($E$4:E116,E117)=0,_xlfn.CONCAT(E117," ",$E$3),""),"") ->  | Y117: =IF(ISNUMBER(G117),IF(flag_ddiff_confirm>0,IF(E117=cell_ddiff_confirm,IF(COUNTIF($G$4:G116,G117)=0,MAX($Y$4:Y116)+1,MAX(MAX($Y$4:Y116),1)),""),IF(COUNTIF($G$4:G116,G117)=0,MAX($Y$4:Y116)+1,MAX(MAX($Y$4:Y116),1))),"") -> 
R118: =IF(Q118="OK",IF(COUNTIF($G$4:G117,G118)=0,_xlfn.CONCAT(G118," ",$G$3),""),"") ->  | S118: =IF(ISNUMBER(E118),IF(flag_hdiff_confirm>0,IF(G118=cell_hdiff_confirm,IF(COUNTIF($E$4:E117,E118)=0,MAX($S$4:S117)+1,MAX(MAX($S$4:S117),1)),""),IF(COUNTIF($E$4:E117,E118)=0,MAX($S$4:S117)+1,MAX(MAX($S$4:S117),1))),"") ->  | X118: =IF(W118="OK",IF(COUNTIF($E$4:E117,E118)=0,_xlfn.CONCAT(E118," ",$E$3),""),"") ->  | Y118: =IF(ISNUMBER(G118),IF(flag_ddiff_confirm>0,IF(E118=cell_ddiff_confirm,IF(COUNTIF($G$4:G117,G118)=0,MAX($Y$4:Y117)+1,MAX(MAX($Y$4:Y117),1)),""),IF(COUNTIF($G$4:G117,G118)=0,MAX($Y$4:Y117)+1,MAX(MAX($Y$4:Y117),1))),"") -> 
R119: =IF(Q119="OK",IF(COUNTIF($G$4:G118,G119)=0,_xlfn.CONCAT(G119," ",$G$3),""),"") ->  | S119: =IF(ISNUMBER(E119),IF(flag_hdiff_confirm>0,IF(G119=cell_hdiff_confirm,IF(COUNTIF($E$4:E118,E119)=0,MAX($S$4:S118)+1,MAX(MAX($S$4:S118),1)),""),IF(COUNTIF($E$4:E118,E119)=0,MAX($S$4:S118)+1,MAX(MAX($S$4:S118),1))),"") ->  | X119: =IF(W119="OK",IF(COUNTIF($E$4:E118,E119)=0,_xlfn.CONCAT(E119," ",$E$3),""),"") ->  | Y119: =IF(ISNUMBER(G119),IF(flag_ddiff_confirm>0,IF(E119=cell_ddiff_confirm,IF(COUNTIF($G$4:G118,G119)=0,MAX($Y$4:Y118)+1,MAX(MAX($Y$4:Y118),1)),""),IF(COUNTIF($G$4:G118,G119)=0,MAX($Y$4:Y118)+1,MAX(MAX($Y$4:Y118),1))),"") -> 
R120: =IF(Q120="OK",IF(COUNTIF($G$4:G119,G120)=0,_xlfn.CONCAT(G120," ",$G$3),""),"") ->  | S120: =IF(ISNUMBER(E120),IF(flag_hdiff_confirm>0,IF(G120=cell_hdiff_confirm,IF(COUNTIF($E$4:E119,E120)=0,MAX($S$4:S119)+1,MAX(MAX($S$4:S119),1)),""),IF(COUNTIF($E$4:E119,E120)=0,MAX($S$4:S119)+1,MAX(MAX($S$4:S119),1))),"") ->  | X120: =IF(W120="OK",IF(COUNTIF($E$4:E119,E120)=0,_xlfn.CONCAT(E120," ",$E$3),""),"") ->  | Y120: =IF(ISNUMBER(G120),IF(flag_ddiff_confirm>0,IF(E120=cell_ddiff_confirm,IF(COUNTIF($G$4:G119,G120)=0,MAX($Y$4:Y119)+1,MAX(MAX($Y$4:Y119),1)),""),IF(COUNTIF($G$4:G119,G120)=0,MAX($Y$4:Y119)+1,MAX(MAX($Y$4:Y119),1))),"") -> 
R121: =IF(Q121="OK",IF(COUNTIF($G$4:G120,G121)=0,_xlfn.CONCAT(G121," ",$G$3),""),"") ->  | S121: =IF(ISNUMBER(E121),IF(flag_hdiff_confirm>0,IF(G121=cell_hdiff_confirm,IF(COUNTIF($E$4:E120,E121)=0,MAX($S$4:S120)+1,MAX(MAX($S$4:S120),1)),""),IF(COUNTIF($E$4:E120,E121)=0,MAX($S$4:S120)+1,MAX(MAX($S$4:S120),1))),"") ->  | X121: =IF(W121="OK",IF(COUNTIF($E$4:E120,E121)=0,_xlfn.CONCAT(E121," ",$E$3),""),"") ->  | Y121: =IF(ISNUMBER(G121),IF(flag_ddiff_confirm>0,IF(E121=cell_ddiff_confirm,IF(COUNTIF($G$4:G120,G121)=0,MAX($Y$4:Y120)+1,MAX(MAX($Y$4:Y120),1)),""),IF(COUNTIF($G$4:G120,G121)=0,MAX($Y$4:Y120)+1,MAX(MAX($Y$4:Y120),1))),"") -> 
R122: =IF(Q122="OK",IF(COUNTIF($G$4:G121,G122)=0,_xlfn.CONCAT(G122," ",$G$3),""),"") ->  | S122: =IF(ISNUMBER(E122),IF(flag_hdiff_confirm>0,IF(G122=cell_hdiff_confirm,IF(COUNTIF($E$4:E121,E122)=0,MAX($S$4:S121)+1,MAX(MAX($S$4:S121),1)),""),IF(COUNTIF($E$4:E121,E122)=0,MAX($S$4:S121)+1,MAX(MAX($S$4:S121),1))),"") ->  | X122: =IF(W122="OK",IF(COUNTIF($E$4:E121,E122)=0,_xlfn.CONCAT(E122," ",$E$3),""),"") ->  | Y122: =IF(ISNUMBER(G122),IF(flag_ddiff_confirm>0,IF(E122=cell_ddiff_confirm,IF(COUNTIF($G$4:G121,G122)=0,MAX($Y$4:Y121)+1,MAX(MAX($Y$4:Y121),1)),""),IF(COUNTIF($G$4:G121,G122)=0,MAX($Y$4:Y121)+1,MAX(MAX($Y$4:Y121),1))),"") -> 
R123: =IF(Q123="OK",IF(COUNTIF($G$4:G122,G123)=0,_xlfn.CONCAT(G123," ",$G$3),""),"") ->  | S123: =IF(ISNUMBER(E123),IF(flag_hdiff_confirm>0,IF(G123=cell_hdiff_confirm,IF(COUNTIF($E$4:E122,E123)=0,MAX($S$4:S122)+1,MAX(MAX($S$4:S122),1)),""),IF(COUNTIF($E$4:E122,E123)=0,MAX($S$4:S122)+1,MAX(MAX($S$4:S122),1))),"") ->  | X123: =IF(W123="OK",IF(COUNTIF($E$4:E122,E123)=0,_xlfn.CONCAT(E123," ",$E$3),""),"") ->  | Y123: =IF(ISNUMBER(G123),IF(flag_ddiff_confirm>0,IF(E123=cell_ddiff_confirm,IF(COUNTIF($G$4:G122,G123)=0,MAX($Y$4:Y122)+1,MAX(MAX($Y$4:Y122),1)),""),IF(COUNTIF($G$4:G122,G123)=0,MAX($Y$4:Y122)+1,MAX(MAX($Y$4:Y122),1))),"") -> 
R124: =IF(Q124="OK",IF(COUNTIF($G$4:G123,G124)=0,_xlfn.CONCAT(G124," ",$G$3),""),"") ->  | S124: =IF(ISNUMBER(E124),IF(flag_hdiff_confirm>0,IF(G124=cell_hdiff_confirm,IF(COUNTIF($E$4:E123,E124)=0,MAX($S$4:S123)+1,MAX(MAX($S$4:S123),1)),""),IF(COUNTIF($E$4:E123,E124)=0,MAX($S$4:S123)+1,MAX(MAX($S$4:S123),1))),"") ->  | X124: =IF(W124="OK",IF(COUNTIF($E$4:E123,E124)=0,_xlfn.CONCAT(E124," ",$E$3),""),"") ->  | Y124: =IF(ISNUMBER(G124),IF(flag_ddiff_confirm>0,IF(E124=cell_ddiff_confirm,IF(COUNTIF($G$4:G123,G124)=0,MAX($Y$4:Y123)+1,MAX(MAX($Y$4:Y123),1)),""),IF(COUNTIF($G$4:G123,G124)=0,MAX($Y$4:Y123)+1,MAX(MAX($Y$4:Y123),1))),"") -> 
R125: =IF(Q125="OK",IF(COUNTIF($G$4:G124,G125)=0,_xlfn.CONCAT(G125," ",$G$3),""),"") ->  | S125: =IF(ISNUMBER(E125),IF(flag_hdiff_confirm>0,IF(G125=cell_hdiff_confirm,IF(COUNTIF($E$4:E124,E125)=0,MAX($S$4:S124)+1,MAX(MAX($S$4:S124),1)),""),IF(COUNTIF($E$4:E124,E125)=0,MAX($S$4:S124)+1,MAX(MAX($S$4:S124),1))),"") ->  | X125: =IF(W125="OK",IF(COUNTIF($E$4:E124,E125)=0,_xlfn.CONCAT(E125," ",$E$3),""),"") ->  | Y125: =IF(ISNUMBER(G125),IF(flag_ddiff_confirm>0,IF(E125=cell_ddiff_confirm,IF(COUNTIF($G$4:G124,G125)=0,MAX($Y$4:Y124)+1,MAX(MAX($Y$4:Y124),1)),""),IF(COUNTIF($G$4:G124,G125)=0,MAX($Y$4:Y124)+1,MAX(MAX($Y$4:Y124),1))),"") -> 
R126: =IF(Q126="OK",IF(COUNTIF($G$4:G125,G126)=0,_xlfn.CONCAT(G126," ",$G$3),""),"") ->  | S126: =IF(ISNUMBER(E126),IF(flag_hdiff_confirm>0,IF(G126=cell_hdiff_confirm,IF(COUNTIF($E$4:E125,E126)=0,MAX($S$4:S125)+1,MAX(MAX($S$4:S125),1)),""),IF(COUNTIF($E$4:E125,E126)=0,MAX($S$4:S125)+1,MAX(MAX($S$4:S125),1))),"") ->  | X126: =IF(W126="OK",IF(COUNTIF($E$4:E125,E126)=0,_xlfn.CONCAT(E126," ",$E$3),""),"") ->  | Y126: =IF(ISNUMBER(G126),IF(flag_ddiff_confirm>0,IF(E126=cell_ddiff_confirm,IF(COUNTIF($G$4:G125,G126)=0,MAX($Y$4:Y125)+1,MAX(MAX($Y$4:Y125),1)),""),IF(COUNTIF($G$4:G125,G126)=0,MAX($Y$4:Y125)+1,MAX(MAX($Y$4:Y125),1))),"") -> 
R127: =IF(Q127="OK",IF(COUNTIF($G$4:G126,G127)=0,_xlfn.CONCAT(G127," ",$G$3),""),"") ->  | S127: =IF(ISNUMBER(E127),IF(flag_hdiff_confirm>0,IF(G127=cell_hdiff_confirm,IF(COUNTIF($E$4:E126,E127)=0,MAX($S$4:S126)+1,MAX(MAX($S$4:S126),1)),""),IF(COUNTIF($E$4:E126,E127)=0,MAX($S$4:S126)+1,MAX(MAX($S$4:S126),1))),"") ->  | X127: =IF(W127="OK",IF(COUNTIF($E$4:E126,E127)=0,_xlfn.CONCAT(E127," ",$E$3),""),"") ->  | Y127: =IF(ISNUMBER(G127),IF(flag_ddiff_confirm>0,IF(E127=cell_ddiff_confirm,IF(COUNTIF($G$4:G126,G127)=0,MAX($Y$4:Y126)+1,MAX(MAX($Y$4:Y126),1)),""),IF(COUNTIF($G$4:G126,G127)=0,MAX($Y$4:Y126)+1,MAX(MAX($Y$4:Y126),1))),"") -> 
R128: =IF(Q128="OK",IF(COUNTIF($G$4:G127,G128)=0,_xlfn.CONCAT(G128," ",$G$3),""),"") ->  | S128: =IF(ISNUMBER(E128),IF(flag_hdiff_confirm>0,IF(G128=cell_hdiff_confirm,IF(COUNTIF($E$4:E127,E128)=0,MAX($S$4:S127)+1,MAX(MAX($S$4:S127),1)),""),IF(COUNTIF($E$4:E127,E128)=0,MAX($S$4:S127)+1,MAX(MAX($S$4:S127),1))),"") ->  | X128: =IF(W128="OK",IF(COUNTIF($E$4:E127,E128)=0,_xlfn.CONCAT(E128," ",$E$3),""),"") ->  | Y128: =IF(ISNUMBER(G128),IF(flag_ddiff_confirm>0,IF(E128=cell_ddiff_confirm,IF(COUNTIF($G$4:G127,G128)=0,MAX($Y$4:Y127)+1,MAX(MAX($Y$4:Y127),1)),""),IF(COUNTIF($G$4:G127,G128)=0,MAX($Y$4:Y127)+1,MAX(MAX($Y$4:Y127),1))),"") -> 
R129: =IF(Q129="OK",IF(COUNTIF($G$4:G128,G129)=0,_xlfn.CONCAT(G129," ",$G$3),""),"") ->  | S129: =IF(ISNUMBER(E129),IF(flag_hdiff_confirm>0,IF(G129=cell_hdiff_confirm,IF(COUNTIF($E$4:E128,E129)=0,MAX($S$4:S128)+1,MAX(MAX($S$4:S128),1)),""),IF(COUNTIF($E$4:E128,E129)=0,MAX($S$4:S128)+1,MAX(MAX($S$4:S128),1))),"") ->  | X129: =IF(W129="OK",IF(COUNTIF($E$4:E128,E129)=0,_xlfn.CONCAT(E129," ",$E$3),""),"") ->  | Y129: =IF(ISNUMBER(G129),IF(flag_ddiff_confirm>0,IF(E129=cell_ddiff_confirm,IF(COUNTIF($G$4:G128,G129)=0,MAX($Y$4:Y128)+1,MAX(MAX($Y$4:Y128),1)),""),IF(COUNTIF($G$4:G128,G129)=0,MAX($Y$4:Y128)+1,MAX(MAX($Y$4:Y128),1))),"") -> 
R130: =IF(Q130="OK",IF(COUNTIF($G$4:G129,G130)=0,_xlfn.CONCAT(G130," ",$G$3),""),"") ->  | S130: =IF(ISNUMBER(E130),IF(flag_hdiff_confirm>0,IF(G130=cell_hdiff_confirm,IF(COUNTIF($E$4:E129,E130)=0,MAX($S$4:S129)+1,MAX(MAX($S$4:S129),1)),""),IF(COUNTIF($E$4:E129,E130)=0,MAX($S$4:S129)+1,MAX(MAX($S$4:S129),1))),"") ->  | X130: =IF(W130="OK",IF(COUNTIF($E$4:E129,E130)=0,_xlfn.CONCAT(E130," ",$E$3),""),"") ->  | Y130: =IF(ISNUMBER(G130),IF(flag_ddiff_confirm>0,IF(E130=cell_ddiff_confirm,IF(COUNTIF($G$4:G129,G130)=0,MAX($Y$4:Y129)+1,MAX(MAX($Y$4:Y129),1)),""),IF(COUNTIF($G$4:G129,G130)=0,MAX($Y$4:Y129)+1,MAX(MAX($Y$4:Y129),1))),"") -> 
R131: =IF(Q131="OK",IF(COUNTIF($G$4:G130,G131)=0,_xlfn.CONCAT(G131," ",$G$3),""),"") ->  | S131: =IF(ISNUMBER(E131),IF(flag_hdiff_confirm>0,IF(G131=cell_hdiff_confirm,IF(COUNTIF($E$4:E130,E131)=0,MAX($S$4:S130)+1,MAX(MAX($S$4:S130),1)),""),IF(COUNTIF($E$4:E130,E131)=0,MAX($S$4:S130)+1,MAX(MAX($S$4:S130),1))),"") ->  | X131: =IF(W131="OK",IF(COUNTIF($E$4:E130,E131)=0,_xlfn.CONCAT(E131," ",$E$3),""),"") ->  | Y131: =IF(ISNUMBER(G131),IF(flag_ddiff_confirm>0,IF(E131=cell_ddiff_confirm,IF(COUNTIF($G$4:G130,G131)=0,MAX($Y$4:Y130)+1,MAX(MAX($Y$4:Y130),1)),""),IF(COUNTIF($G$4:G130,G131)=0,MAX($Y$4:Y130)+1,MAX(MAX($Y$4:Y130),1))),"") -> 
D132: =IF(ISNUMBER(C132),IF(cell_Qairselection_calc="m³/h at NTP",C132*24,IF(cell_Qairselection_calc="m³/d at NTP",C132,IF(cell_Qairselection_calc="m³/h at STP",C132*293.15/273.15*24,IF(cell_Qairselection_calc="scfm",C132/3.28084^3*60*24,"")))),"") ->  | F132: =IF(cell_ddiffselection_calc="diff/m²",IF(AND(ISNUMBER(E132),ISNUMBER($A$5)),E132*IF(cell_Adiffselection_calc="ft²",$A$5*0.3048^2,$A$5),""),IF(cell_ddiffselection_calc="diff/100ft²",IF(AND(ISNUMBER(E132),ISNUMBER($A$5)),E132/100*IF(cell_Adiffselection_calc="m²",$A$5/0.3048^2,$A$5),""),IF(cell_ddiffselection_calc="m²/m²",IF(ISNUMBER(E132),E132,""),IF(cell_ddiffselection_calc="%",IF(ISNUMBER(E132),E132/100,""),IF(cell_ddiffselection_calc="m²/m² (AT/AD)",IF(ISNUMBER(E132),1/E132,""),""))))) ->  | H132: =IF(ISNUMBER(G132),IF(cell_hdiffselection_calc="m",G132,IF(cell_hdiffselection_calc="ft",G132*0.3048,"")),"") ->  | J132: =IF(cell_SOTEselection_calc="%",IF(AND(ISNUMBER(I132),ISNUMBER(H132)),I132/H132,""),IF(cell_SOTEselection_calc="%/m",IF(ISNUMBER(I132),I132,""),IF(cell_SOTEselection_calc="%/ft",IF(ISNUMBER(I132),I132/0.3048,""),""))) ->  | K132: =IF(cell_SOTEselection_calc="%",IF(AND(ISNUMBER(L132),ISNUMBER(H132)),L132*H132,""),IF(cell_SOTEselection_calc="%/m",IF(ISNUMBER(L132),L132,""),IF(cell_SOTEselection_calc="%/ft",IF(ISNUMBER(L132),L132*0.3048,""),""))) ->  | L132: =IF(AND(cell_ddiffselection_calc<>"NA",cell_hdiffselection_calc<>"NA"),IF(AND(ISNUMBER(D132),ISNUMBER(F132),ISNUMBER(H132)),((cell_SSOTE0_est-cell_SSOTEasym_est)*EXP(-cell_expSSOTE_est*D132)+cell_SSOTEasym_est)*(F132/cell_divddiff_est)^cell_powddiff_est/(cell_coeffleadhdiff_est*H132^cell_powhdiff_est+cell_coefflinhdiff_est*H132+1),""),IF(AND(cell_ddiffselection_calc="NA",cell_hdiffselection_calc<>"NA"),IF(AND(ISNUMBER(D132),ISNUMBER(H132)),((cell_SSOTE0_est-cell_SSOTEasym_est)*EXP(-cell_expSSOTE_est*D132)+cell_SSOTEasym_est)/(cell_coeffleadhdiff_est*H132^cell_powhdiff_est+cell_coefflinhdiff_est*H132+1),""),IF(AND(cell_ddiffselection_calc<>"NA",cell_hdiffselection_calc="NA"),IF(AND(ISNUMBER(D132),ISNUMBER(F132)),((cell_SSOTE0_est-cell_SSOTEasym_est)*EXP(-cell_expSSOTE_est*D132)+cell_SSOTEasym_est)*(F132/cell_divddiff_est)^cell_powddiff_est,""),IF(ISNUMBER(D132),(cell_SSOTE0_est-cell_SSOTEasym_est)*EXP(-cell_expSSOTE_est*D132)+cell_SSOTEasym_est,"")))) ->  | M132: =IF(AND(ISNUMBER(J132),ISNUMBER(L132)),(J132-L132)^2,"") ->  | N132: =IF(ISNUMBER(J132),(J132-$J$1004)^2,"") ->  | O132: =IF(AND(ISNUMBER(L132),ISNUMBER($J$1004)),(L132-$J$1004)^2,"") ->  | Q132: =IF(AND(ISNUMBER(E132),ISNUMBER(G132)),IF(COUNTIF(cells_hdiff_calc,G132)>COUNTIFS(cells_hdiff_calc,G132,cells_ddiff_calc,E132),"OK",""),"") ->  | R132: =IF(Q132="OK",IF(COUNTIF($G$4:G131,G132)=0,_xlfn.CONCAT(G132," ",$G$3),""),"") ->  | S132: =IF(ISNUMBER(E132),IF(flag_hdiff_confirm>0,IF(G132=cell_hdiff_confirm,IF(COUNTIF($E$4:E131,E132)=0,MAX($S$4:S131)+1,MAX(MAX($S$4:S131),1)),""),IF(COUNTIF($E$4:E131,E132)=0,MAX($S$4:S131)+1,MAX(MAX($S$4:S131),1))),"") ->  | V132: =IF(ISNUMBER(S132),IF(OR(C132<MAX(mins_Qair_ddiffplot),C132>MIN(maxs_Qair_ddiffplot)),C132,""),"") ->  | W132: =IF(AND(ISNUMBER(E132),ISNUMBER(G132)),IF(COUNTIF(cells_ddiff_calc,E132)>COUNTIFS(cells_hdiff_calc,G132,cells_ddiff_calc,E132),"OK",""),"") ->  | X132: =IF(W132="OK",IF(COUNTIF($E$4:E131,E132)=0,_xlfn.CONCAT(E132," ",$E$3),""),"") ->  | Y132: =IF(ISNUMBER(G132),IF(flag_ddiff_confirm>0,IF(E132=cell_ddiff_confirm,IF(COUNTIF($G$4:G131,G132)=0,MAX($Y$4:Y131)+1,MAX(MAX($Y$4:Y131),1)),""),IF(COUNTIF($G$4:G131,G132)=0,MAX($Y$4:Y131)+1,MAX(MAX($Y$4:Y131),1))),"") ->  | AB132: =IF(ISNUMBER(Y132),IF(OR(C132<MAX(mins_Qair_hdiffplot),C132>MIN(maxs_Qair_hdiffplot)),C132,""),"") ->  | AE132: =IF(ISNUMBER(AD132),IF(cell_Qairselection_calc="m³/h at NTP",AD132*24,IF(cell_Qairselection_calc="m³/d at NTP",AD132,IF(cell_Qairselection_calc="m³/h at STP",AD132*293.15/273.15*24,IF(cell_Qairselection_calc="scfm",AD132/3.28084^3*60*24,"")))),"") ->  | AG132: =IF(cell_ddiffselection_calc="diff/m²",IF(AND(ISNUMBER(AF132),ISNUMBER($A$5)),AF132*IF(cell_Adiffselection_calc="ft²",$A$5*0.3048^2,$A$5),""),IF(cell_ddiffselection_calc="diff/100ft²",IF(AND(ISNUMBER(AF132),ISNUMBER($A$5)),AF132/100*IF(cell_Adiffselection_calc="m²",$A$5/0.3048^2,$A$5),""),IF(cell_ddiffselection_calc="m²/m²",IF(ISNUMBER(AF132),AF132,""),IF(cell_ddiffselection_calc="%",IF(ISNUMBER(AF132),AF132/100,""),IF(cell_ddiffselection_calc="m²/m² (AT/AD)",IF(ISNUMBER(AF132),1/AF132,""),""))))) ->  | AI132: =IF(ISNUMBER(AH132),IF(cell_hdiffselection_calc="m",AH132,IF(cell_hdiffselection_calc="ft",AH132*0.3048,"")),"") ->  | AK132: =IF(cell_SOTEselection_calc="%",IF(AND(ISNUMBER(AJ132),ISNUMBER(AI132)),AJ132/AI132,""),IF(cell_SOTEselection_calc="%/m",IF(ISNUMBER(AJ132),AJ132,""),IF(cell_SOTEselection_calc="%/ft",IF(ISNUMBER(AJ132),AJ132/0.3048,""),""))) ->  | AL132: =IF(cell_SOTEselection_calc="%",IF(AND(ISNUMBER(AM132),ISNUMBER(AI132)),AM132*AI132,""),IF(cell_SOTEselection_calc="%/m",IF(ISNUMBER(AM132),AM132,""),IF(cell_SOTEselection_calc="%/ft",IF(ISNUMBER(AM132),AM132*0.3048,""),""))) ->  | AM132: =IF(AND(cell_ddiffselection_calc<>"NA",cell_hdiffselection_calc<>"NA"),IF(AND(ISNUMBER(AE132),ISNUMBER(AG132),ISNUMBER(AI132)),((cell_SSOTE0_est-cell_SSOTEasym_est)*EXP(-cell_expSSOTE_est*AE132)+cell_SSOTEasym_est)*(AG132/cell_divddiff_est)^cell_powddiff_est/(cell_coeffleadhdiff_est*AI132^cell_powhdiff_est+cell_coefflinhdiff_est*AI132+1),""),IF(AND(cell_ddiffselection_calc="NA",cell_hdiffselection_calc<>"NA"),IF(AND(ISNUMBER(AE132),ISNUMBER(AI132)),((cell_SSOTE0_est-cell_SSOTEasym_est)*EXP(-cell_expSSOTE_est*AE132)+cell_SSOTEasym_est)/(cell_coeffleadhdiff_est*AI132^cell_powhdiff_est+cell_coefflinhdiff_est*AI132+1),""),IF(AND(cell_ddiffselection_calc<>"NA",cell_hdiffselection_calc="NA"),IF(AND(ISNUMBER(AE132),ISNUMBER(AG132)),((cell_SSOTE0_est-cell_SSOTEasym_est)*EXP(-cell_expSSOTE_est*AE132)+cell_SSOTEasym_est)*(AG132/cell_divddiff_est)^cell_powddiff_est,""),IF(ISNUMBER(AE132),(cell_SSOTE0_est-cell_SSOTEasym_est)*EXP(-cell_expSSOTE_est*AE132)+cell_SSOTEasym_est,"")))) ->  | AP132: =IF(ISNUMBER(AO132),IF(cell_Qairselection_calc="m³/h at NTP",AO132*24,IF(cell_Qairselection_calc="m³/d at NTP",AO132,IF(cell_Qairselection_calc="m³/h at NTP",AO132*293.15/273.15*24,IF(cell_Qairselection_calc="scfm",AO132/3.28084^3*60*24,"")))),"") ->  | AR132: =IF(ISNUMBER(AQ132),IF(cell_hdiffselection_calc="m",AQ132,IF(cell_hdiffselection_calc="ft",AQ132*0.3048,"")),"") ->  | AT132: =IF(cell_ddiffselection_calc="diff/m²",IF(AND(ISNUMBER(AS132),ISNUMBER($A$5)),AS132*IF(cell_Adiffselection_calc="ft²",$A$5*0.3048^2,$A$5),""),IF(cell_ddiffselection_calc="diff/100ft²",IF(AND(ISNUMBER(AS132),ISNUMBER($A$5)),AS132/100*IF(cell_Adiffselection_calc="m²",$A$5/0.3048^2,$A$5),""),IF(cell_ddiffselection_calc="m²/m²",IF(ISNUMBER(AS132),AS132,""),IF(cell_ddiffselection_calc="%",IF(ISNUMBER(AS132),AS132/100,""),IF(cell_ddiffselection_calc="m²/m² (AT/AD)",IF(ISNUMBER(AS132),1/AS132,""),""))))) ->  | AV132: =IF(cell_SOTEselection_calc="%",IF(AND(ISNUMBER(AU132),ISNUMBER(AR132)),AU132/AR132,""),IF(cell_SOTEselection_calc="%/m",IF(ISNUMBER(AU132),AU132,""),IF(cell_SOTEselection_calc="%/ft",IF(ISNUMBER(AU132),AU132/0.3048,""),""))) ->  | AW132: =IF(cell_SOTEselection_calc="%",IF(AND(ISNUMBER(AX132),ISNUMBER(AR132)),AX132*AR132,""),IF(cell_SOTEselection_calc="%/m",IF(ISNUMBER(AX132),AX132,""),IF(cell_SOTEselection_calc="%/ft",IF(ISNUMBER(AX132),AX132*0.3048,""),""))) ->  | AX132: =IF(AND(cell_ddiffselection_calc<>"NA",cell_hdiffselection_calc<>"NA"),IF(AND(ISNUMBER(AP132),ISNUMBER(AT132),ISNUMBER(AR132)),((cell_SSOTE0_est-cell_SSOTEasym_est)*EXP(-cell_expSSOTE_est*AP132)+cell_SSOTEasym_est)*(AT132/cell_divddiff_est)^cell_powddiff_est/(cell_coeffleadhdiff_est*AR132^cell_powhdiff_est+cell_coefflinhdiff_est*AR132+1),""),IF(AND(cell_ddiffselection_calc="NA",cell_hdiffselection_calc<>"NA"),IF(AND(ISNUMBER(AP132),ISNUMBER(AR132)),((cell_SSOTE0_est-cell_SSOTEasym_est)*EXP(-cell_expSSOTE_est*AP132)+cell_SSOTEasym_est)/(cell_coeffleadhdiff_est*AR132^cell_powhdiff_est+cell_coefflinhdiff_est*AR132+1),""),IF(AND(cell_ddiffselection_calc<>"NA",cell_hdiffselection_calc="NA"),IF(AND(ISNUMBER(AP132),ISNUMBER(AT132)),((cell_SSOTE0_est-cell_SSOTEasym_est)*EXP(-cell_expSSOTE_est*AP132)+cell_SSOTEasym_est)*(AT132/cell_divddiff_est)^cell_powddiff_est,""),IF(ISNUMBER(AP132),(cell_SSOTE0_est-cell_SSOTEasym_est)*EXP(-cell_expSSOTE_est*AP132)+cell_SSOTEasym_est,"")))) -> 
R133: =IF(Q133="OK",IF(COUNTIF($G$4:G132,G133)=0,_xlfn.CONCAT(G133," ",$G$3),""),"") ->  | S133: =IF(ISNUMBER(E133),IF(flag_hdiff_confirm>0,IF(G133=cell_hdiff_confirm,IF(COUNTIF($E$4:E132,E133)=0,MAX($S$4:S132)+1,MAX(MAX($S$4:S132),1)),""),IF(COUNTIF($E$4:E132,E133)=0,MAX($S$4:S132)+1,MAX(MAX($S$4:S132),1))),"") ->  | T133: =IF(AND(ISNUMBER(S133),S133<>S132),_xlfn.MINIFS((cells_Qair_calc),(labels_ddiff_confirm),S133),"") ->  | U133: =IF(AND(ISNUMBER(S133),S133<>S132),_xlfn.MAXIFS((cells_Qair_calc),(labels_ddiff_confirm),S133),"") ->  | X133: =IF(W133="OK",IF(COUNTIF($E$4:E132,E133)=0,_xlfn.CONCAT(E133," ",$E$3),""),"") ->  | Y133: =IF(ISNUMBER(G133),IF(flag_ddiff_confirm>0,IF(E133=cell_ddiff_confirm,IF(COUNTIF($G$4:G132,G133)=0,MAX($Y$4:Y132)+1,MAX(MAX($Y$4:Y132),1)),""),IF(COUNTIF($G$4:G132,G133)=0,MAX($Y$4:Y132)+1,MAX(MAX($Y$4:Y132),1))),"") ->  | Z133: =IF(AND(ISNUMBER(Y133),Y133<>Y132),_xlfn.MINIFS((cells_Qair_calc),(labels_hdiff_confirm),Y133),"") ->  | AA133: =IF(AND(ISNUMBER(Y133),Y133<>Y132),_xlfn.MAXIFS((cells_Qair_calc),(labels_hdiff_confirm),Y133),"") -> 
R134: =IF(Q134="OK",IF(COUNTIF($G$4:G133,G134)=0,_xlfn.CONCAT(G134," ",$G$3),""),"") ->  | S134: =IF(ISNUMBER(E134),IF(flag_hdiff_confirm>0,IF(G134=cell_hdiff_confirm,IF(COUNTIF($E$4:E133,E134)=0,MAX($S$4:S133)+1,MAX(MAX($S$4:S133),1)),""),IF(COUNTIF($E$4:E133,E134)=0,MAX($S$4:S133)+1,MAX(MAX($S$4:S133),1))),"") ->  | X134: =IF(W134="OK",IF(COUNTIF($E$4:E133,E134)=0,_xlfn.CONCAT(E134," ",$E$3),""),"") ->  | Y134: =IF(ISNUMBER(G134),IF(flag_ddiff_confirm>0,IF(E134=cell_ddiff_confirm,IF(COUNTIF($G$4:G133,G134)=0,MAX($Y$4:Y133)+1,MAX(MAX($Y$4:Y133),1)),""),IF(COUNTIF($G$4:G133,G134)=0,MAX($Y$4:Y133)+1,MAX(MAX($Y$4:Y133),1))),"") -> 
R135: =IF(Q135="OK",IF(COUNTIF($G$4:G134,G135)=0,_xlfn.CONCAT(G135," ",$G$3),""),"") ->  | S135: =IF(ISNUMBER(E135),IF(flag_hdiff_confirm>0,IF(G135=cell_hdiff_confirm,IF(COUNTIF($E$4:E134,E135)=0,MAX($S$4:S134)+1,MAX(MAX($S$4:S134),1)),""),IF(COUNTIF($E$4:E134,E135)=0,MAX($S$4:S134)+1,MAX(MAX($S$4:S134),1))),"") ->  | X135: =IF(W135="OK",IF(COUNTIF($E$4:E134,E135)=0,_xlfn.CONCAT(E135," ",$E$3),""),"") ->  | Y135: =IF(ISNUMBER(G135),IF(flag_ddiff_confirm>0,IF(E135=cell_ddiff_confirm,IF(COUNTIF($G$4:G134,G135)=0,MAX($Y$4:Y134)+1,MAX(MAX($Y$4:Y134),1)),""),IF(COUNTIF($G$4:G134,G135)=0,MAX($Y$4:Y134)+1,MAX(MAX($Y$4:Y134),1))),"") -> 
R136: =IF(Q136="OK",IF(COUNTIF($G$4:G135,G136)=0,_xlfn.CONCAT(G136," ",$G$3),""),"") ->  | S136: =IF(ISNUMBER(E136),IF(flag_hdiff_confirm>0,IF(G136=cell_hdiff_confirm,IF(COUNTIF($E$4:E135,E136)=0,MAX($S$4:S135)+1,MAX(MAX($S$4:S135),1)),""),IF(COUNTIF($E$4:E135,E136)=0,MAX($S$4:S135)+1,MAX(MAX($S$4:S135),1))),"") ->  | X136: =IF(W136="OK",IF(COUNTIF($E$4:E135,E136)=0,_xlfn.CONCAT(E136," ",$E$3),""),"") ->  | Y136: =IF(ISNUMBER(G136),IF(flag_ddiff_confirm>0,IF(E136=cell_ddiff_confirm,IF(COUNTIF($G$4:G135,G136)=0,MAX($Y$4:Y135)+1,MAX(MAX($Y$4:Y135),1)),""),IF(COUNTIF($G$4:G135,G136)=0,MAX($Y$4:Y135)+1,MAX(MAX($Y$4:Y135),1))),"") -> 
R137: =IF(Q137="OK",IF(COUNTIF($G$4:G136,G137)=0,_xlfn.CONCAT(G137," ",$G$3),""),"") ->  | S137: =IF(ISNUMBER(E137),IF(flag_hdiff_confirm>0,IF(G137=cell_hdiff_confirm,IF(COUNTIF($E$4:E136,E137)=0,MAX($S$4:S136)+1,MAX(MAX($S$4:S136),1)),""),IF(COUNTIF($E$4:E136,E137)=0,MAX($S$4:S136)+1,MAX(MAX($S$4:S136),1))),"") ->  | X137: =IF(W137="OK",IF(COUNTIF($E$4:E136,E137)=0,_xlfn.CONCAT(E137," ",$E$3),""),"") ->  | Y137: =IF(ISNUMBER(G137),IF(flag_ddiff_confirm>0,IF(E137=cell_ddiff_confirm,IF(COUNTIF($G$4:G136,G137)=0,MAX($Y$4:Y136)+1,MAX(MAX($Y$4:Y136),1)),""),IF(COUNTIF($G$4:G136,G137)=0,MAX($Y$4:Y136)+1,MAX(MAX($Y$4:Y136),1))),"") -> 
R138: =IF(Q138="OK",IF(COUNTIF($G$4:G137,G138)=0,_xlfn.CONCAT(G138," ",$G$3),""),"") ->  | S138: =IF(ISNUMBER(E138),IF(flag_hdiff_confirm>0,IF(G138=cell_hdiff_confirm,IF(COUNTIF($E$4:E137,E138)=0,MAX($S$4:S137)+1,MAX(MAX($S$4:S137),1)),""),IF(COUNTIF($E$4:E137,E138)=0,MAX($S$4:S137)+1,MAX(MAX($S$4:S137),1))),"") ->  | X138: =IF(W138="OK",IF(COUNTIF($E$4:E137,E138)=0,_xlfn.CONCAT(E138," ",$E$3),""),"") ->  | Y138: =IF(ISNUMBER(G138),IF(flag_ddiff_confirm>0,IF(E138=cell_ddiff_confirm,IF(COUNTIF($G$4:G137,G138)=0,MAX($Y$4:Y137)+1,MAX(MAX($Y$4:Y137),1)),""),IF(COUNTIF($G$4:G137,G138)=0,MAX($Y$4:Y137)+1,MAX(MAX($Y$4:Y137),1))),"") -> 
R139: =IF(Q139="OK",IF(COUNTIF($G$4:G138,G139)=0,_xlfn.CONCAT(G139," ",$G$3),""),"") ->  | S139: =IF(ISNUMBER(E139),IF(flag_hdiff_confirm>0,IF(G139=cell_hdiff_confirm,IF(COUNTIF($E$4:E138,E139)=0,MAX($S$4:S138)+1,MAX(MAX($S$4:S138),1)),""),IF(COUNTIF($E$4:E138,E139)=0,MAX($S$4:S138)+1,MAX(MAX($S$4:S138),1))),"") ->  | X139: =IF(W139="OK",IF(COUNTIF($E$4:E138,E139)=0,_xlfn.CONCAT(E139," ",$E$3),""),"") ->  | Y139: =IF(ISNUMBER(G139),IF(flag_ddiff_confirm>0,IF(E139=cell_ddiff_confirm,IF(COUNTIF($G$4:G138,G139)=0,MAX($Y$4:Y138)+1,MAX(MAX($Y$4:Y138),1)),""),IF(COUNTIF($G$4:G138,G139)=0,MAX($Y$4:Y138)+1,MAX(MAX($Y$4:Y138),1))),"") -> 
R140: =IF(Q140="OK",IF(COUNTIF($G$4:G139,G140)=0,_xlfn.CONCAT(G140," ",$G$3),""),"") ->  | S140: =IF(ISNUMBER(E140),IF(flag_hdiff_confirm>0,IF(G140=cell_hdiff_confirm,IF(COUNTIF($E$4:E139,E140)=0,MAX($S$4:S139)+1,MAX(MAX($S$4:S139),1)),""),IF(COUNTIF($E$4:E139,E140)=0,MAX($S$4:S139)+1,MAX(MAX($S$4:S139),1))),"") ->  | X140: =IF(W140="OK",IF(COUNTIF($E$4:E139,E140)=0,_xlfn.CONCAT(E140," ",$E$3),""),"") ->  | Y140: =IF(ISNUMBER(G140),IF(flag_ddiff_confirm>0,IF(E140=cell_ddiff_confirm,IF(COUNTIF($G$4:G139,G140)=0,MAX($Y$4:Y139)+1,MAX(MAX($Y$4:Y139),1)),""),IF(COUNTIF($G$4:G139,G140)=0,MAX($Y$4:Y139)+1,MAX(MAX($Y$4:Y139),1))),"") -> 
R141: =IF(Q141="OK",IF(COUNTIF($G$4:G140,G141)=0,_xlfn.CONCAT(G141," ",$G$3),""),"") ->  | S141: =IF(ISNUMBER(E141),IF(flag_hdiff_confirm>0,IF(G141=cell_hdiff_confirm,IF(COUNTIF($E$4:E140,E141)=0,MAX($S$4:S140)+1,MAX(MAX($S$4:S140),1)),""),IF(COUNTIF($E$4:E140,E141)=0,MAX($S$4:S140)+1,MAX(MAX($S$4:S140),1))),"") ->  | X141: =IF(W141="OK",IF(COUNTIF($E$4:E140,E141)=0,_xlfn.CONCAT(E141," ",$E$3),""),"") ->  | Y141: =IF(ISNUMBER(G141),IF(flag_ddiff_confirm>0,IF(E141=cell_ddiff_confirm,IF(COUNTIF($G$4:G140,G141)=0,MAX($Y$4:Y140)+1,MAX(MAX($Y$4:Y140),1)),""),IF(COUNTIF($G$4:G140,G141)=0,MAX($Y$4:Y140)+1,MAX(MAX($Y$4:Y140),1))),"") -> 
R142: =IF(Q142="OK",IF(COUNTIF($G$4:G141,G142)=0,_xlfn.CONCAT(G142," ",$G$3),""),"") ->  | S142: =IF(ISNUMBER(E142),IF(flag_hdiff_confirm>0,IF(G142=cell_hdiff_confirm,IF(COUNTIF($E$4:E141,E142)=0,MAX($S$4:S141)+1,MAX(MAX($S$4:S141),1)),""),IF(COUNTIF($E$4:E141,E142)=0,MAX($S$4:S141)+1,MAX(MAX($S$4:S141),1))),"") ->  | X142: =IF(W142="OK",IF(COUNTIF($E$4:E141,E142)=0,_xlfn.CONCAT(E142," ",$E$3),""),"") ->  | Y142: =IF(ISNUMBER(G142),IF(flag_ddiff_confirm>0,IF(E142=cell_ddiff_confirm,IF(COUNTIF($G$4:G141,G142)=0,MAX($Y$4:Y141)+1,MAX(MAX($Y$4:Y141),1)),""),IF(COUNTIF($G$4:G141,G142)=0,MAX($Y$4:Y141)+1,MAX(MAX($Y$4:Y141),1))),"") -> 
R143: =IF(Q143="OK",IF(COUNTIF($G$4:G142,G143)=0,_xlfn.CONCAT(G143," ",$G$3),""),"") ->  | S143: =IF(ISNUMBER(E143),IF(flag_hdiff_confirm>0,IF(G143=cell_hdiff_confirm,IF(COUNTIF($E$4:E142,E143)=0,MAX($S$4:S142)+1,MAX(MAX($S$4:S142),1)),""),IF(COUNTIF($E$4:E142,E143)=0,MAX($S$4:S142)+1,MAX(MAX($S$4:S142),1))),"") ->  | X143: =IF(W143="OK",IF(COUNTIF($E$4:E142,E143)=0,_xlfn.CONCAT(E143," ",$E$3),""),"") ->  | Y143: =IF(ISNUMBER(G143),IF(flag_ddiff_confirm>0,IF(E143=cell_ddiff_confirm,IF(COUNTIF($G$4:G142,G143)=0,MAX($Y$4:Y142)+1,MAX(MAX($Y$4:Y142),1)),""),IF(COUNTIF($G$4:G142,G143)=0,MAX($Y$4:Y142)+1,MAX(MAX($Y$4:Y142),1))),"") -> 
R144: =IF(Q144="OK",IF(COUNTIF($G$4:G143,G144)=0,_xlfn.CONCAT(G144," ",$G$3),""),"") ->  | S144: =IF(ISNUMBER(E144),IF(flag_hdiff_confirm>0,IF(G144=cell_hdiff_confirm,IF(COUNTIF($E$4:E143,E144)=0,MAX($S$4:S143)+1,MAX(MAX($S$4:S143),1)),""),IF(COUNTIF($E$4:E143,E144)=0,MAX($S$4:S143)+1,MAX(MAX($S$4:S143),1))),"") ->  | X144: =IF(W144="OK",IF(COUNTIF($E$4:E143,E144)=0,_xlfn.CONCAT(E144," ",$E$3),""),"") ->  | Y144: =IF(ISNUMBER(G144),IF(flag_ddiff_confirm>0,IF(E144=cell_ddiff_confirm,IF(COUNTIF($G$4:G143,G144)=0,MAX($Y$4:Y143)+1,MAX(MAX($Y$4:Y143),1)),""),IF(COUNTIF($G$4:G143,G144)=0,MAX($Y$4:Y143)+1,MAX(MAX($Y$4:Y143),1))),"") -> 
R145: =IF(Q145="OK",IF(COUNTIF($G$4:G144,G145)=0,_xlfn.CONCAT(G145," ",$G$3),""),"") ->  | S145: =IF(ISNUMBER(E145),IF(flag_hdiff_confirm>0,IF(G145=cell_hdiff_confirm,IF(COUNTIF($E$4:E144,E145)=0,MAX($S$4:S144)+1,MAX(MAX($S$4:S144),1)),""),IF(COUNTIF($E$4:E144,E145)=0,MAX($S$4:S144)+1,MAX(MAX($S$4:S144),1))),"") ->  | X145: =IF(W145="OK",IF(COUNTIF($E$4:E144,E145)=0,_xlfn.CONCAT(E145," ",$E$3),""),"") ->  | Y145: =IF(ISNUMBER(G145),IF(flag_ddiff_confirm>0,IF(E145=cell_ddiff_confirm,IF(COUNTIF($G$4:G144,G145)=0,MAX($Y$4:Y144)+1,MAX(MAX($Y$4:Y144),1)),""),IF(COUNTIF($G$4:G144,G145)=0,MAX($Y$4:Y144)+1,MAX(MAX($Y$4:Y144),1))),"") -> 
R146: =IF(Q146="OK",IF(COUNTIF($G$4:G145,G146)=0,_xlfn.CONCAT(G146," ",$G$3),""),"") ->  | S146: =IF(ISNUMBER(E146),IF(flag_hdiff_confirm>0,IF(G146=cell_hdiff_confirm,IF(COUNTIF($E$4:E145,E146)=0,MAX($S$4:S145)+1,MAX(MAX($S$4:S145),1)),""),IF(COUNTIF($E$4:E145,E146)=0,MAX($S$4:S145)+1,MAX(MAX($S$4:S145),1))),"") ->  | X146: =IF(W146="OK",IF(COUNTIF($E$4:E145,E146)=0,_xlfn.CONCAT(E146," ",$E$3),""),"") ->  | Y146: =IF(ISNUMBER(G146),IF(flag_ddiff_confirm>0,IF(E146=cell_ddiff_confirm,IF(COUNTIF($G$4:G145,G146)=0,MAX($Y$4:Y145)+1,MAX(MAX($Y$4:Y145),1)),""),IF(COUNTIF($G$4:G145,G146)=0,MAX($Y$4:Y145)+1,MAX(MAX($Y$4:Y145),1))),"") -> 
R147: =IF(Q147="OK",IF(COUNTIF($G$4:G146,G147)=0,_xlfn.CONCAT(G147," ",$G$3),""),"") ->  | S147: =IF(ISNUMBER(E147),IF(flag_hdiff_confirm>0,IF(G147=cell_hdiff_confirm,IF(COUNTIF($E$4:E146,E147)=0,MAX($S$4:S146)+1,MAX(MAX($S$4:S146),1)),""),IF(COUNTIF($E$4:E146,E147)=0,MAX($S$4:S146)+1,MAX(MAX($S$4:S146),1))),"") ->  | X147: =IF(W147="OK",IF(COUNTIF($E$4:E146,E147)=0,_xlfn.CONCAT(E147," ",$E$3),""),"") ->  | Y147: =IF(ISNUMBER(G147),IF(flag_ddiff_confirm>0,IF(E147=cell_ddiff_confirm,IF(COUNTIF($G$4:G146,G147)=0,MAX($Y$4:Y146)+1,MAX(MAX($Y$4:Y146),1)),""),IF(COUNTIF($G$4:G146,G147)=0,MAX($Y$4:Y146)+1,MAX(MAX($Y$4:Y146),1))),"") -> 
R148: =IF(Q148="OK",IF(COUNTIF($G$4:G147,G148)=0,_xlfn.CONCAT(G148," ",$G$3),""),"") ->  | S148: =IF(ISNUMBER(E148),IF(flag_hdiff_confirm>0,IF(G148=cell_hdiff_confirm,IF(COUNTIF($E$4:E147,E148)=0,MAX($S$4:S147)+1,MAX(MAX($S$4:S147),1)),""),IF(COUNTIF($E$4:E147,E148)=0,MAX($S$4:S147)+1,MAX(MAX($S$4:S147),1))),"") ->  | X148: =IF(W148="OK",IF(COUNTIF($E$4:E147,E148)=0,_xlfn.CONCAT(E148," ",$E$3),""),"") ->  | Y148: =IF(ISNUMBER(G148),IF(flag_ddiff_confirm>0,IF(E148=cell_ddiff_confirm,IF(COUNTIF($G$4:G147,G148)=0,MAX($Y$4:Y147)+1,MAX(MAX($Y$4:Y147),1)),""),IF(COUNTIF($G$4:G147,G148)=0,MAX($Y$4:Y147)+1,MAX(MAX($Y$4:Y147),1))),"") -> 
R149: =IF(Q149="OK",IF(COUNTIF($G$4:G148,G149)=0,_xlfn.CONCAT(G149," ",$G$3),""),"") ->  | S149: =IF(ISNUMBER(E149),IF(flag_hdiff_confirm>0,IF(G149=cell_hdiff_confirm,IF(COUNTIF($E$4:E148,E149)=0,MAX($S$4:S148)+1,MAX(MAX($S$4:S148),1)),""),IF(COUNTIF($E$4:E148,E149)=0,MAX($S$4:S148)+1,MAX(MAX($S$4:S148),1))),"") ->  | X149: =IF(W149="OK",IF(COUNTIF($E$4:E148,E149)=0,_xlfn.CONCAT(E149," ",$E$3),""),"") ->  | Y149: =IF(ISNUMBER(G149),IF(flag_ddiff_confirm>0,IF(E149=cell_ddiff_confirm,IF(COUNTIF($G$4:G148,G149)=0,MAX($Y$4:Y148)+1,MAX(MAX($Y$4:Y148),1)),""),IF(COUNTIF($G$4:G148,G149)=0,MAX($Y$4:Y148)+1,MAX(MAX($Y$4:Y148),1))),"") -> 
R150: =IF(Q150="OK",IF(COUNTIF($G$4:G149,G150)=0,_xlfn.CONCAT(G150," ",$G$3),""),"") ->  | S150: =IF(ISNUMBER(E150),IF(flag_hdiff_confirm>0,IF(G150=cell_hdiff_confirm,IF(COUNTIF($E$4:E149,E150)=0,MAX($S$4:S149)+1,MAX(MAX($S$4:S149),1)),""),IF(COUNTIF($E$4:E149,E150)=0,MAX($S$4:S149)+1,MAX(MAX($S$4:S149),1))),"") ->  | X150: =IF(W150="OK",IF(COUNTIF($E$4:E149,E150)=0,_xlfn.CONCAT(E150," ",$E$3),""),"") ->  | Y150: =IF(ISNUMBER(G150),IF(flag_ddiff_confirm>0,IF(E150=cell_ddiff_confirm,IF(COUNTIF($G$4:G149,G150)=0,MAX($Y$4:Y149)+1,MAX(MAX($Y$4:Y149),1)),""),IF(COUNTIF($G$4:G149,G150)=0,MAX($Y$4:Y149)+1,MAX(MAX($Y$4:Y149),1))),"") -> 
R151: =IF(Q151="OK",IF(COUNTIF($G$4:G150,G151)=0,_xlfn.CONCAT(G151," ",$G$3),""),"") ->  | S151: =IF(ISNUMBER(E151),IF(flag_hdiff_confirm>0,IF(G151=cell_hdiff_confirm,IF(COUNTIF($E$4:E150,E151)=0,MAX($S$4:S150)+1,MAX(MAX($S$4:S150),1)),""),IF(COUNTIF($E$4:E150,E151)=0,MAX($S$4:S150)+1,MAX(MAX($S$4:S150),1))),"") ->  | X151: =IF(W151="OK",IF(COUNTIF($E$4:E150,E151)=0,_xlfn.CONCAT(E151," ",$E$3),""),"") ->  | Y151: =IF(ISNUMBER(G151),IF(flag_ddiff_confirm>0,IF(E151=cell_ddiff_confirm,IF(COUNTIF($G$4:G150,G151)=0,MAX($Y$4:Y150)+1,MAX(MAX($Y$4:Y150),1)),""),IF(COUNTIF($G$4:G150,G151)=0,MAX($Y$4:Y150)+1,MAX(MAX($Y$4:Y150),1))),"") -> 
R152: =IF(Q152="OK",IF(COUNTIF($G$4:G151,G152)=0,_xlfn.CONCAT(G152," ",$G$3),""),"") ->  | S152: =IF(ISNUMBER(E152),IF(flag_hdiff_confirm>0,IF(G152=cell_hdiff_confirm,IF(COUNTIF($E$4:E151,E152)=0,MAX($S$4:S151)+1,MAX(MAX($S$4:S151),1)),""),IF(COUNTIF($E$4:E151,E152)=0,MAX($S$4:S151)+1,MAX(MAX($S$4:S151),1))),"") ->  | X152: =IF(W152="OK",IF(COUNTIF($E$4:E151,E152)=0,_xlfn.CONCAT(E152," ",$E$3),""),"") ->  | Y152: =IF(ISNUMBER(G152),IF(flag_ddiff_confirm>0,IF(E152=cell_ddiff_confirm,IF(COUNTIF($G$4:G151,G152)=0,MAX($Y$4:Y151)+1,MAX(MAX($Y$4:Y151),1)),""),IF(COUNTIF($G$4:G151,G152)=0,MAX($Y$4:Y151)+1,MAX(MAX($Y$4:Y151),1))),"") -> 
R153: =IF(Q153="OK",IF(COUNTIF($G$4:G152,G153)=0,_xlfn.CONCAT(G153," ",$G$3),""),"") ->  | S153: =IF(ISNUMBER(E153),IF(flag_hdiff_confirm>0,IF(G153=cell_hdiff_confirm,IF(COUNTIF($E$4:E152,E153)=0,MAX($S$4:S152)+1,MAX(MAX($S$4:S152),1)),""),IF(COUNTIF($E$4:E152,E153)=0,MAX($S$4:S152)+1,MAX(MAX($S$4:S152),1))),"") ->  | X153: =IF(W153="OK",IF(COUNTIF($E$4:E152,E153)=0,_xlfn.CONCAT(E153," ",$E$3),""),"") ->  | Y153: =IF(ISNUMBER(G153),IF(flag_ddiff_confirm>0,IF(E153=cell_ddiff_confirm,IF(COUNTIF($G$4:G152,G153)=0,MAX($Y$4:Y152)+1,MAX(MAX($Y$4:Y152),1)),""),IF(COUNTIF($G$4:G152,G153)=0,MAX($Y$4:Y152)+1,MAX(MAX($Y$4:Y152),1))),"") -> 
R154: =IF(Q154="OK",IF(COUNTIF($G$4:G153,G154)=0,_xlfn.CONCAT(G154," ",$G$3),""),"") ->  | S154: =IF(ISNUMBER(E154),IF(flag_hdiff_confirm>0,IF(G154=cell_hdiff_confirm,IF(COUNTIF($E$4:E153,E154)=0,MAX($S$4:S153)+1,MAX(MAX($S$4:S153),1)),""),IF(COUNTIF($E$4:E153,E154)=0,MAX($S$4:S153)+1,MAX(MAX($S$4:S153),1))),"") ->  | X154: =IF(W154="OK",IF(COUNTIF($E$4:E153,E154)=0,_xlfn.CONCAT(E154," ",$E$3),""),"") ->  | Y154: =IF(ISNUMBER(G154),IF(flag_ddiff_confirm>0,IF(E154=cell_ddiff_confirm,IF(COUNTIF($G$4:G153,G154)=0,MAX($Y$4:Y153)+1,MAX(MAX($Y$4:Y153),1)),""),IF(COUNTIF($G$4:G153,G154)=0,MAX($Y$4:Y153)+1,MAX(MAX($Y$4:Y153),1))),"") -> 
R155: =IF(Q155="OK",IF(COUNTIF($G$4:G154,G155)=0,_xlfn.CONCAT(G155," ",$G$3),""),"") ->  | S155: =IF(ISNUMBER(E155),IF(flag_hdiff_confirm>0,IF(G155=cell_hdiff_confirm,IF(COUNTIF($E$4:E154,E155)=0,MAX($S$4:S154)+1,MAX(MAX($S$4:S154),1)),""),IF(COUNTIF($E$4:E154,E155)=0,MAX($S$4:S154)+1,MAX(MAX($S$4:S154),1))),"") ->  | X155: =IF(W155="OK",IF(COUNTIF($E$4:E154,E155)=0,_xlfn.CONCAT(E155," ",$E$3),""),"") ->  | Y155: =IF(ISNUMBER(G155),IF(flag_ddiff_confirm>0,IF(E155=cell_ddiff_confirm,IF(COUNTIF($G$4:G154,G155)=0,MAX($Y$4:Y154)+1,MAX(MAX($Y$4:Y154),1)),""),IF(COUNTIF($G$4:G154,G155)=0,MAX($Y$4:Y154)+1,MAX(MAX($Y$4:Y154),1))),"") -> 
R156: =IF(Q156="OK",IF(COUNTIF($G$4:G155,G156)=0,_xlfn.CONCAT(G156," ",$G$3),""),"") ->  | S156: =IF(ISNUMBER(E156),IF(flag_hdiff_confirm>0,IF(G156=cell_hdiff_confirm,IF(COUNTIF($E$4:E155,E156)=0,MAX($S$4:S155)+1,MAX(MAX($S$4:S155),1)),""),IF(COUNTIF($E$4:E155,E156)=0,MAX($S$4:S155)+1,MAX(MAX($S$4:S155),1))),"") ->  | X156: =IF(W156="OK",IF(COUNTIF($E$4:E155,E156)=0,_xlfn.CONCAT(E156," ",$E$3),""),"") ->  | Y156: =IF(ISNUMBER(G156),IF(flag_ddiff_confirm>0,IF(E156=cell_ddiff_confirm,IF(COUNTIF($G$4:G155,G156)=0,MAX($Y$4:Y155)+1,MAX(MAX($Y$4:Y155),1)),""),IF(COUNTIF($G$4:G155,G156)=0,MAX($Y$4:Y155)+1,MAX(MAX($Y$4:Y155),1))),"") -> 
R157: =IF(Q157="OK",IF(COUNTIF($G$4:G156,G157)=0,_xlfn.CONCAT(G157," ",$G$3),""),"") ->  | S157: =IF(ISNUMBER(E157),IF(flag_hdiff_confirm>0,IF(G157=cell_hdiff_confirm,IF(COUNTIF($E$4:E156,E157)=0,MAX($S$4:S156)+1,MAX(MAX($S$4:S156),1)),""),IF(COUNTIF($E$4:E156,E157)=0,MAX($S$4:S156)+1,MAX(MAX($S$4:S156),1))),"") ->  | X157: =IF(W157="OK",IF(COUNTIF($E$4:E156,E157)=0,_xlfn.CONCAT(E157," ",$E$3),""),"") ->  | Y157: =IF(ISNUMBER(G157),IF(flag_ddiff_confirm>0,IF(E157=cell_ddiff_confirm,IF(COUNTIF($G$4:G156,G157)=0,MAX($Y$4:Y156)+1,MAX(MAX($Y$4:Y156),1)),""),IF(COUNTIF($G$4:G156,G157)=0,MAX($Y$4:Y156)+1,MAX(MAX($Y$4:Y156),1))),"") -> 
R158: =IF(Q158="OK",IF(COUNTIF($G$4:G157,G158)=0,_xlfn.CONCAT(G158," ",$G$3),""),"") ->  | S158: =IF(ISNUMBER(E158),IF(flag_hdiff_confirm>0,IF(G158=cell_hdiff_confirm,IF(COUNTIF($E$4:E157,E158)=0,MAX($S$4:S157)+1,MAX(MAX($S$4:S157),1)),""),IF(COUNTIF($E$4:E157,E158)=0,MAX($S$4:S157)+1,MAX(MAX($S$4:S157),1))),"") ->  | X158: =IF(W158="OK",IF(COUNTIF($E$4:E157,E158)=0,_xlfn.CONCAT(E158," ",$E$3),""),"") ->  | Y158: =IF(ISNUMBER(G158),IF(flag_ddiff_confirm>0,IF(E158=cell_ddiff_confirm,IF(COUNTIF($G$4:G157,G158)=0,MAX($Y$4:Y157)+1,MAX(MAX($Y$4:Y157),1)),""),IF(COUNTIF($G$4:G157,G158)=0,MAX($Y$4:Y157)+1,MAX(MAX($Y$4:Y157),1))),"") -> 
R159: =IF(Q159="OK",IF(COUNTIF($G$4:G158,G159)=0,_xlfn.CONCAT(G159," ",$G$3),""),"") ->  | S159: =IF(ISNUMBER(E159),IF(flag_hdiff_confirm>0,IF(G159=cell_hdiff_confirm,IF(COUNTIF($E$4:E158,E159)=0,MAX($S$4:S158)+1,MAX(MAX($S$4:S158),1)),""),IF(COUNTIF($E$4:E158,E159)=0,MAX($S$4:S158)+1,MAX(MAX($S$4:S158),1))),"") ->  | X159: =IF(W159="OK",IF(COUNTIF($E$4:E158,E159)=0,_xlfn.CONCAT(E159," ",$E$3),""),"") ->  | Y159: =IF(ISNUMBER(G159),IF(flag_ddiff_confirm>0,IF(E159=cell_ddiff_confirm,IF(COUNTIF($G$4:G158,G159)=0,MAX($Y$4:Y158)+1,MAX(MAX($Y$4:Y158),1)),""),IF(COUNTIF($G$4:G158,G159)=0,MAX($Y$4:Y158)+1,MAX(MAX($Y$4:Y158),1))),"") -> 
R160: =IF(Q160="OK",IF(COUNTIF($G$4:G159,G160)=0,_xlfn.CONCAT(G160," ",$G$3),""),"") ->  | S160: =IF(ISNUMBER(E160),IF(flag_hdiff_confirm>0,IF(G160=cell_hdiff_confirm,IF(COUNTIF($E$4:E159,E160)=0,MAX($S$4:S159)+1,MAX(MAX($S$4:S159),1)),""),IF(COUNTIF($E$4:E159,E160)=0,MAX($S$4:S159)+1,MAX(MAX($S$4:S159),1))),"") ->  | X160: =IF(W160="OK",IF(COUNTIF($E$4:E159,E160)=0,_xlfn.CONCAT(E160," ",$E$3),""),"") ->  | Y160: =IF(ISNUMBER(G160),IF(flag_ddiff_confirm>0,IF(E160=cell_ddiff_confirm,IF(COUNTIF($G$4:G159,G160)=0,MAX($Y$4:Y159)+1,MAX(MAX($Y$4:Y159),1)),""),IF(COUNTIF($G$4:G159,G160)=0,MAX($Y$4:Y159)+1,MAX(MAX($Y$4:Y159),1))),"") -> 
R161: =IF(Q161="OK",IF(COUNTIF($G$4:G160,G161)=0,_xlfn.CONCAT(G161," ",$G$3),""),"") ->  | S161: =IF(ISNUMBER(E161),IF(flag_hdiff_confirm>0,IF(G161=cell_hdiff_confirm,IF(COUNTIF($E$4:E160,E161)=0,MAX($S$4:S160)+1,MAX(MAX($S$4:S160),1)),""),IF(COUNTIF($E$4:E160,E161)=0,MAX($S$4:S160)+1,MAX(MAX($S$4:S160),1))),"") ->  | X161: =IF(W161="OK",IF(COUNTIF($E$4:E160,E161)=0,_xlfn.CONCAT(E161," ",$E$3),""),"") ->  | Y161: =IF(ISNUMBER(G161),IF(flag_ddiff_confirm>0,IF(E161=cell_ddiff_confirm,IF(COUNTIF($G$4:G160,G161)=0,MAX($Y$4:Y160)+1,MAX(MAX($Y$4:Y160),1)),""),IF(COUNTIF($G$4:G160,G161)=0,MAX($Y$4:Y160)+1,MAX(MAX($Y$4:Y160),1))),"") -> 
R162: =IF(Q162="OK",IF(COUNTIF($G$4:G161,G162)=0,_xlfn.CONCAT(G162," ",$G$3),""),"") ->  | S162: =IF(ISNUMBER(E162),IF(flag_hdiff_confirm>0,IF(G162=cell_hdiff_confirm,IF(COUNTIF($E$4:E161,E162)=0,MAX($S$4:S161)+1,MAX(MAX($S$4:S161),1)),""),IF(COUNTIF($E$4:E161,E162)=0,MAX($S$4:S161)+1,MAX(MAX($S$4:S161),1))),"") ->  | X162: =IF(W162="OK",IF(COUNTIF($E$4:E161,E162)=0,_xlfn.CONCAT(E162," ",$E$3),""),"") ->  | Y162: =IF(ISNUMBER(G162),IF(flag_ddiff_confirm>0,IF(E162=cell_ddiff_confirm,IF(COUNTIF($G$4:G161,G162)=0,MAX($Y$4:Y161)+1,MAX(MAX($Y$4:Y161),1)),""),IF(COUNTIF($G$4:G161,G162)=0,MAX($Y$4:Y161)+1,MAX(MAX($Y$4:Y161),1))),"") -> 
R163: =IF(Q163="OK",IF(COUNTIF($G$4:G162,G163)=0,_xlfn.CONCAT(G163," ",$G$3),""),"") ->  | S163: =IF(ISNUMBER(E163),IF(flag_hdiff_confirm>0,IF(G163=cell_hdiff_confirm,IF(COUNTIF($E$4:E162,E163)=0,MAX($S$4:S162)+1,MAX(MAX($S$4:S162),1)),""),IF(COUNTIF($E$4:E162,E163)=0,MAX($S$4:S162)+1,MAX(MAX($S$4:S162),1))),"") ->  | X163: =IF(W163="OK",IF(COUNTIF($E$4:E162,E163)=0,_xlfn.CONCAT(E163," ",$E$3),""),"") ->  | Y163: =IF(ISNUMBER(G163),IF(flag_ddiff_confirm>0,IF(E163=cell_ddiff_confirm,IF(COUNTIF($G$4:G162,G163)=0,MAX($Y$4:Y162)+1,MAX(MAX($Y$4:Y162),1)),""),IF(COUNTIF($G$4:G162,G163)=0,MAX($Y$4:Y162)+1,MAX(MAX($Y$4:Y162),1))),"") -> 
R164: =IF(Q164="OK",IF(COUNTIF($G$4:G163,G164)=0,_xlfn.CONCAT(G164," ",$G$3),""),"") ->  | S164: =IF(ISNUMBER(E164),IF(flag_hdiff_confirm>0,IF(G164=cell_hdiff_confirm,IF(COUNTIF($E$4:E163,E164)=0,MAX($S$4:S163)+1,MAX(MAX($S$4:S163),1)),""),IF(COUNTIF($E$4:E163,E164)=0,MAX($S$4:S163)+1,MAX(MAX($S$4:S163),1))),"") ->  | X164: =IF(W164="OK",IF(COUNTIF($E$4:E163,E164)=0,_xlfn.CONCAT(E164," ",$E$3),""),"") ->  | Y164: =IF(ISNUMBER(G164),IF(flag_ddiff_confirm>0,IF(E164=cell_ddiff_confirm,IF(COUNTIF($G$4:G163,G164)=0,MAX($Y$4:Y163)+1,MAX(MAX($Y$4:Y163),1)),""),IF(COUNTIF($G$4:G163,G164)=0,MAX($Y$4:Y163)+1,MAX(MAX($Y$4:Y163),1))),"") -> 
R165: =IF(Q165="OK",IF(COUNTIF($G$4:G164,G165)=0,_xlfn.CONCAT(G165," ",$G$3),""),"") ->  | S165: =IF(ISNUMBER(E165),IF(flag_hdiff_confirm>0,IF(G165=cell_hdiff_confirm,IF(COUNTIF($E$4:E164,E165)=0,MAX($S$4:S164)+1,MAX(MAX($S$4:S164),1)),""),IF(COUNTIF($E$4:E164,E165)=0,MAX($S$4:S164)+1,MAX(MAX($S$4:S164),1))),"") ->  | X165: =IF(W165="OK",IF(COUNTIF($E$4:E164,E165)=0,_xlfn.CONCAT(E165," ",$E$3),""),"") ->  | Y165: =IF(ISNUMBER(G165),IF(flag_ddiff_confirm>0,IF(E165=cell_ddiff_confirm,IF(COUNTIF($G$4:G164,G165)=0,MAX($Y$4:Y164)+1,MAX(MAX($Y$4:Y164),1)),""),IF(COUNTIF($G$4:G164,G165)=0,MAX($Y$4:Y164)+1,MAX(MAX($Y$4:Y164),1))),"") -> 
R166: =IF(Q166="OK",IF(COUNTIF($G$4:G165,G166)=0,_xlfn.CONCAT(G166," ",$G$3),""),"") ->  | S166: =IF(ISNUMBER(E166),IF(flag_hdiff_confirm>0,IF(G166=cell_hdiff_confirm,IF(COUNTIF($E$4:E165,E166)=0,MAX($S$4:S165)+1,MAX(MAX($S$4:S165),1)),""),IF(COUNTIF($E$4:E165,E166)=0,MAX($S$4:S165)+1,MAX(MAX($S$4:S165),1))),"") ->  | X166: =IF(W166="OK",IF(COUNTIF($E$4:E165,E166)=0,_xlfn.CONCAT(E166," ",$E$3),""),"") ->  | Y166: =IF(ISNUMBER(G166),IF(flag_ddiff_confirm>0,IF(E166=cell_ddiff_confirm,IF(COUNTIF($G$4:G165,G166)=0,MAX($Y$4:Y165)+1,MAX(MAX($Y$4:Y165),1)),""),IF(COUNTIF($G$4:G165,G166)=0,MAX($Y$4:Y165)+1,MAX(MAX($Y$4:Y165),1))),"") -> 
R167: =IF(Q167="OK",IF(COUNTIF($G$4:G166,G167)=0,_xlfn.CONCAT(G167," ",$G$3),""),"") ->  | S167: =IF(ISNUMBER(E167),IF(flag_hdiff_confirm>0,IF(G167=cell_hdiff_confirm,IF(COUNTIF($E$4:E166,E167)=0,MAX($S$4:S166)+1,MAX(MAX($S$4:S166),1)),""),IF(COUNTIF($E$4:E166,E167)=0,MAX($S$4:S166)+1,MAX(MAX($S$4:S166),1))),"") ->  | X167: =IF(W167="OK",IF(COUNTIF($E$4:E166,E167)=0,_xlfn.CONCAT(E167," ",$E$3),""),"") ->  | Y167: =IF(ISNUMBER(G167),IF(flag_ddiff_confirm>0,IF(E167=cell_ddiff_confirm,IF(COUNTIF($G$4:G166,G167)=0,MAX($Y$4:Y166)+1,MAX(MAX($Y$4:Y166),1)),""),IF(COUNTIF($G$4:G166,G167)=0,MAX($Y$4:Y166)+1,MAX(MAX($Y$4:Y166),1))),"") -> 
R168: =IF(Q168="OK",IF(COUNTIF($G$4:G167,G168)=0,_xlfn.CONCAT(G168," ",$G$3),""),"") ->  | S168: =IF(ISNUMBER(E168),IF(flag_hdiff_confirm>0,IF(G168=cell_hdiff_confirm,IF(COUNTIF($E$4:E167,E168)=0,MAX($S$4:S167)+1,MAX(MAX($S$4:S167),1)),""),IF(COUNTIF($E$4:E167,E168)=0,MAX($S$4:S167)+1,MAX(MAX($S$4:S167),1))),"") ->  | X168: =IF(W168="OK",IF(COUNTIF($E$4:E167,E168)=0,_xlfn.CONCAT(E168," ",$E$3),""),"") ->  | Y168: =IF(ISNUMBER(G168),IF(flag_ddiff_confirm>0,IF(E168=cell_ddiff_confirm,IF(COUNTIF($G$4:G167,G168)=0,MAX($Y$4:Y167)+1,MAX(MAX($Y$4:Y167),1)),""),IF(COUNTIF($G$4:G167,G168)=0,MAX($Y$4:Y167)+1,MAX(MAX($Y$4:Y167),1))),"") -> 
R169: =IF(Q169="OK",IF(COUNTIF($G$4:G168,G169)=0,_xlfn.CONCAT(G169," ",$G$3),""),"") ->  | S169: =IF(ISNUMBER(E169),IF(flag_hdiff_confirm>0,IF(G169=cell_hdiff_confirm,IF(COUNTIF($E$4:E168,E169)=0,MAX($S$4:S168)+1,MAX(MAX($S$4:S168),1)),""),IF(COUNTIF($E$4:E168,E169)=0,MAX($S$4:S168)+1,MAX(MAX($S$4:S168),1))),"") ->  | X169: =IF(W169="OK",IF(COUNTIF($E$4:E168,E169)=0,_xlfn.CONCAT(E169," ",$E$3),""),"") ->  | Y169: =IF(ISNUMBER(G169),IF(flag_ddiff_confirm>0,IF(E169=cell_ddiff_confirm,IF(COUNTIF($G$4:G168,G169)=0,MAX($Y$4:Y168)+1,MAX(MAX($Y$4:Y168),1)),""),IF(COUNTIF($G$4:G168,G169)=0,MAX($Y$4:Y168)+1,MAX(MAX($Y$4:Y168),1))),"") -> 
R170: =IF(Q170="OK",IF(COUNTIF($G$4:G169,G170)=0,_xlfn.CONCAT(G170," ",$G$3),""),"") ->  | S170: =IF(ISNUMBER(E170),IF(flag_hdiff_confirm>0,IF(G170=cell_hdiff_confirm,IF(COUNTIF($E$4:E169,E170)=0,MAX($S$4:S169)+1,MAX(MAX($S$4:S169),1)),""),IF(COUNTIF($E$4:E169,E170)=0,MAX($S$4:S169)+1,MAX(MAX($S$4:S169),1))),"") ->  | X170: =IF(W170="OK",IF(COUNTIF($E$4:E169,E170)=0,_xlfn.CONCAT(E170," ",$E$3),""),"") ->  | Y170: =IF(ISNUMBER(G170),IF(flag_ddiff_confirm>0,IF(E170=cell_ddiff_confirm,IF(COUNTIF($G$4:G169,G170)=0,MAX($Y$4:Y169)+1,MAX(MAX($Y$4:Y169),1)),""),IF(COUNTIF($G$4:G169,G170)=0,MAX($Y$4:Y169)+1,MAX(MAX($Y$4:Y169),1))),"") -> 
R171: =IF(Q171="OK",IF(COUNTIF($G$4:G170,G171)=0,_xlfn.CONCAT(G171," ",$G$3),""),"") ->  | S171: =IF(ISNUMBER(E171),IF(flag_hdiff_confirm>0,IF(G171=cell_hdiff_confirm,IF(COUNTIF($E$4:E170,E171)=0,MAX($S$4:S170)+1,MAX(MAX($S$4:S170),1)),""),IF(COUNTIF($E$4:E170,E171)=0,MAX($S$4:S170)+1,MAX(MAX($S$4:S170),1))),"") ->  | X171: =IF(W171="OK",IF(COUNTIF($E$4:E170,E171)=0,_xlfn.CONCAT(E171," ",$E$3),""),"") ->  | Y171: =IF(ISNUMBER(G171),IF(flag_ddiff_confirm>0,IF(E171=cell_ddiff_confirm,IF(COUNTIF($G$4:G170,G171)=0,MAX($Y$4:Y170)+1,MAX(MAX($Y$4:Y170),1)),""),IF(COUNTIF($G$4:G170,G171)=0,MAX($Y$4:Y170)+1,MAX(MAX($Y$4:Y170),1))),"") -> 
R172: =IF(Q172="OK",IF(COUNTIF($G$4:G171,G172)=0,_xlfn.CONCAT(G172," ",$G$3),""),"") ->  | S172: =IF(ISNUMBER(E172),IF(flag_hdiff_confirm>0,IF(G172=cell_hdiff_confirm,IF(COUNTIF($E$4:E171,E172)=0,MAX($S$4:S171)+1,MAX(MAX($S$4:S171),1)),""),IF(COUNTIF($E$4:E171,E172)=0,MAX($S$4:S171)+1,MAX(MAX($S$4:S171),1))),"") ->  | X172: =IF(W172="OK",IF(COUNTIF($E$4:E171,E172)=0,_xlfn.CONCAT(E172," ",$E$3),""),"") ->  | Y172: =IF(ISNUMBER(G172),IF(flag_ddiff_confirm>0,IF(E172=cell_ddiff_confirm,IF(COUNTIF($G$4:G171,G172)=0,MAX($Y$4:Y171)+1,MAX(MAX($Y$4:Y171),1)),""),IF(COUNTIF($G$4:G171,G172)=0,MAX($Y$4:Y171)+1,MAX(MAX($Y$4:Y171),1))),"") -> 
R173: =IF(Q173="OK",IF(COUNTIF($G$4:G172,G173)=0,_xlfn.CONCAT(G173," ",$G$3),""),"") ->  | S173: =IF(ISNUMBER(E173),IF(flag_hdiff_confirm>0,IF(G173=cell_hdiff_confirm,IF(COUNTIF($E$4:E172,E173)=0,MAX($S$4:S172)+1,MAX(MAX($S$4:S172),1)),""),IF(COUNTIF($E$4:E172,E173)=0,MAX($S$4:S172)+1,MAX(MAX($S$4:S172),1))),"") ->  | X173: =IF(W173="OK",IF(COUNTIF($E$4:E172,E173)=0,_xlfn.CONCAT(E173," ",$E$3),""),"") ->  | Y173: =IF(ISNUMBER(G173),IF(flag_ddiff_confirm>0,IF(E173=cell_ddiff_confirm,IF(COUNTIF($G$4:G172,G173)=0,MAX($Y$4:Y172)+1,MAX(MAX($Y$4:Y172),1)),""),IF(COUNTIF($G$4:G172,G173)=0,MAX($Y$4:Y172)+1,MAX(MAX($Y$4:Y172),1))),"") -> 
R174: =IF(Q174="OK",IF(COUNTIF($G$4:G173,G174)=0,_xlfn.CONCAT(G174," ",$G$3),""),"") ->  | S174: =IF(ISNUMBER(E174),IF(flag_hdiff_confirm>0,IF(G174=cell_hdiff_confirm,IF(COUNTIF($E$4:E173,E174)=0,MAX($S$4:S173)+1,MAX(MAX($S$4:S173),1)),""),IF(COUNTIF($E$4:E173,E174)=0,MAX($S$4:S173)+1,MAX(MAX($S$4:S173),1))),"") ->  | X174: =IF(W174="OK",IF(COUNTIF($E$4:E173,E174)=0,_xlfn.CONCAT(E174," ",$E$3),""),"") ->  | Y174: =IF(ISNUMBER(G174),IF(flag_ddiff_confirm>0,IF(E174=cell_ddiff_confirm,IF(COUNTIF($G$4:G173,G174)=0,MAX($Y$4:Y173)+1,MAX(MAX($Y$4:Y173),1)),""),IF(COUNTIF($G$4:G173,G174)=0,MAX($Y$4:Y173)+1,MAX(MAX($Y$4:Y173),1))),"") -> 
R175: =IF(Q175="OK",IF(COUNTIF($G$4:G174,G175)=0,_xlfn.CONCAT(G175," ",$G$3),""),"") ->  | S175: =IF(ISNUMBER(E175),IF(flag_hdiff_confirm>0,IF(G175=cell_hdiff_confirm,IF(COUNTIF($E$4:E174,E175)=0,MAX($S$4:S174)+1,MAX(MAX($S$4:S174),1)),""),IF(COUNTIF($E$4:E174,E175)=0,MAX($S$4:S174)+1,MAX(MAX($S$4:S174),1))),"") ->  | X175: =IF(W175="OK",IF(COUNTIF($E$4:E174,E175)=0,_xlfn.CONCAT(E175," ",$E$3),""),"") ->  | Y175: =IF(ISNUMBER(G175),IF(flag_ddiff_confirm>0,IF(E175=cell_ddiff_confirm,IF(COUNTIF($G$4:G174,G175)=0,MAX($Y$4:Y174)+1,MAX(MAX($Y$4:Y174),1)),""),IF(COUNTIF($G$4:G174,G175)=0,MAX($Y$4:Y174)+1,MAX(MAX($Y$4:Y174),1))),"") -> 
R176: =IF(Q176="OK",IF(COUNTIF($G$4:G175,G176)=0,_xlfn.CONCAT(G176," ",$G$3),""),"") ->  | S176: =IF(ISNUMBER(E176),IF(flag_hdiff_confirm>0,IF(G176=cell_hdiff_confirm,IF(COUNTIF($E$4:E175,E176)=0,MAX($S$4:S175)+1,MAX(MAX($S$4:S175),1)),""),IF(COUNTIF($E$4:E175,E176)=0,MAX($S$4:S175)+1,MAX(MAX($S$4:S175),1))),"") ->  | X176: =IF(W176="OK",IF(COUNTIF($E$4:E175,E176)=0,_xlfn.CONCAT(E176," ",$E$3),""),"") ->  | Y176: =IF(ISNUMBER(G176),IF(flag_ddiff_confirm>0,IF(E176=cell_ddiff_confirm,IF(COUNTIF($G$4:G175,G176)=0,MAX($Y$4:Y175)+1,MAX(MAX($Y$4:Y175),1)),""),IF(COUNTIF($G$4:G175,G176)=0,MAX($Y$4:Y175)+1,MAX(MAX($Y$4:Y175),1))),"") -> 
R177: =IF(Q177="OK",IF(COUNTIF($G$4:G176,G177)=0,_xlfn.CONCAT(G177," ",$G$3),""),"") ->  | S177: =IF(ISNUMBER(E177),IF(flag_hdiff_confirm>0,IF(G177=cell_hdiff_confirm,IF(COUNTIF($E$4:E176,E177)=0,MAX($S$4:S176)+1,MAX(MAX($S$4:S176),1)),""),IF(COUNTIF($E$4:E176,E177)=0,MAX($S$4:S176)+1,MAX(MAX($S$4:S176),1))),"") ->  | X177: =IF(W177="OK",IF(COUNTIF($E$4:E176,E177)=0,_xlfn.CONCAT(E177," ",$E$3),""),"") ->  | Y177: =IF(ISNUMBER(G177),IF(flag_ddiff_confirm>0,IF(E177=cell_ddiff_confirm,IF(COUNTIF($G$4:G176,G177)=0,MAX($Y$4:Y176)+1,MAX(MAX($Y$4:Y176),1)),""),IF(COUNTIF($G$4:G176,G177)=0,MAX($Y$4:Y176)+1,MAX(MAX($Y$4:Y176),1))),"") -> 
R178: =IF(Q178="OK",IF(COUNTIF($G$4:G177,G178)=0,_xlfn.CONCAT(G178," ",$G$3),""),"") ->  | S178: =IF(ISNUMBER(E178),IF(flag_hdiff_confirm>0,IF(G178=cell_hdiff_confirm,IF(COUNTIF($E$4:E177,E178)=0,MAX($S$4:S177)+1,MAX(MAX($S$4:S177),1)),""),IF(COUNTIF($E$4:E177,E178)=0,MAX($S$4:S177)+1,MAX(MAX($S$4:S177),1))),"") ->  | X178: =IF(W178="OK",IF(COUNTIF($E$4:E177,E178)=0,_xlfn.CONCAT(E178," ",$E$3),""),"") ->  | Y178: =IF(ISNUMBER(G178),IF(flag_ddiff_confirm>0,IF(E178=cell_ddiff_confirm,IF(COUNTIF($G$4:G177,G178)=0,MAX($Y$4:Y177)+1,MAX(MAX($Y$4:Y177),1)),""),IF(COUNTIF($G$4:G177,G178)=0,MAX($Y$4:Y177)+1,MAX(MAX($Y$4:Y177),1))),"") -> 
R179: =IF(Q179="OK",IF(COUNTIF($G$4:G178,G179)=0,_xlfn.CONCAT(G179," ",$G$3),""),"") ->  | S179: =IF(ISNUMBER(E179),IF(flag_hdiff_confirm>0,IF(G179=cell_hdiff_confirm,IF(COUNTIF($E$4:E178,E179)=0,MAX($S$4:S178)+1,MAX(MAX($S$4:S178),1)),""),IF(COUNTIF($E$4:E178,E179)=0,MAX($S$4:S178)+1,MAX(MAX($S$4:S178),1))),"") ->  | X179: =IF(W179="OK",IF(COUNTIF($E$4:E178,E179)=0,_xlfn.CONCAT(E179," ",$E$3),""),"") ->  | Y179: =IF(ISNUMBER(G179),IF(flag_ddiff_confirm>0,IF(E179=cell_ddiff_confirm,IF(COUNTIF($G$4:G178,G179)=0,MAX($Y$4:Y178)+1,MAX(MAX($Y$4:Y178),1)),""),IF(COUNTIF($G$4:G178,G179)=0,MAX($Y$4:Y178)+1,MAX(MAX($Y$4:Y178),1))),"") -> 
R180: =IF(Q180="OK",IF(COUNTIF($G$4:G179,G180)=0,_xlfn.CONCAT(G180," ",$G$3),""),"") ->  | S180: =IF(ISNUMBER(E180),IF(flag_hdiff_confirm>0,IF(G180=cell_hdiff_confirm,IF(COUNTIF($E$4:E179,E180)=0,MAX($S$4:S179)+1,MAX(MAX($S$4:S179),1)),""),IF(COUNTIF($E$4:E179,E180)=0,MAX($S$4:S179)+1,MAX(MAX($S$4:S179),1))),"") ->  | X180: =IF(W180="OK",IF(COUNTIF($E$4:E179,E180)=0,_xlfn.CONCAT(E180," ",$E$3),""),"") ->  | Y180: =IF(ISNUMBER(G180),IF(flag_ddiff_confirm>0,IF(E180=cell_ddiff_confirm,IF(COUNTIF($G$4:G179,G180)=0,MAX($Y$4:Y179)+1,MAX(MAX($Y$4:Y179),1)),""),IF(COUNTIF($G$4:G179,G180)=0,MAX($Y$4:Y179)+1,MAX(MAX($Y$4:Y179),1))),"") -> 
R181: =IF(Q181="OK",IF(COUNTIF($G$4:G180,G181)=0,_xlfn.CONCAT(G181," ",$G$3),""),"") ->  | S181: =IF(ISNUMBER(E181),IF(flag_hdiff_confirm>0,IF(G181=cell_hdiff_confirm,IF(COUNTIF($E$4:E180,E181)=0,MAX($S$4:S180)+1,MAX(MAX($S$4:S180),1)),""),IF(COUNTIF($E$4:E180,E181)=0,MAX($S$4:S180)+1,MAX(MAX($S$4:S180),1))),"") ->  | X181: =IF(W181="OK",IF(COUNTIF($E$4:E180,E181)=0,_xlfn.CONCAT(E181," ",$E$3),""),"") ->  | Y181: =IF(ISNUMBER(G181),IF(flag_ddiff_confirm>0,IF(E181=cell_ddiff_confirm,IF(COUNTIF($G$4:G180,G181)=0,MAX($Y$4:Y180)+1,MAX(MAX($Y$4:Y180),1)),""),IF(COUNTIF($G$4:G180,G181)=0,MAX($Y$4:Y180)+1,MAX(MAX($Y$4:Y180),1))),"") -> 
R182: =IF(Q182="OK",IF(COUNTIF($G$4:G181,G182)=0,_xlfn.CONCAT(G182," ",$G$3),""),"") ->  | S182: =IF(ISNUMBER(E182),IF(flag_hdiff_confirm>0,IF(G182=cell_hdiff_confirm,IF(COUNTIF($E$4:E181,E182)=0,MAX($S$4:S181)+1,MAX(MAX($S$4:S181),1)),""),IF(COUNTIF($E$4:E181,E182)=0,MAX($S$4:S181)+1,MAX(MAX($S$4:S181),1))),"") ->  | X182: =IF(W182="OK",IF(COUNTIF($E$4:E181,E182)=0,_xlfn.CONCAT(E182," ",$E$3),""),"") ->  | Y182: =IF(ISNUMBER(G182),IF(flag_ddiff_confirm>0,IF(E182=cell_ddiff_confirm,IF(COUNTIF($G$4:G181,G182)=0,MAX($Y$4:Y181)+1,MAX(MAX($Y$4:Y181),1)),""),IF(COUNTIF($G$4:G181,G182)=0,MAX($Y$4:Y181)+1,MAX(MAX($Y$4:Y181),1))),"") -> 
R183: =IF(Q183="OK",IF(COUNTIF($G$4:G182,G183)=0,_xlfn.CONCAT(G183," ",$G$3),""),"") ->  | S183: =IF(ISNUMBER(E183),IF(flag_hdiff_confirm>0,IF(G183=cell_hdiff_confirm,IF(COUNTIF($E$4:E182,E183)=0,MAX($S$4:S182)+1,MAX(MAX($S$4:S182),1)),""),IF(COUNTIF($E$4:E182,E183)=0,MAX($S$4:S182)+1,MAX(MAX($S$4:S182),1))),"") ->  | X183: =IF(W183="OK",IF(COUNTIF($E$4:E182,E183)=0,_xlfn.CONCAT(E183," ",$E$3),""),"") ->  | Y183: =IF(ISNUMBER(G183),IF(flag_ddiff_confirm>0,IF(E183=cell_ddiff_confirm,IF(COUNTIF($G$4:G182,G183)=0,MAX($Y$4:Y182)+1,MAX(MAX($Y$4:Y182),1)),""),IF(COUNTIF($G$4:G182,G183)=0,MAX($Y$4:Y182)+1,MAX(MAX($Y$4:Y182),1))),"") -> 
R184: =IF(Q184="OK",IF(COUNTIF($G$4:G183,G184)=0,_xlfn.CONCAT(G184," ",$G$3),""),"") ->  | S184: =IF(ISNUMBER(E184),IF(flag_hdiff_confirm>0,IF(G184=cell_hdiff_confirm,IF(COUNTIF($E$4:E183,E184)=0,MAX($S$4:S183)+1,MAX(MAX($S$4:S183),1)),""),IF(COUNTIF($E$4:E183,E184)=0,MAX($S$4:S183)+1,MAX(MAX($S$4:S183),1))),"") ->  | X184: =IF(W184="OK",IF(COUNTIF($E$4:E183,E184)=0,_xlfn.CONCAT(E184," ",$E$3),""),"") ->  | Y184: =IF(ISNUMBER(G184),IF(flag_ddiff_confirm>0,IF(E184=cell_ddiff_confirm,IF(COUNTIF($G$4:G183,G184)=0,MAX($Y$4:Y183)+1,MAX(MAX($Y$4:Y183),1)),""),IF(COUNTIF($G$4:G183,G184)=0,MAX($Y$4:Y183)+1,MAX(MAX($Y$4:Y183),1))),"") -> 
R185: =IF(Q185="OK",IF(COUNTIF($G$4:G184,G185)=0,_xlfn.CONCAT(G185," ",$G$3),""),"") ->  | S185: =IF(ISNUMBER(E185),IF(flag_hdiff_confirm>0,IF(G185=cell_hdiff_confirm,IF(COUNTIF($E$4:E184,E185)=0,MAX($S$4:S184)+1,MAX(MAX($S$4:S184),1)),""),IF(COUNTIF($E$4:E184,E185)=0,MAX($S$4:S184)+1,MAX(MAX($S$4:S184),1))),"") ->  | X185: =IF(W185="OK",IF(COUNTIF($E$4:E184,E185)=0,_xlfn.CONCAT(E185," ",$E$3),""),"") ->  | Y185: =IF(ISNUMBER(G185),IF(flag_ddiff_confirm>0,IF(E185=cell_ddiff_confirm,IF(COUNTIF($G$4:G184,G185)=0,MAX($Y$4:Y184)+1,MAX(MAX($Y$4:Y184),1)),""),IF(COUNTIF($G$4:G184,G185)=0,MAX($Y$4:Y184)+1,MAX(MAX($Y$4:Y184),1))),"") -> 
R186: =IF(Q186="OK",IF(COUNTIF($G$4:G185,G186)=0,_xlfn.CONCAT(G186," ",$G$3),""),"") ->  | S186: =IF(ISNUMBER(E186),IF(flag_hdiff_confirm>0,IF(G186=cell_hdiff_confirm,IF(COUNTIF($E$4:E185,E186)=0,MAX($S$4:S185)+1,MAX(MAX($S$4:S185),1)),""),IF(COUNTIF($E$4:E185,E186)=0,MAX($S$4:S185)+1,MAX(MAX($S$4:S185),1))),"") ->  | X186: =IF(W186="OK",IF(COUNTIF($E$4:E185,E186)=0,_xlfn.CONCAT(E186," ",$E$3),""),"") ->  | Y186: =IF(ISNUMBER(G186),IF(flag_ddiff_confirm>0,IF(E186=cell_ddiff_confirm,IF(COUNTIF($G$4:G185,G186)=0,MAX($Y$4:Y185)+1,MAX(MAX($Y$4:Y185),1)),""),IF(COUNTIF($G$4:G185,G186)=0,MAX($Y$4:Y185)+1,MAX(MAX($Y$4:Y185),1))),"") -> 
R187: =IF(Q187="OK",IF(COUNTIF($G$4:G186,G187)=0,_xlfn.CONCAT(G187," ",$G$3),""),"") ->  | S187: =IF(ISNUMBER(E187),IF(flag_hdiff_confirm>0,IF(G187=cell_hdiff_confirm,IF(COUNTIF($E$4:E186,E187)=0,MAX($S$4:S186)+1,MAX(MAX($S$4:S186),1)),""),IF(COUNTIF($E$4:E186,E187)=0,MAX($S$4:S186)+1,MAX(MAX($S$4:S186),1))),"") ->  | X187: =IF(W187="OK",IF(COUNTIF($E$4:E186,E187)=0,_xlfn.CONCAT(E187," ",$E$3),""),"") ->  | Y187: =IF(ISNUMBER(G187),IF(flag_ddiff_confirm>0,IF(E187=cell_ddiff_confirm,IF(COUNTIF($G$4:G186,G187)=0,MAX($Y$4:Y186)+1,MAX(MAX($Y$4:Y186),1)),""),IF(COUNTIF($G$4:G186,G187)=0,MAX($Y$4:Y186)+1,MAX(MAX($Y$4:Y186),1))),"") -> 
R188: =IF(Q188="OK",IF(COUNTIF($G$4:G187,G188)=0,_xlfn.CONCAT(G188," ",$G$3),""),"") ->  | S188: =IF(ISNUMBER(E188),IF(flag_hdiff_confirm>0,IF(G188=cell_hdiff_confirm,IF(COUNTIF($E$4:E187,E188)=0,MAX($S$4:S187)+1,MAX(MAX($S$4:S187),1)),""),IF(COUNTIF($E$4:E187,E188)=0,MAX($S$4:S187)+1,MAX(MAX($S$4:S187),1))),"") ->  | X188: =IF(W188="OK",IF(COUNTIF($E$4:E187,E188)=0,_xlfn.CONCAT(E188," ",$E$3),""),"") ->  | Y188: =IF(ISNUMBER(G188),IF(flag_ddiff_confirm>0,IF(E188=cell_ddiff_confirm,IF(COUNTIF($G$4:G187,G188)=0,MAX($Y$4:Y187)+1,MAX(MAX($Y$4:Y187),1)),""),IF(COUNTIF($G$4:G187,G188)=0,MAX($Y$4:Y187)+1,MAX(MAX($Y$4:Y187),1))),"") -> 
R189: =IF(Q189="OK",IF(COUNTIF($G$4:G188,G189)=0,_xlfn.CONCAT(G189," ",$G$3),""),"") ->  | S189: =IF(ISNUMBER(E189),IF(flag_hdiff_confirm>0,IF(G189=cell_hdiff_confirm,IF(COUNTIF($E$4:E188,E189)=0,MAX($S$4:S188)+1,MAX(MAX($S$4:S188),1)),""),IF(COUNTIF($E$4:E188,E189)=0,MAX($S$4:S188)+1,MAX(MAX($S$4:S188),1))),"") ->  | X189: =IF(W189="OK",IF(COUNTIF($E$4:E188,E189)=0,_xlfn.CONCAT(E189," ",$E$3),""),"") ->  | Y189: =IF(ISNUMBER(G189),IF(flag_ddiff_confirm>0,IF(E189=cell_ddiff_confirm,IF(COUNTIF($G$4:G188,G189)=0,MAX($Y$4:Y188)+1,MAX(MAX($Y$4:Y188),1)),""),IF(COUNTIF($G$4:G188,G189)=0,MAX($Y$4:Y188)+1,MAX(MAX($Y$4:Y188),1))),"") -> 
R190: =IF(Q190="OK",IF(COUNTIF($G$4:G189,G190)=0,_xlfn.CONCAT(G190," ",$G$3),""),"") ->  | S190: =IF(ISNUMBER(E190),IF(flag_hdiff_confirm>0,IF(G190=cell_hdiff_confirm,IF(COUNTIF($E$4:E189,E190)=0,MAX($S$4:S189)+1,MAX(MAX($S$4:S189),1)),""),IF(COUNTIF($E$4:E189,E190)=0,MAX($S$4:S189)+1,MAX(MAX($S$4:S189),1))),"") ->  | X190: =IF(W190="OK",IF(COUNTIF($E$4:E189,E190)=0,_xlfn.CONCAT(E190," ",$E$3),""),"") ->  | Y190: =IF(ISNUMBER(G190),IF(flag_ddiff_confirm>0,IF(E190=cell_ddiff_confirm,IF(COUNTIF($G$4:G189,G190)=0,MAX($Y$4:Y189)+1,MAX(MAX($Y$4:Y189),1)),""),IF(COUNTIF($G$4:G189,G190)=0,MAX($Y$4:Y189)+1,MAX(MAX($Y$4:Y189),1))),"") -> 
R191: =IF(Q191="OK",IF(COUNTIF($G$4:G190,G191)=0,_xlfn.CONCAT(G191," ",$G$3),""),"") ->  | S191: =IF(ISNUMBER(E191),IF(flag_hdiff_confirm>0,IF(G191=cell_hdiff_confirm,IF(COUNTIF($E$4:E190,E191)=0,MAX($S$4:S190)+1,MAX(MAX($S$4:S190),1)),""),IF(COUNTIF($E$4:E190,E191)=0,MAX($S$4:S190)+1,MAX(MAX($S$4:S190),1))),"") ->  | X191: =IF(W191="OK",IF(COUNTIF($E$4:E190,E191)=0,_xlfn.CONCAT(E191," ",$E$3),""),"") ->  | Y191: =IF(ISNUMBER(G191),IF(flag_ddiff_confirm>0,IF(E191=cell_ddiff_confirm,IF(COUNTIF($G$4:G190,G191)=0,MAX($Y$4:Y190)+1,MAX(MAX($Y$4:Y190),1)),""),IF(COUNTIF($G$4:G190,G191)=0,MAX($Y$4:Y190)+1,MAX(MAX($Y$4:Y190),1))),"") -> 
R192: =IF(Q192="OK",IF(COUNTIF($G$4:G191,G192)=0,_xlfn.CONCAT(G192," ",$G$3),""),"") ->  | S192: =IF(ISNUMBER(E192),IF(flag_hdiff_confirm>0,IF(G192=cell_hdiff_confirm,IF(COUNTIF($E$4:E191,E192)=0,MAX($S$4:S191)+1,MAX(MAX($S$4:S191),1)),""),IF(COUNTIF($E$4:E191,E192)=0,MAX($S$4:S191)+1,MAX(MAX($S$4:S191),1))),"") ->  | X192: =IF(W192="OK",IF(COUNTIF($E$4:E191,E192)=0,_xlfn.CONCAT(E192," ",$E$3),""),"") ->  | Y192: =IF(ISNUMBER(G192),IF(flag_ddiff_confirm>0,IF(E192=cell_ddiff_confirm,IF(COUNTIF($G$4:G191,G192)=0,MAX($Y$4:Y191)+1,MAX(MAX($Y$4:Y191),1)),""),IF(COUNTIF($G$4:G191,G192)=0,MAX($Y$4:Y191)+1,MAX(MAX($Y$4:Y191),1))),"") -> 
R193: =IF(Q193="OK",IF(COUNTIF($G$4:G192,G193)=0,_xlfn.CONCAT(G193," ",$G$3),""),"") ->  | S193: =IF(ISNUMBER(E193),IF(flag_hdiff_confirm>0,IF(G193=cell_hdiff_confirm,IF(COUNTIF($E$4:E192,E193)=0,MAX($S$4:S192)+1,MAX(MAX($S$4:S192),1)),""),IF(COUNTIF($E$4:E192,E193)=0,MAX($S$4:S192)+1,MAX(MAX($S$4:S192),1))),"") ->  | X193: =IF(W193="OK",IF(COUNTIF($E$4:E192,E193)=0,_xlfn.CONCAT(E193," ",$E$3),""),"") ->  | Y193: =IF(ISNUMBER(G193),IF(flag_ddiff_confirm>0,IF(E193=cell_ddiff_confirm,IF(COUNTIF($G$4:G192,G193)=0,MAX($Y$4:Y192)+1,MAX(MAX($Y$4:Y192),1)),""),IF(COUNTIF($G$4:G192,G193)=0,MAX($Y$4:Y192)+1,MAX(MAX($Y$4:Y192),1))),"") -> 
R194: =IF(Q194="OK",IF(COUNTIF($G$4:G193,G194)=0,_xlfn.CONCAT(G194," ",$G$3),""),"") ->  | S194: =IF(ISNUMBER(E194),IF(flag_hdiff_confirm>0,IF(G194=cell_hdiff_confirm,IF(COUNTIF($E$4:E193,E194)=0,MAX($S$4:S193)+1,MAX(MAX($S$4:S193),1)),""),IF(COUNTIF($E$4:E193,E194)=0,MAX($S$4:S193)+1,MAX(MAX($S$4:S193),1))),"") ->  | X194: =IF(W194="OK",IF(COUNTIF($E$4:E193,E194)=0,_xlfn.CONCAT(E194," ",$E$3),""),"") ->  | Y194: =IF(ISNUMBER(G194),IF(flag_ddiff_confirm>0,IF(E194=cell_ddiff_confirm,IF(COUNTIF($G$4:G193,G194)=0,MAX($Y$4:Y193)+1,MAX(MAX($Y$4:Y193),1)),""),IF(COUNTIF($G$4:G193,G194)=0,MAX($Y$4:Y193)+1,MAX(MAX($Y$4:Y193),1))),"") -> 
R195: =IF(Q195="OK",IF(COUNTIF($G$4:G194,G195)=0,_xlfn.CONCAT(G195," ",$G$3),""),"") ->  | S195: =IF(ISNUMBER(E195),IF(flag_hdiff_confirm>0,IF(G195=cell_hdiff_confirm,IF(COUNTIF($E$4:E194,E195)=0,MAX($S$4:S194)+1,MAX(MAX($S$4:S194),1)),""),IF(COUNTIF($E$4:E194,E195)=0,MAX($S$4:S194)+1,MAX(MAX($S$4:S194),1))),"") ->  | X195: =IF(W195="OK",IF(COUNTIF($E$4:E194,E195)=0,_xlfn.CONCAT(E195," ",$E$3),""),"") ->  | Y195: =IF(ISNUMBER(G195),IF(flag_ddiff_confirm>0,IF(E195=cell_ddiff_confirm,IF(COUNTIF($G$4:G194,G195)=0,MAX($Y$4:Y194)+1,MAX(MAX($Y$4:Y194),1)),""),IF(COUNTIF($G$4:G194,G195)=0,MAX($Y$4:Y194)+1,MAX(MAX($Y$4:Y194),1))),"") -> 
D196: =IF(ISNUMBER(C196),IF(cell_Qairselection_calc="m³/h at NTP",C196*24,IF(cell_Qairselection_calc="m³/d at NTP",C196,IF(cell_Qairselection_calc="m³/h at STP",C196*293.15/273.15*24,IF(cell_Qairselection_calc="scfm",C196/3.28084^3*60*24,"")))),"") ->  | F196: =IF(cell_ddiffselection_calc="diff/m²",IF(AND(ISNUMBER(E196),ISNUMBER($A$5)),E196*IF(cell_Adiffselection_calc="ft²",$A$5*0.3048^2,$A$5),""),IF(cell_ddiffselection_calc="diff/100ft²",IF(AND(ISNUMBER(E196),ISNUMBER($A$5)),E196/100*IF(cell_Adiffselection_calc="m²",$A$5/0.3048^2,$A$5),""),IF(cell_ddiffselection_calc="m²/m²",IF(ISNUMBER(E196),E196,""),IF(cell_ddiffselection_calc="%",IF(ISNUMBER(E196),E196/100,""),IF(cell_ddiffselection_calc="m²/m² (AT/AD)",IF(ISNUMBER(E196),1/E196,""),""))))) ->  | H196: =IF(ISNUMBER(G196),IF(cell_hdiffselection_calc="m",G196,IF(cell_hdiffselection_calc="ft",G196*0.3048,"")),"") ->  | J196: =IF(cell_SOTEselection_calc="%",IF(AND(ISNUMBER(I196),ISNUMBER(H196)),I196/H196,""),IF(cell_SOTEselection_calc="%/m",IF(ISNUMBER(I196),I196,""),IF(cell_SOTEselection_calc="%/ft",IF(ISNUMBER(I196),I196/0.3048,""),""))) ->  | K196: =IF(cell_SOTEselection_calc="%",IF(AND(ISNUMBER(L196),ISNUMBER(H196)),L196*H196,""),IF(cell_SOTEselection_calc="%/m",IF(ISNUMBER(L196),L196,""),IF(cell_SOTEselection_calc="%/ft",IF(ISNUMBER(L196),L196*0.3048,""),""))) ->  | L196: =IF(AND(cell_ddiffselection_calc<>"NA",cell_hdiffselection_calc<>"NA"),IF(AND(ISNUMBER(D196),ISNUMBER(F196),ISNUMBER(H196)),((cell_SSOTE0_est-cell_SSOTEasym_est)*EXP(-cell_expSSOTE_est*D196)+cell_SSOTEasym_est)*(F196/cell_divddiff_est)^cell_powddiff_est/(cell_coeffleadhdiff_est*H196^cell_powhdiff_est+cell_coefflinhdiff_est*H196+1),""),IF(AND(cell_ddiffselection_calc="NA",cell_hdiffselection_calc<>"NA"),IF(AND(ISNUMBER(D196),ISNUMBER(H196)),((cell_SSOTE0_est-cell_SSOTEasym_est)*EXP(-cell_expSSOTE_est*D196)+cell_SSOTEasym_est)/(cell_coeffleadhdiff_est*H196^cell_powhdiff_est+cell_coefflinhdiff_est*H196+1),""),IF(AND(cell_ddiffselection_calc<>"NA",cell_hdiffselection_calc="NA"),IF(AND(ISNUMBER(D196),ISNUMBER(F196)),((cell_SSOTE0_est-cell_SSOTEasym_est)*EXP(-cell_expSSOTE_est*D196)+cell_SSOTEasym_est)*(F196/cell_divddiff_est)^cell_powddiff_est,""),IF(ISNUMBER(D196),(cell_SSOTE0_est-cell_SSOTEasym_est)*EXP(-cell_expSSOTE_est*D196)+cell_SSOTEasym_est,"")))) ->  | M196: =IF(AND(ISNUMBER(J196),ISNUMBER(L196)),(J196-L196)^2,"") ->  | N196: =IF(ISNUMBER(J196),(J196-$J$1004)^2,"") ->  | O196: =IF(AND(ISNUMBER(L196),ISNUMBER($J$1004)),(L196-$J$1004)^2,"") ->  | Q196: =IF(AND(ISNUMBER(E196),ISNUMBER(G196)),IF(COUNTIF(cells_hdiff_calc,G196)>COUNTIFS(cells_hdiff_calc,G196,cells_ddiff_calc,E196),"OK",""),"") ->  | R196: =IF(Q196="OK",IF(COUNTIF($G$4:G195,G196)=0,_xlfn.CONCAT(G196," ",$G$3),""),"") ->  | S196: =IF(ISNUMBER(E196),IF(flag_hdiff_confirm>0,IF(G196=cell_hdiff_confirm,IF(COUNTIF($E$4:E195,E196)=0,MAX($S$4:S195)+1,MAX(MAX($S$4:S195),1)),""),IF(COUNTIF($E$4:E195,E196)=0,MAX($S$4:S195)+1,MAX(MAX($S$4:S195),1))),"") ->  | V196: =IF(ISNUMBER(S196),IF(OR(C196<MAX(mins_Qair_ddiffplot),C196>MIN(maxs_Qair_ddiffplot)),C196,""),"") ->  | W196: =IF(AND(ISNUMBER(E196),ISNUMBER(G196)),IF(COUNTIF(cells_ddiff_calc,E196)>COUNTIFS(cells_hdiff_calc,G196,cells_ddiff_calc,E196),"OK",""),"") ->  | X196: =IF(W196="OK",IF(COUNTIF($E$4:E195,E196)=0,_xlfn.CONCAT(E196," ",$E$3),""),"") ->  | Y196: =IF(ISNUMBER(G196),IF(flag_ddiff_confirm>0,IF(E196=cell_ddiff_confirm,IF(COUNTIF($G$4:G195,G196)=0,MAX($Y$4:Y195)+1,MAX(MAX($Y$4:Y195),1)),""),IF(COUNTIF($G$4:G195,G196)=0,MAX($Y$4:Y195)+1,MAX(MAX($Y$4:Y195),1))),"") ->  | AB196: =IF(ISNUMBER(Y196),IF(OR(C196<MAX(mins_Qair_hdiffplot),C196>MIN(maxs_Qair_hdiffplot)),C196,""),"") ->  | AE196: =IF(ISNUMBER(AD196),IF(cell_Qairselection_calc="m³/h at NTP",AD196*24,IF(cell_Qairselection_calc="m³/d at NTP",AD196,IF(cell_Qairselection_calc="m³/h at STP",AD196*293.15/273.15*24,IF(cell_Qairselection_calc="scfm",AD196/3.28084^3*60*24,"")))),"") ->  | AG196: =IF(cell_ddiffselection_calc="diff/m²",IF(AND(ISNUMBER(AF196),ISNUMBER($A$5)),AF196*IF(cell_Adiffselection_calc="ft²",$A$5*0.3048^2,$A$5),""),IF(cell_ddiffselection_calc="diff/100ft²",IF(AND(ISNUMBER(AF196),ISNUMBER($A$5)),AF196/100*IF(cell_Adiffselection_calc="m²",$A$5/0.3048^2,$A$5),""),IF(cell_ddiffselection_calc="m²/m²",IF(ISNUMBER(AF196),AF196,""),IF(cell_ddiffselection_calc="%",IF(ISNUMBER(AF196),AF196/100,""),IF(cell_ddiffselection_calc="m²/m² (AT/AD)",IF(ISNUMBER(AF196),1/AF196,""),""))))) ->  | AI196: =IF(ISNUMBER(AH196),IF(cell_hdiffselection_calc="m",AH196,IF(cell_hdiffselection_calc="ft",AH196*0.3048,"")),"") ->  | AK196: =IF(cell_SOTEselection_calc="%",IF(AND(ISNUMBER(AJ196),ISNUMBER(AI196)),AJ196/AI196,""),IF(cell_SOTEselection_calc="%/m",IF(ISNUMBER(AJ196),AJ196,""),IF(cell_SOTEselection_calc="%/ft",IF(ISNUMBER(AJ196),AJ196/0.3048,""),""))) ->  | AL196: =IF(cell_SOTEselection_calc="%",IF(AND(ISNUMBER(AM196),ISNUMBER(AI196)),AM196*AI196,""),IF(cell_SOTEselection_calc="%/m",IF(ISNUMBER(AM196),AM196,""),IF(cell_SOTEselection_calc="%/ft",IF(ISNUMBER(AM196),AM196*0.3048,""),""))) ->  | AM196: =IF(AND(cell_ddiffselection_calc<>"NA",cell_hdiffselection_calc<>"NA"),IF(AND(ISNUMBER(AE196),ISNUMBER(AG196),ISNUMBER(AI196)),((cell_SSOTE0_est-cell_SSOTEasym_est)*EXP(-cell_expSSOTE_est*AE196)+cell_SSOTEasym_est)*(AG196/cell_divddiff_est)^cell_powddiff_est/(cell_coeffleadhdiff_est*AI196^cell_powhdiff_est+cell_coefflinhdiff_est*AI196+1),""),IF(AND(cell_ddiffselection_calc="NA",cell_hdiffselection_calc<>"NA"),IF(AND(ISNUMBER(AE196),ISNUMBER(AI196)),((cell_SSOTE0_est-cell_SSOTEasym_est)*EXP(-cell_expSSOTE_est*AE196)+cell_SSOTEasym_est)/(cell_coeffleadhdiff_est*AI196^cell_powhdiff_est+cell_coefflinhdiff_est*AI196+1),""),IF(AND(cell_ddiffselection_calc<>"NA",cell_hdiffselection_calc="NA"),IF(AND(ISNUMBER(AE196),ISNUMBER(AG196)),((cell_SSOTE0_est-cell_SSOTEasym_est)*EXP(-cell_expSSOTE_est*AE196)+cell_SSOTEasym_est)*(AG196/cell_divddiff_est)^cell_powddiff_est,""),IF(ISNUMBER(AE196),(cell_SSOTE0_est-cell_SSOTEasym_est)*EXP(-cell_expSSOTE_est*AE196)+cell_SSOTEasym_est,"")))) ->  | AP196: =IF(ISNUMBER(AO196),IF(cell_Qairselection_calc="m³/h at NTP",AO196*24,IF(cell_Qairselection_calc="m³/d at NTP",AO196,IF(cell_Qairselection_calc="m³/h at NTP",AO196*293.15/273.15*24,IF(cell_Qairselection_calc="scfm",AO196/3.28084^3*60*24,"")))),"") ->  | AR196: =IF(ISNUMBER(AQ196),IF(cell_hdiffselection_calc="m",AQ196,IF(cell_hdiffselection_calc="ft",AQ196*0.3048,"")),"") ->  | AT196: =IF(cell_ddiffselection_calc="diff/m²",IF(AND(ISNUMBER(AS196),ISNUMBER($A$5)),AS196*IF(cell_Adiffselection_calc="ft²",$A$5*0.3048^2,$A$5),""),IF(cell_ddiffselection_calc="diff/100ft²",IF(AND(ISNUMBER(AS196),ISNUMBER($A$5)),AS196/100*IF(cell_Adiffselection_calc="m²",$A$5/0.3048^2,$A$5),""),IF(cell_ddiffselection_calc="m²/m²",IF(ISNUMBER(AS196),AS196,""),IF(cell_ddiffselection_calc="%",IF(ISNUMBER(AS196),AS196/100,""),IF(cell_ddiffselection_calc="m²/m² (AT/AD)",IF(ISNUMBER(AS196),1/AS196,""),""))))) ->  | AV196: =IF(cell_SOTEselection_calc="%",IF(AND(ISNUMBER(AU196),ISNUMBER(AR196)),AU196/AR196,""),IF(cell_SOTEselection_calc="%/m",IF(ISNUMBER(AU196),AU196,""),IF(cell_SOTEselection_calc="%/ft",IF(ISNUMBER(AU196),AU196/0.3048,""),""))) ->  | AW196: =IF(cell_SOTEselection_calc="%",IF(AND(ISNUMBER(AX196),ISNUMBER(AR196)),AX196*AR196,""),IF(cell_SOTEselection_calc="%/m",IF(ISNUMBER(AX196),AX196,""),IF(cell_SOTEselection_calc="%/ft",IF(ISNUMBER(AX196),AX196*0.3048,""),""))) ->  | AX196: =IF(AND(cell_ddiffselection_calc<>"NA",cell_hdiffselection_calc<>"NA"),IF(AND(ISNUMBER(AP196),ISNUMBER(AT196),ISNUMBER(AR196)),((cell_SSOTE0_est-cell_SSOTEasym_est)*EXP(-cell_expSSOTE_est*AP196)+cell_SSOTEasym_est)*(AT196/cell_divddiff_est)^cell_powddiff_est/(cell_coeffleadhdiff_est*AR196^cell_powhdiff_est+cell_coefflinhdiff_est*AR196+1),""),IF(AND(cell_ddiffselection_calc="NA",cell_hdiffselection_calc<>"NA"),IF(AND(ISNUMBER(AP196),ISNUMBER(AR196)),((cell_SSOTE0_est-cell_SSOTEasym_est)*EXP(-cell_expSSOTE_est*AP196)+cell_SSOTEasym_est)/(cell_coeffleadhdiff_est*AR196^cell_powhdiff_est+cell_coefflinhdiff_est*AR196+1),""),IF(AND(cell_ddiffselection_calc<>"NA",cell_hdiffselection_calc="NA"),IF(AND(ISNUMBER(AP196),ISNUMBER(AT196)),((cell_SSOTE0_est-cell_SSOTEasym_est)*EXP(-cell_expSSOTE_est*AP196)+cell_SSOTEasym_est)*(AT196/cell_divddiff_est)^cell_powddiff_est,""),IF(ISNUMBER(AP196),(cell_SSOTE0_est-cell_SSOTEasym_est)*EXP(-cell_expSSOTE_est*AP196)+cell_SSOTEasym_est,"")))) -> 
R197: =IF(Q197="OK",IF(COUNTIF($G$4:G196,G197)=0,_xlfn.CONCAT(G197," ",$G$3),""),"") ->  | S197: =IF(ISNUMBER(E197),IF(flag_hdiff_confirm>0,IF(G197=cell_hdiff_confirm,IF(COUNTIF($E$4:E196,E197)=0,MAX($S$4:S196)+1,MAX(MAX($S$4:S196),1)),""),IF(COUNTIF($E$4:E196,E197)=0,MAX($S$4:S196)+1,MAX(MAX($S$4:S196),1))),"") ->  | T197: =IF(AND(ISNUMBER(S197),S197<>S196),_xlfn.MINIFS((cells_Qair_calc),(labels_ddiff_confirm),S197),"") ->  | U197: =IF(AND(ISNUMBER(S197),S197<>S196),_xlfn.MAXIFS((cells_Qair_calc),(labels_ddiff_confirm),S197),"") ->  | X197: =IF(W197="OK",IF(COUNTIF($E$4:E196,E197)=0,_xlfn.CONCAT(E197," ",$E$3),""),"") ->  | Y197: =IF(ISNUMBER(G197),IF(flag_ddiff_confirm>0,IF(E197=cell_ddiff_confirm,IF(COUNTIF($G$4:G196,G197)=0,MAX($Y$4:Y196)+1,MAX(MAX($Y$4:Y196),1)),""),IF(COUNTIF($G$4:G196,G197)=0,MAX($Y$4:Y196)+1,MAX(MAX($Y$4:Y196),1))),"") ->  | Z197: =IF(AND(ISNUMBER(Y197),Y197<>Y196),_xlfn.MINIFS((cells_Qair_calc),(labels_hdiff_confirm),Y197),"") ->  | AA197: =IF(AND(ISNUMBER(Y197),Y197<>Y196),_xlfn.MAXIFS((cells_Qair_calc),(labels_hdiff_confirm),Y197),"") -> 
R198: =IF(Q198="OK",IF(COUNTIF($G$4:G197,G198)=0,_xlfn.CONCAT(G198," ",$G$3),""),"") ->  | S198: =IF(ISNUMBER(E198),IF(flag_hdiff_confirm>0,IF(G198=cell_hdiff_confirm,IF(COUNTIF($E$4:E197,E198)=0,MAX($S$4:S197)+1,MAX(MAX($S$4:S197),1)),""),IF(COUNTIF($E$4:E197,E198)=0,MAX($S$4:S197)+1,MAX(MAX($S$4:S197),1))),"") ->  | X198: =IF(W198="OK",IF(COUNTIF($E$4:E197,E198)=0,_xlfn.CONCAT(E198," ",$E$3),""),"") ->  | Y198: =IF(ISNUMBER(G198),IF(flag_ddiff_confirm>0,IF(E198=cell_ddiff_confirm,IF(COUNTIF($G$4:G197,G198)=0,MAX($Y$4:Y197)+1,MAX(MAX($Y$4:Y197),1)),""),IF(COUNTIF($G$4:G197,G198)=0,MAX($Y$4:Y197)+1,MAX(MAX($Y$4:Y197),1))),"") -> 
R199: =IF(Q199="OK",IF(COUNTIF($G$4:G198,G199)=0,_xlfn.CONCAT(G199," ",$G$3),""),"") ->  | S199: =IF(ISNUMBER(E199),IF(flag_hdiff_confirm>0,IF(G199=cell_hdiff_confirm,IF(COUNTIF($E$4:E198,E199)=0,MAX($S$4:S198)+1,MAX(MAX($S$4:S198),1)),""),IF(COUNTIF($E$4:E198,E199)=0,MAX($S$4:S198)+1,MAX(MAX($S$4:S198),1))),"") ->  | X199: =IF(W199="OK",IF(COUNTIF($E$4:E198,E199)=0,_xlfn.CONCAT(E199," ",$E$3),""),"") ->  | Y199: =IF(ISNUMBER(G199),IF(flag_ddiff_confirm>0,IF(E199=cell_ddiff_confirm,IF(COUNTIF($G$4:G198,G199)=0,MAX($Y$4:Y198)+1,MAX(MAX($Y$4:Y198),1)),""),IF(COUNTIF($G$4:G198,G199)=0,MAX($Y$4:Y198)+1,MAX(MAX($Y$4:Y198),1))),"") -> 
R200: =IF(Q200="OK",IF(COUNTIF($G$4:G199,G200)=0,_xlfn.CONCAT(G200," ",$G$3),""),"") ->  | S200: =IF(ISNUMBER(E200),IF(flag_hdiff_confirm>0,IF(G200=cell_hdiff_confirm,IF(COUNTIF($E$4:E199,E200)=0,MAX($S$4:S199)+1,MAX(MAX($S$4:S199),1)),""),IF(COUNTIF($E$4:E199,E200)=0,MAX($S$4:S199)+1,MAX(MAX($S$4:S199),1))),"") ->  | X200: =IF(W200="OK",IF(COUNTIF($E$4:E199,E200)=0,_xlfn.CONCAT(E200," ",$E$3),""),"") ->  | Y200: =IF(ISNUMBER(G200),IF(flag_ddiff_confirm>0,IF(E200=cell_ddiff_confirm,IF(COUNTIF($G$4:G199,G200)=0,MAX($Y$4:Y199)+1,MAX(MAX($Y$4:Y199),1)),""),IF(COUNTIF($G$4:G199,G200)=0,MAX($Y$4:Y199)+1,MAX(MAX($Y$4:Y199),1))),"") -> 
... 805 more rows

Sheet Plot & estimate
B12: error2: | C12: =SUM(Calculations!M4:M1003) -> 0.2419480781
B13: R2: | C13: =Calculations!O1004/Calculations!N1004 -> 0.9922234438
D20: GENERAL EXPRESSION | W20: CORRECTION TERM FOR DIFFUSER SUBMERGENCE | AJ20: CORRECTION TERM FOR DIFFUSER DENSITY
K21: - | L21: expSSOTE | M21: · | N21: Qair,NTP,sp | AB21: powh,diff | AQ21: powd,diff
D22: SSOTE | E22: = | F22: (( | G22: SSOTE0 | H22: - | I22: SSOTEasym | J22: ) · e | O22: + | P22: SSOTEasym | Q22: ) | R22: · | S22: corrd,diff | T22: / | U22: corrh,diff | W22: corrh,diff | X22: = | Y22: coefflead,h,diff | Z22: · | AA22: hdiff | AC22: + | AD22: coefflin,h,diff | AE22: · | AF22: hdiff | AG22: + | AH22: 1 | AJ22: corrd,diff | AK22: = | AL22: ( | AM22: ddiff | AN22: / | AO22: divd,diff | AP22: )
K23: - | L23: 0.008099902413 | M23: · | N23: Qair,NTP,sp | AB23: 1.817756969 | AQ23: 0.08557164877
E24: = | F24: (( | G24: 9.695299174 | H24: - | I24: 7.077083276 | J24: ) · e | O24: + | P24: =cell_SSOTEasym_est -> 7.077083276 | Q24: ) | R24: · | S24: corrd,diff | T24: / | U24: corrh,diff | X24: = | Y24: 0.01079534124 | Z24: · | AA24: hdiff | AC24: + | AD24: -0.02202055476 | AE24: · | AF24: hdiff | AG24: + | AH24: 1 | AK24: = | AL24: ( | AM24: ddiff | AN24: / | AO24: 0.1325869113 | AP24: )
D26: Where, | F26: SSOTE0: Intercept in SSOTE correlation (%/m) | W26: Where, | Y26: hdiff: Diffuser submergence (m) | AJ26: Where, | AL26: ddiff: Diffuser floor density (m2 diffuser/m2 tank)
F27: SSOTEasym: Asymptote in SSOTE correlation (%/m) | Y27: coefflead,h,diff: Leading coefficient (1/m) | AL27: divd,diff: Divisor value (m2 tank/m2 diffuser)
F28: expSSOTE: Exponent (absolute value) in SSOTE correlation | Y28: powh,diff: Power value | AL28: powd,diff: Power value
F29: Qair,NTP,sp: Normalized air flow per diffuser (m3/d at NTP) | Y29: coefflin,h,diff: Linear coefficient (1/m)

Sheet Sumo forms
B2: Oxygen transfer efficiency correlation parameters
B3: Name | C3: Value | D3: Unit
B4: Intercept in SSOTE correlation | C4: =cell_SSOTE0_est -> 9.695299174 | D4: %/m
B5: Exponent (absolute value) in SSOTE correlation | C5: =cell_expSSOTE_est -> 0.008099902413
B6: Asymptote in SSOTE correlation | C6: =cell_SSOTEasym_est -> 7.077083276 | D6: %/m
B7: Divisor value in diffuser density correction term | C7: =cell_divddiff_est -> 0.1325869113 | D7: m2/m2
B8: Power value in diffuser density correction term | C8: =cell_powddiff_est -> 0.08557164877
B9: Leading coefficient in diffuser submergence correction term | C9: =cell_coeffleadhdiff_est -> 0.01079534124 | D9: 1/m
B10: Power value in diffuser submergence correction term | C10: =cell_powhdiff_est -> 1.817756969
B11: Linear coefficient in diffuser submergence correction term | C11: =cell_coefflinhdiff_est -> -0.02202055476 | D11: 1/m

Sheet Templates (hidden)
B2: Air flow per diffuser | C2: SOTE | D2: Diffuser density | E2: Water depth | G2: m | I2: Area (m²) | K2: Air flow unit selection | L2: Aeration efficiency selection | M2: Diffuser density selection | N2: Diffuser submergence selection | O2: Diffuser area unit selection | Q2: =IF(AND(flag_ddiff_option=6,flag_hdiff_option=3),IF(OR(AND(ISBLANK(C2),ISBLANK(D2)),AND(ISNUMBER(C2),ISNUMBER(D2))),"OK","ERROR"),IF(AND(flag_ddiff_option<>6,flag_hdiff_option=3),IF(OR(AND(ISBLANK(C2),ISBLANK(D2),ISBLANK(E2)),AND(ISNUMBER(C2),ISNUMBER(D2),ISNUMBER(E2))),"OK","ERROR"),IF(AND(flag_ddiff_option=6,flag_hdiff_option<>3),IF(OR(AND(ISBLANK(C2),ISBLANK(D2),ISBLANK(F2),H2=""),AND(ISNUMBER(C2),ISNUMBER(D2),ISNUMBER(F2),ISNUMBER(H2))),"OK","ERROR"),IF(OR(AND(ISBLANK(C2),ISBLANK(D2),ISBLANK(E2),ISBLANK(F2),H2=""),AND(ISNUMBER(C2),ISNUMBER(D2),ISNUMBER(E2),ISNUMBER(F2),ISNUMBER(H2))),"OK","ERROR")))) -> ERROR | S2: =IF(flag_hdiff_confirm>0,_xlfn.CONCAT("Submergence: ",ROUND(cell_hdiff_confirm,1)," ",Calculations!R1004),"") -> Submergence: 4.8 m | U2: =_xlfn.CONCAT("Air flow per diffuser"," (",cell_Qairselection_calc,")") -> Air flow per diffuser (m³/h at NTP) | W2: 8.811136154 | Y2: 1
B3: m³/h at NTP | C3: % | D3: diff/m² | E3: Diffuser depth | G3: ft | I3: 0.0856 | K3: m³/h at NTP | L3: % | M3: diff/m² | N3: m | O3: m² | S3: =IF(flag_ddiff_confirm>0,_xlfn.CONCAT("Density: ",ROUND(cell_ddiff_confirm,1)," ",Calculations!X1004),"") -> Density: 0.6 diff/m² | U3: =_xlfn.CONCAT(IF(cell_SOTEselection_calc="%","SOTE","SSOTE")," (",cell_SOTEselection_calc,")") -> SOTE (%) | W3: 6.735552291 | Y3: 0
B4: m³/d at NTP | C4: SSOTE | D4: diff/100ft² | E4: m | G4: m² | I4: 0.0373 | K4: m³/d at NTP | L4: %/m | M4: diff/100ft² | N4: ft | O4: ft²
B5: m³/h at STP | C5: %/m | D5: m²/m² | E5: ft | G5: ft² | I5: 0.0636 | K5: m³/h at STP | L5: %/ft | M5: m²/m² | N5: NA
B6: scfm | C6: SSOTE | D6: % | I6: 0.0263 | K6: scfm | M6: %
C7: %/ft | D7: m²/m² (AT/AD) | I7: 0.0159 | M7: m²/m² (AT/AD)
C8: SSOTE | I8: 0.012 | M8: NA
C9: %/m | I9: 0.0438
I10: 0.0929
I11: 0.0807
I12: 4.0877
I13: 3.7766
I14: Area (ft²)
I15: 0.9213907317
I16: 0.4014938585
I17: 0.6845847025
I18: 0.283090844
I19: 0.1711461756
I20: 0.129166925
I21: 0.4714592763
I22: 0.9999672777
I23: 0.8686475706
I24: 43.99963661
I25: 40.65098408
